Organisation Name,Organisation Code,Unique Ref No,Effective Date,Directorate  where expenditure incurred,Supplier Name,Payment Date,Net Amount,Purpose of Spend,Procurement Classification (Higher Level),Procurement Classification (Lower Level),Capital/Revenue
Walsall Council,http://opendatacommunities.org/id/metropolitan-district-council/walsall,WC97-01,31/10/2018,Childrens,11KBW,16/10/2018,750.00,73014-LEGAL FEES-PRIV CONTRACTOR FEES,PERFORMANCE & OUTCOMES TEAM (C&YP),Third Party Payments,Revenue
Walsall Council,http://opendatacommunities.org/id/metropolitan-district-council/walsall,WC97-02,31/10/2018,Economy & Environment,11KBW,16/10/2018,"10,445.00",73014-LEGAL FEES-PRIV CONTRACTOR FEES,CEMETERIES CENTRAL ADMINISTRATION,Third Party Payments,Revenue
Walsall Council,http://opendatacommunities.org/id/metropolitan-district-council/walsall,WC97-03,31/10/2018,Childrens,1GC FAMILY LAW - SOPHIE PROLINGHEUER,26/10/2018,"1,000.00",73014-LEGAL FEES-PRIV CONTRACTOR FEES,GENERAL MANAGEMENT SUPPORT (INC LEGAL),Third Party Payments,Revenue
Walsall Council,http://opendatacommunities.org/id/metropolitan-district-council/walsall,WC97-04,31/10/2018,Childrens,247 CARS (WILLENHALL) LIMITED,17/10/2018,561.00,60500-GENERAL MATERIALS,PUPIL REFERAL UNIT EXCLUSIONS,Supplies & Services,Revenue
Walsall Council,http://opendatacommunities.org/id/metropolitan-district-council/walsall,WC97-05,31/10/2018,Childrens,247 CARS (WILLENHALL) LIMITED,17/10/2018,697.00,60500-GENERAL MATERIALS,PUPIL REFERAL UNIT EXCLUSIONS,Supplies & Services,Revenue
Walsall Council,http://opendatacommunities.org/id/metropolitan-district-council/walsall,WC97-06,31/10/2018,Childrens,247 CARS (WILLENHALL) LIMITED,17/10/2018,795.00,60500-GENERAL MATERIALS,PUPIL REFERAL UNIT EXCLUSIONS,Supplies & Services,Revenue
Walsall Council,http://opendatacommunities.org/id/metropolitan-district-council/walsall,WC97-07,31/10/2018,Childrens,247 CARS (WILLENHALL) LIMITED,05/10/2018,"1,138.00",52000-WITH DRIVER-HIRE OF VEHICLES,HOME TO SCHOOL TRANSPORT,Transport,Revenue
Walsall Council,http://opendatacommunities.org/id/metropolitan-district-council/walsall,WC97-08,31/10/2018,Childrens,247 CARS (WILLENHALL) LIMITED,17/10/2018,"1,260.00",60500-GENERAL MATERIALS,PUPIL REFERAL UNIT EXCLUSIONS,Supplies & Services,Revenue
Walsall Council,http://opendatacommunities.org/id/metropolitan-district-council/walsall,WC97-09,31/10/2018,Childrens,247 CARS (WILLENHALL) LIMITED,10/10/2018,"3,824.00",52000-WITH DRIVER-HIRE OF VEHICLES,HOME TO SCHOOL TRANSPORT,Transport,Revenue
Walsall Council,http://opendatacommunities.org/id/metropolitan-district-council/walsall,WC97-10,31/10/2018,Adult Social Care,39 ESSEX STREET LLP PFA,17/10/2018,"1,000.00",73014-LEGAL FEES-PRIV CONTRACTOR FEES,SAFEGUARDING,Third Party Payments,Revenue
Walsall Council,http://opendatacommunities.org/id/metropolitan-district-council/walsall,WC97-11,31/10/2018,Resources and Transformation,4 SIGHT EYECARE CENTRE 002,09/10/2018,750.00,63000-PROFESSIONAL FEES AND SERVICES,HR DIRECT SERVICES,Supplies & Services,Revenue
Walsall Council,http://opendatacommunities.org/id/metropolitan-district-council/walsall,WC97-12,31/10/2018,Childrens,402K CONSULTANCY,16/10/2018,"5,160.08",63102-CONSULTANTS FEES - CORPORATE,SAFEGUARDING BOARD,Supplies & Services,Revenue
Walsall Council,http://opendatacommunities.org/id/metropolitan-district-council/walsall,WC97-13,31/10/2018,Adult Social Care,5 CARE SERVICES LTD,17/10/2018,400.43,73025-PROFESSIONAL SERVICES-PRIV CONTRACTOR & OTHER AGENCIES,TRANSITIONAL CARE SUPPORT TEAM,Third Party Payments,Revenue
Walsall Council,http://opendatacommunities.org/id/metropolitan-district-council/walsall,WC97-14,31/10/2018,Adult Social Care,5 CARE SERVICES LTD,03/10/2018,"33,768.60",73372-DOMICILIARY CARE,OP PACKAGE/PLACEMENT COSTS,Third Party Payments,Revenue
Walsall Council,http://opendatacommunities.org/id/metropolitan-district-council/walsall,WC97-15,31/10/2018,Adult Social Care,5 CARE SERVICES LTD,01/10/2018,"36,805.20",73372-DOMICILIARY CARE,OP PACKAGE/PLACEMENT COSTS,Third Party Payments,Revenue
Walsall Council,http://opendatacommunities.org/id/metropolitan-district-council/walsall,WC97-16,31/10/2018,Economy & Environment,A ASHTON,16/10/2018,380.00,60006-NEW-FURNITURE & EQUIPMENT,GREEN SPACE MANAGEMENT,Supplies & Services,Revenue
Walsall Council,http://opendatacommunities.org/id/metropolitan-district-council/walsall,WC97-17,31/10/2018,Economy & Environment,A D T FIRE AND SECURITY PLC,04/10/2018,285.00,60500-GENERAL MATERIALS,ARBORETUM VISITOR CENTRE,Supplies & Services,Revenue
Walsall Council,http://opendatacommunities.org/id/metropolitan-district-council/walsall,WC97-18,31/10/2018,Resources and Transformation,A D T FIRE AND SECURITY PLC,22/10/2018,"1,128.93",73002-SECURITY-PRIV CONTRACTOR FEES,REDUNDANT BUILDINGS,Third Party Payments,Revenue
Walsall Council,http://opendatacommunities.org/id/metropolitan-district-council/walsall,WC97-19,31/10/2018,Economy & Environment,A F BLAKEMORE & SON LTD,24/10/2018,233.00,61008-CONFECTIONERY/SNACKS-PROVISIONS,OAK PARK,Supplies & Services,Revenue
Walsall Council,http://opendatacommunities.org/id/metropolitan-district-council/walsall,WC97-20,31/10/2018,Economy & Environment,A F BLAKEMORE & SON LTD,09/10/2018,254.47,61008-CONFECTIONERY/SNACKS-PROVISIONS,OAK PARK,Supplies & Services,Revenue
Walsall Council,http://opendatacommunities.org/id/metropolitan-district-council/walsall,WC97-21,31/10/2018,Economy & Environment,A F BLAKEMORE & SON LTD,05/10/2018,269.17,61018-DRINKS-PROVISIONS,OAK PARK,Supplies & Services,Revenue
Walsall Council,http://opendatacommunities.org/id/metropolitan-district-council/walsall,WC97-22,31/10/2018,Economy & Environment,A F BLAKEMORE & SON LTD,18/10/2018,287.91,61008-CONFECTIONERY/SNACKS-PROVISIONS,WALSALL GALA CENTRE,Supplies & Services,Revenue
Walsall Council,http://opendatacommunities.org/id/metropolitan-district-council/walsall,WC97-23,31/10/2018,Economy & Environment,A F BLAKEMORE & SON LTD,18/10/2018,306.75,61008-CONFECTIONERY/SNACKS-PROVISIONS,OAK PARK,Supplies & Services,Revenue
Walsall Council,http://opendatacommunities.org/id/metropolitan-district-council/walsall,WC97-24,31/10/2018,Economy & Environment,A F BLAKEMORE & SON LTD,24/10/2018,315.39,61018-DRINKS-PROVISIONS,OAK PARK,Supplies & Services,Revenue
Walsall Council,http://opendatacommunities.org/id/metropolitan-district-council/walsall,WC97-25,31/10/2018,Adult Social Care,A F BLAKEMORE & SON LTD,09/10/2018,370.56,61016-FOOD AND BEVERAGES-PROVISIONS,GOSCOTE,Supplies & Services,Revenue
Walsall Council,http://opendatacommunities.org/id/metropolitan-district-council/walsall,WC97-26,31/10/2018,Adult Social Care,A F BLAKEMORE & SON LTD,26/10/2018,412.19,61016-FOOD AND BEVERAGES-PROVISIONS,GOSCOTE,Supplies & Services,Revenue
Walsall Council,http://opendatacommunities.org/id/metropolitan-district-council/walsall,WC97-27,31/10/2018,Economy & Environment,A F BLAKEMORE & SON LTD,15/10/2018,469.51,61018-DRINKS-PROVISIONS,OAK PARK,Supplies & Services,Revenue
Walsall Council,http://opendatacommunities.org/id/metropolitan-district-council/walsall,WC97-28,31/10/2018,Resources and Transformation,AAINA COMMUNITY HUB,01/10/2018,"2,300.00",62515-MISCELLANEOUS SUPPLIES,PREVENT GRANT,Supplies & Services,Revenue
Walsall Council,http://opendatacommunities.org/id/metropolitan-district-council/walsall,WC97-29,31/10/2018,Childrens,REDACTED,09/10/2018,378.00,73506-DIRECT PAYMENT,FAMILY SUPPORT - DIRECT PAYMENTS,Third Party Payments,Revenue
Walsall Council,http://opendatacommunities.org/id/metropolitan-district-council/walsall,WC97-30,31/10/2018,Economy & Environment,ABBEY BLINDS 001,24/10/2018,246.00,60000-FURNITURE & EQUIPMENT,FOREST ARTS CENTRE,Supplies & Services,Revenue
Walsall Council,http://opendatacommunities.org/id/metropolitan-district-council/walsall,WC97-31,31/10/2018,Adult Social Care,ABBEY COURT NURSING & RESIDEN,15/10/2018,603.17,73501-RESIDENTIAL EMI,PHYSICAL SUPPORT,Third Party Payments,Revenue
Walsall Council,http://opendatacommunities.org/id/metropolitan-district-council/walsall,WC97-32,31/10/2018,Adult Social Care,ABBEY COURT NURSING & RESIDEN,16/10/2018,603.17,73501-RESIDENTIAL EMI,PHYSICAL SUPPORT,Third Party Payments,Revenue
Walsall Council,http://opendatacommunities.org/id/metropolitan-district-council/walsall,WC97-33,31/10/2018,Adult Social Care,ABBEY COURT NURSING & RESIDEN,16/10/2018,603.17,73501-RESIDENTIAL EMI,SUPPORT WITH MEMORY & COGNITION,Third Party Payments,Revenue
Walsall Council,http://opendatacommunities.org/id/metropolitan-district-council/walsall,WC97-34,31/10/2018,Adult Social Care,ABBEY COURT NURSING & RESIDEN,15/10/2018,622.64,73501-RESIDENTIAL EMI,SUPPORT WITH MEMORY & COGNITION,Third Party Payments,Revenue
Walsall Council,http://opendatacommunities.org/id/metropolitan-district-council/walsall,WC97-35,31/10/2018,Adult Social Care,ABBEY HEALTHCARE HOMES LTD,16/10/2018,546.20,73502-NURSING,PHYSICAL SUPPORT,Third Party Payments,Revenue
Walsall Council,http://opendatacommunities.org/id/metropolitan-district-council/walsall,WC97-36,31/10/2018,Adult Social Care,ABBEY HEALTHCARE HOMES LTD,15/10/2018,737.38,73502-NURSING,PHYSICAL SUPPORT,Third Party Payments,Revenue
Walsall Council,http://opendatacommunities.org/id/metropolitan-district-council/walsall,WC97-37,31/10/2018,Adult Social Care,ABBEY HEALTHCARE HOMES LTD,15/10/2018,964.28,73500-RESIDENTIAL,LEARNING DISABILITY SUPPORT,Third Party Payments,Revenue
Walsall Council,http://opendatacommunities.org/id/metropolitan-district-council/walsall,WC97-38,31/10/2018,Adult Social Care,ABBEY HEALTHCARE HOMES LTD,15/10/2018,964.28,73502-NURSING,LEARNING DISABILITY SUPPORT,Third Party Payments,Revenue
Walsall Council,http://opendatacommunities.org/id/metropolitan-district-council/walsall,WC97-39,31/10/2018,Adult Social Care,ABBEY HEALTHCARE HOMES LTD,15/10/2018,964.28,73502-NURSING,LEARNING DISABILITY SUPPORT,Third Party Payments,Revenue
Walsall Council,http://opendatacommunities.org/id/metropolitan-district-council/walsall,WC97-40,31/10/2018,Adult Social Care,ABBEY HEALTHCARE HOMES LTD,15/10/2018,"1,028.57",73502-NURSING,LEARNING DISABILITY SUPPORT,Third Party Payments,Revenue
Walsall Council,http://opendatacommunities.org/id/metropolitan-district-council/walsall,WC97-41,31/10/2018,Childrens,ABC FOSTERING,08/10/2018,"2,468.70",74037-INDEPENDENT FOSTER CARE-OTH AGENCY PROVISION,EXTERNAL FOSTER CARE PROVISION,Third Party Payments,Revenue
Walsall Council,http://opendatacommunities.org/id/metropolitan-district-council/walsall,WC97-42,31/10/2018,Childrens,ABC FOSTERING,08/10/2018,"2,468.70",74037-INDEPENDENT FOSTER CARE-OTH AGENCY PROVISION,EXTERNAL FOSTER CARE PROVISION,Third Party Payments,Revenue
Walsall Council,http://opendatacommunities.org/id/metropolitan-district-council/walsall,WC97-43,31/10/2018,Childrens,ABC FOSTERING,08/10/2018,"2,635.20",74037-INDEPENDENT FOSTER CARE-OTH AGENCY PROVISION,EXTERNAL FOSTER CARE PROVISION,Third Party Payments,Revenue
Walsall Council,http://opendatacommunities.org/id/metropolitan-district-council/walsall,WC97-44,31/10/2018,Childrens,ABC FOSTERING,08/10/2018,"2,707.20",74037-INDEPENDENT FOSTER CARE-OTH AGENCY PROVISION,EXTERNAL FOSTER CARE PROVISION,Third Party Payments,Revenue
Walsall Council,http://opendatacommunities.org/id/metropolitan-district-council/walsall,WC97-45,31/10/2018,Childrens,ABC FOSTERING,08/10/2018,"2,859.48",74037-INDEPENDENT FOSTER CARE-OTH AGENCY PROVISION,EXTERNAL FOSTER CARE PROVISION,Third Party Payments,Revenue
Walsall Council,http://opendatacommunities.org/id/metropolitan-district-council/walsall,WC97-46,31/10/2018,Childrens,ABC FOSTERING,08/10/2018,"3,042.00",74037-INDEPENDENT FOSTER CARE-OTH AGENCY PROVISION,EXTERNAL FOSTER CARE PROVISION,Third Party Payments,Revenue
Walsall Council,http://opendatacommunities.org/id/metropolitan-district-council/walsall,WC97-47,31/10/2018,Childrens,ABC TEACHERS LIMITED,22/10/2018,"1,845.00",63000-PROFESSIONAL FEES AND SERVICES,SCHOOL IMPROVEMENT-VIRTUAL SCHOOL,Supplies & Services,Revenue
Walsall Council,http://opendatacommunities.org/id/metropolitan-district-council/walsall,WC97-48,31/10/2018,Childrens,ABC TEACHERS LIMITED,22/10/2018,"2,050.00",63000-PROFESSIONAL FEES AND SERVICES,SCHOOL IMPROVEMENT-VIRTUAL SCHOOL,Supplies & Services,Revenue
Walsall Council,http://opendatacommunities.org/id/metropolitan-district-council/walsall,WC97-49,31/10/2018,Childrens,ABC TEACHERS LIMITED,22/10/2018,"2,050.00",63000-PROFESSIONAL FEES AND SERVICES,SCHOOL IMPROVEMENT-VIRTUAL SCHOOL,Supplies & Services,Revenue
Walsall Council,http://opendatacommunities.org/id/metropolitan-district-council/walsall,WC97-50,31/10/2018,Childrens,ABC TEACHERS LIMITED,22/10/2018,"2,050.00",63000-PROFESSIONAL FEES AND SERVICES,SCHOOL IMPROVEMENT-VIRTUAL SCHOOL,Supplies & Services,Revenue
Walsall Council,http://opendatacommunities.org/id/metropolitan-district-council/walsall,WC97-51,31/10/2018,Adult Social Care,REDACTED,08/10/2018,"1,621.16",73506-DIRECT PAYMENT,LEARNING DISABILITY SUPPORT,Third Party Payments,Revenue
Walsall Council,http://opendatacommunities.org/id/metropolitan-district-council/walsall,WC97-52,31/10/2018,Adult Social Care,REDACTED,08/10/2018,"1,999.20",73506-DIRECT PAYMENT,LEARNING DISABILITY SUPPORT,Third Party Payments,Revenue
Walsall Council,http://opendatacommunities.org/id/metropolitan-district-council/walsall,WC97-53,31/10/2018,Childrens,ABLEWELL CARS,04/10/2018,"5,991.56",52000-WITH DRIVER-HIRE OF VEHICLES,HOME TO SCHOOL TRANSPORT,Transport,Revenue
Walsall Council,http://opendatacommunities.org/id/metropolitan-district-council/walsall,WC97-54,31/10/2018,Childrens,ABS TAXIS (ALDRIDGE),17/10/2018,788.80,52000-WITH DRIVER-HIRE OF VEHICLES,HOME TO SCHOOL TRANSPORT,Transport,Revenue
Walsall Council,http://opendatacommunities.org/id/metropolitan-district-council/walsall,WC97-55,31/10/2018,Childrens,ABU BAKR NURSERY,12/10/2018,640.00,77200-TRANSFER PAYMENTS-OTHER SCHOOLCHILDREN/STUDENT RELATED ITEMS,EARLY YEARS - SOCIAL INCLUSION FUND - 2 YR OLDS,Transfer Payments,Revenue
Walsall Council,http://opendatacommunities.org/id/metropolitan-district-council/walsall,WC97-56,31/10/2018,Childrens,ABU BAKR NURSERY,26/10/2018,"9,101.88",66505-OTHER-GRANTS TO OTHER ORGS,EARLY YEARS - 2 YR OLDS,Third Party Payments,Revenue
Walsall Council,http://opendatacommunities.org/id/metropolitan-district-council/walsall,WC97-57,31/10/2018,Childrens,ABU BAKR NURSERY,26/10/2018,"9,135.00",66505-OTHER-GRANTS TO OTHER ORGS,EARLY YEARS - 3 YR OLDS,Third Party Payments,Revenue
Walsall Council,http://opendatacommunities.org/id/metropolitan-district-council/walsall,WC97-58,31/10/2018,Childrens,AC EDUCATION,25/10/2018,"2,375.00",63000-PROFESSIONAL FEES AND SERVICES,VIRTUAL SCHOOL CENTRAL PUPIL PREMIUM,Supplies & Services,Revenue
Walsall Council,http://opendatacommunities.org/id/metropolitan-district-council/walsall,WC97-59,31/10/2018,Adult Social Care,ACCORD - AGE MATTERS,08/10/2018,310.86,73506-DIRECT PAYMENT,PHYSICAL SUPPORT,Third Party Payments,Revenue
Walsall Council,http://opendatacommunities.org/id/metropolitan-district-council/walsall,WC97-60,31/10/2018,Adult Social Care,ACCORD HOUSING ASSOCIATION LTD#135,01/10/2018,276.70,73372-DOMICILIARY CARE,MENTAL HEALTH PACKAGE/PLACEMENT COSTS,Third Party Payments,Revenue
Walsall Council,http://opendatacommunities.org/id/metropolitan-district-council/walsall,WC97-61,31/10/2018,Adult Social Care,ACCORD HOUSING ASSOCIATION LTD#135,12/10/2018,452.62,73372-DOMICILIARY CARE,MENTAL HEALTH PACKAGE/PLACEMENT COSTS,Third Party Payments,Revenue
Walsall Council,http://opendatacommunities.org/id/metropolitan-district-council/walsall,WC97-62,31/10/2018,Adult Social Care,ACCORD HOUSING ASSOCIATION LTD#135,01/10/2018,573.29,73372-DOMICILIARY CARE,OP PACKAGE/PLACEMENT COSTS,Third Party Payments,Revenue
Walsall Council,http://opendatacommunities.org/id/metropolitan-district-council/walsall,WC97-63,31/10/2018,Adult Social Care,ACCORD HOUSING ASSOCIATION LTD#135,02/10/2018,596.92,73372-DOMICILIARY CARE,MENTAL HEALTH PACKAGE/PLACEMENT COSTS,Third Party Payments,Revenue
Walsall Council,http://opendatacommunities.org/id/metropolitan-district-council/walsall,WC97-64,31/10/2018,Adult Social Care,ACCORD HOUSING ASSOCIATION LTD#135,12/10/2018,604.48,73372-DOMICILIARY CARE,MENTAL HEALTH PACKAGE/PLACEMENT COSTS,Third Party Payments,Revenue
Walsall Council,http://opendatacommunities.org/id/metropolitan-district-council/walsall,WC97-65,31/10/2018,Adult Social Care,ACCORD HOUSING ASSOCIATION LTD#135,02/10/2018,661.12,73372-DOMICILIARY CARE,MENTAL HEALTH PACKAGE/PLACEMENT COSTS,Third Party Payments,Revenue
Walsall Council,http://opendatacommunities.org/id/metropolitan-district-council/walsall,WC97-66,31/10/2018,Adult Social Care,ACCORD HOUSING ASSOCIATION LTD#135,01/10/2018,663.06,73372-DOMICILIARY CARE,OP PACKAGE/PLACEMENT COSTS,Third Party Payments,Revenue
Walsall Council,http://opendatacommunities.org/id/metropolitan-district-council/walsall,WC97-67,31/10/2018,Adult Social Care,ACCORD HOUSING ASSOCIATION LTD#135,02/10/2018,793.36,73372-DOMICILIARY CARE,MENTAL HEALTH PACKAGE/PLACEMENT COSTS,Third Party Payments,Revenue
Walsall Council,http://opendatacommunities.org/id/metropolitan-district-council/walsall,WC97-68,31/10/2018,Adult Social Care,ACCORD HOUSING ASSOCIATION LTD#135,12/10/2018,793.36,73372-DOMICILIARY CARE,MENTAL HEALTH PACKAGE/PLACEMENT COSTS,Third Party Payments,Revenue
Walsall Council,http://opendatacommunities.org/id/metropolitan-district-council/walsall,WC97-69,31/10/2018,Adult Social Care,ACCORD HOUSING ASSOCIATION LTD#135,12/10/2018,982.28,73372-DOMICILIARY CARE,MENTAL HEALTH PACKAGE/PLACEMENT COSTS,Third Party Payments,Revenue
Walsall Council,http://opendatacommunities.org/id/metropolitan-district-council/walsall,WC97-70,31/10/2018,Adult Social Care,ACCORD HOUSING ASSOCIATION LTD#135,12/10/2018,"1,133.40",73372-DOMICILIARY CARE,MENTAL HEALTH PACKAGE/PLACEMENT COSTS,Third Party Payments,Revenue
Walsall Council,http://opendatacommunities.org/id/metropolitan-district-council/walsall,WC97-71,31/10/2018,Adult Social Care,ACCORD HOUSING ASSOCIATION LTD#135,01/10/2018,"1,227.84",73372-DOMICILIARY CARE,MENTAL HEALTH PACKAGE/PLACEMENT COSTS,Third Party Payments,Revenue
Walsall Council,http://opendatacommunities.org/id/metropolitan-district-council/walsall,WC97-72,31/10/2018,Adult Social Care,ACCORD HOUSING ASSOCIATION LTD#135,02/10/2018,"1,322.28",73372-DOMICILIARY CARE,MENTAL HEALTH PACKAGE/PLACEMENT COSTS,Third Party Payments,Revenue
Walsall Council,http://opendatacommunities.org/id/metropolitan-district-council/walsall,WC97-73,31/10/2018,Adult Social Care,ACCORD HOUSING ASSOCIATION LTD#135,12/10/2018,"1,322.28",73372-DOMICILIARY CARE,MENTAL HEALTH PACKAGE/PLACEMENT COSTS,Third Party Payments,Revenue
Walsall Council,http://opendatacommunities.org/id/metropolitan-district-council/walsall,WC97-74,31/10/2018,Adult Social Care,ACCORD HOUSING ASSOCIATION LTD#135,16/10/2018,"1,448.16",73500-RESIDENTIAL,LEARNING DISABILITY SUPPORT,Third Party Payments,Revenue
Walsall Council,http://opendatacommunities.org/id/metropolitan-district-council/walsall,WC97-75,31/10/2018,Adult Social Care,ACCORD HOUSING ASSOCIATION LTD#135,16/10/2018,"1,448.16",73500-RESIDENTIAL,LEARNING DISABILITY SUPPORT,Third Party Payments,Revenue
Walsall Council,http://opendatacommunities.org/id/metropolitan-district-council/walsall,WC97-76,31/10/2018,Adult Social Care,ACCORD HOUSING ASSOCIATION LTD#135,16/10/2018,"1,448.16",73500-RESIDENTIAL,LEARNING DISABILITY SUPPORT,Third Party Payments,Revenue
Walsall Council,http://opendatacommunities.org/id/metropolitan-district-council/walsall,WC97-77,31/10/2018,Adult Social Care,ACCORD HOUSING ASSOCIATION LTD#135,16/10/2018,"1,448.16",73500-RESIDENTIAL,LEARNING DISABILITY SUPPORT,Third Party Payments,Revenue
Walsall Council,http://opendatacommunities.org/id/metropolitan-district-council/walsall,WC97-78,31/10/2018,Adult Social Care,ACCORD HOUSING ASSOCIATION LTD#135,12/10/2018,"1,567.84",73372-DOMICILIARY CARE,MENTAL HEALTH PACKAGE/PLACEMENT COSTS,Third Party Payments,Revenue
Walsall Council,http://opendatacommunities.org/id/metropolitan-district-council/walsall,WC97-79,31/10/2018,Adult Social Care,ACCORD HOUSING ASSOCIATION LTD#135,03/10/2018,"1,930.89",73373-RESIDENTIAL & NURSING CARE PLACEMENTS,LD PACKAGE/PLACEMENT COSTS,Third Party Payments,Revenue
Walsall Council,http://opendatacommunities.org/id/metropolitan-district-council/walsall,WC97-80,31/10/2018,Adult Social Care,ACCORD HOUSING ASSOCIATION LTD#135,03/10/2018,"1,930.89",73373-RESIDENTIAL & NURSING CARE PLACEMENTS,LD PACKAGE/PLACEMENT COSTS,Third Party Payments,Revenue
Walsall Council,http://opendatacommunities.org/id/metropolitan-district-council/walsall,WC97-81,31/10/2018,Adult Social Care,ACCORD HOUSING ASSOCIATION LTD#135,03/10/2018,"1,930.89",73373-RESIDENTIAL & NURSING CARE PLACEMENTS,LD PACKAGE/PLACEMENT COSTS,Third Party Payments,Revenue
Walsall Council,http://opendatacommunities.org/id/metropolitan-district-council/walsall,WC97-82,31/10/2018,Adult Social Care,ACCORD HOUSING ASSOCIATION LTD#135,03/10/2018,"1,930.89",73373-RESIDENTIAL & NURSING CARE PLACEMENTS,LD PACKAGE/PLACEMENT COSTS,Third Party Payments,Revenue
Walsall Council,http://opendatacommunities.org/id/metropolitan-district-council/walsall,WC97-83,31/10/2018,Adult Social Care,ACCORD HOUSING ASSOCIATION LTD#135,15/10/2018,"2,021.17",73500-RESIDENTIAL,LEARNING DISABILITY SUPPORT,Third Party Payments,Revenue
Walsall Council,http://opendatacommunities.org/id/metropolitan-district-council/walsall,WC97-84,31/10/2018,Adult Social Care,ACCORD HOUSING ASSOCIATION LTD#135,15/10/2018,"2,021.17",73500-RESIDENTIAL,LEARNING DISABILITY SUPPORT,Third Party Payments,Revenue
Walsall Council,http://opendatacommunities.org/id/metropolitan-district-council/walsall,WC97-85,31/10/2018,Adult Social Care,ACCORD HOUSING ASSOCIATION LTD#135,15/10/2018,"2,021.17",73500-RESIDENTIAL,LEARNING DISABILITY SUPPORT,Third Party Payments,Revenue
Walsall Council,http://opendatacommunities.org/id/metropolitan-district-council/walsall,WC97-86,31/10/2018,Adult Social Care,ACCORD HOUSING ASSOCIATION LTD#135,03/10/2018,"2,694.89",73373-RESIDENTIAL & NURSING CARE PLACEMENTS,LD PACKAGE/PLACEMENT COSTS,Third Party Payments,Revenue
Walsall Council,http://opendatacommunities.org/id/metropolitan-district-council/walsall,WC97-87,31/10/2018,Adult Social Care,ACCORD HOUSING ASSOCIATION LTD#135,03/10/2018,"2,694.89",73373-RESIDENTIAL & NURSING CARE PLACEMENTS,LD PACKAGE/PLACEMENT COSTS,Third Party Payments,Revenue
Walsall Council,http://opendatacommunities.org/id/metropolitan-district-council/walsall,WC97-88,31/10/2018,Adult Social Care,ACCORD HOUSING ASSOCIATION LTD#135,03/10/2018,"2,694.89",73373-RESIDENTIAL & NURSING CARE PLACEMENTS,LD PACKAGE/PLACEMENT COSTS,Third Party Payments,Revenue
Walsall Council,http://opendatacommunities.org/id/metropolitan-district-council/walsall,WC97-89,31/10/2018,Adult Social Care,ACCORD HOUSING ASSOCIATION LTD#135,16/10/2018,"3,266.90",70000-SOCIAL SERVICES-FEES TO VOLUNTARY BODIES,COMPLEX NEEDS SLA,Third Party Payments,Revenue
Walsall Council,http://opendatacommunities.org/id/metropolitan-district-council/walsall,WC97-90,31/10/2018,Adult Social Care,ACCORD HOUSING ASSOCIATION LTD#135,29/10/2018,"4,056.00",70000-SOCIAL SERVICES-FEES TO VOLUNTARY BODIES,COMPLEX NEEDS SLA,Third Party Payments,Revenue
Walsall Council,http://opendatacommunities.org/id/metropolitan-district-council/walsall,WC97-91,31/10/2018,Adult Social Care,ACCORD HOUSING ASSOCIATION LTD#135,29/10/2018,"11,164.00",73365-BLOCK GROSS-SUPPORTING PEOPLE,OLDER PEOPLE SLA,Third Party Payments,Revenue
Walsall Council,http://opendatacommunities.org/id/metropolitan-district-council/walsall,WC97-92,31/10/2018,Adult Social Care,ACCORD HOUSING ASSOCIATION LTD#135,29/10/2018,"29,330.75",73365-BLOCK GROSS-SUPPORTING PEOPLE,OLDER PEOPLE SLA,Third Party Payments,Revenue
Walsall Council,http://opendatacommunities.org/id/metropolitan-district-council/walsall,WC97-93,31/10/2018,Resources and Transformation,ACCORD HOUSING ASSOCIATION LTD#135,17/10/2018,"33,785.38",73365-BLOCK GROSS-SUPPORTING PEOPLE,HOMELESSNESS PREVENTION STRATEGY,Third Party Payments,Revenue
Walsall Council,http://opendatacommunities.org/id/metropolitan-district-council/walsall,WC97-94,31/10/2018,Adult Social Care,ACCORD HOUSING ASSOCIATION LTD#135,18/10/2018,"36,249.35",73372-DOMICILIARY CARE,OP PACKAGE/PLACEMENT COSTS,Third Party Payments,Revenue
Walsall Council,http://opendatacommunities.org/id/metropolitan-district-council/walsall,WC97-95,31/10/2018,Resources and Transformation,ACCORD HOUSING ASSOCIATION LTD#135,17/10/2018,"47,217.50",73365-BLOCK GROSS-SUPPORTING PEOPLE,HOMELESS PREVENTION GRANT,Third Party Payments,Revenue
Walsall Council,http://opendatacommunities.org/id/metropolitan-district-council/walsall,WC97-96,31/10/2018,Adult Social Care,ACE CARE AGENCY,23/10/2018,726.34,73372-DOMICILIARY CARE,OP PACKAGE/PLACEMENT COSTS,Third Party Payments,Revenue
Walsall Council,http://opendatacommunities.org/id/metropolitan-district-council/walsall,WC97-97,31/10/2018,Adult Social Care,ACEPAY LTD (COTTAGE NUR HOME),15/10/2018,542.84,73500-RESIDENTIAL,PHYSICAL SUPPORT,Third Party Payments,Revenue
Walsall Council,http://opendatacommunities.org/id/metropolitan-district-council/walsall,WC97-98,31/10/2018,Adult Social Care,ACEPAY LTD (COTTAGE NUR HOME),03/10/2018,572.64,73019-PSE'S-PRIV CONTRACTOR FEES,TRANSITIONAL CARE SUPPORT TEAM,Third Party Payments,Revenue
Walsall Council,http://opendatacommunities.org/id/metropolitan-district-council/walsall,WC97-99,31/10/2018,Adult Social Care,ACEPAY LTD (COTTAGE NUR HOME),15/10/2018,655.61,73502-NURSING,PHYSICAL SUPPORT,Third Party Payments,Revenue
Walsall Council,http://opendatacommunities.org/id/metropolitan-district-council/walsall,WC97-100,31/10/2018,Adult Social Care,ACEPAY LTD (COTTAGE NUR HOME),15/10/2018,655.61,73502-NURSING,SUPPORT WITH MEMORY & COGNITION,Third Party Payments,Revenue
Walsall Council,http://opendatacommunities.org/id/metropolitan-district-council/walsall,WC97-101,31/10/2018,Adult Social Care,ACEPAY LTD (COTTAGE NUR HOME),15/10/2018,655.61,73502-NURSING,SUPPORT WITH MEMORY & COGNITION,Third Party Payments,Revenue
Walsall Council,http://opendatacommunities.org/id/metropolitan-district-council/walsall,WC97-102,31/10/2018,Adult Social Care,ACEPAY LTD (COTTAGE NUR HOME),15/10/2018,655.61,73502-NURSING,PHYSICAL SUPPORT,Third Party Payments,Revenue
Walsall Council,http://opendatacommunities.org/id/metropolitan-district-council/walsall,WC97-103,31/10/2018,Adult Social Care,ACEPAY LTD (COTTAGE NUR HOME),15/10/2018,655.61,73502-NURSING,PHYSICAL SUPPORT,Third Party Payments,Revenue
Walsall Council,http://opendatacommunities.org/id/metropolitan-district-council/walsall,WC97-104,31/10/2018,Adult Social Care,ACEPAY LTD (COTTAGE NUR HOME),15/10/2018,655.61,73502-NURSING,PHYSICAL SUPPORT,Third Party Payments,Revenue
Walsall Council,http://opendatacommunities.org/id/metropolitan-district-council/walsall,WC97-105,31/10/2018,Adult Social Care,ACEPAY LTD (COTTAGE NUR HOME),15/10/2018,655.61,73502-NURSING,PHYSICAL SUPPORT,Third Party Payments,Revenue
Walsall Council,http://opendatacommunities.org/id/metropolitan-district-council/walsall,WC97-106,31/10/2018,Adult Social Care,ACEPAY LTD (COTTAGE NUR HOME),15/10/2018,655.61,73502-NURSING,PHYSICAL SUPPORT,Third Party Payments,Revenue
Walsall Council,http://opendatacommunities.org/id/metropolitan-district-council/walsall,WC97-107,31/10/2018,Adult Social Care,ACEPAY LTD (COTTAGE NUR HOME),15/10/2018,728.46,73502-NURSING,PHYSICAL SUPPORT,Third Party Payments,Revenue
Walsall Council,http://opendatacommunities.org/id/metropolitan-district-council/walsall,WC97-108,31/10/2018,Adult Social Care,ACEPAY LTD (COTTAGE NUR HOME),03/10/2018,"2,672.32",73019-PSE'S-PRIV CONTRACTOR FEES,TRANSITIONAL CARE SUPPORT TEAM,Third Party Payments,Revenue
Walsall Council,http://opendatacommunities.org/id/metropolitan-district-council/walsall,WC97-109,31/10/2018,Adult Social Care,ACEPAY LTD (COTTAGE NUR HOME),22/10/2018,"4,676.56",73019-PSE'S-PRIV CONTRACTOR FEES,TRANSITIONAL CARE SUPPORT TEAM,Third Party Payments,Revenue
Walsall Council,http://opendatacommunities.org/id/metropolitan-district-council/walsall,WC97-110,31/10/2018,Adult Social Care,ACORN REST HOME,15/10/2018,542.84,73500-RESIDENTIAL,PHYSICAL SUPPORT,Third Party Payments,Revenue
Walsall Council,http://opendatacommunities.org/id/metropolitan-district-council/walsall,WC97-111,31/10/2018,Adult Social Care,ACORN REST HOME,15/10/2018,687.86,73500-RESIDENTIAL,SOCIAL SUPPORT,Third Party Payments,Revenue
Walsall Council,http://opendatacommunities.org/id/metropolitan-district-council/walsall,WC97-112,31/10/2018,Economy & Environment,ACTION DIGITAL MEDIA LTD,25/10/2018,230.00,"62521-INTERPRETATION,TRANSLATION & HUMAN AIDS TO TRANSCRIPTION",NAG - TEMPORARY EXHIBITIONS,Supplies & Services,Revenue
Walsall Council,http://opendatacommunities.org/id/metropolitan-district-council/walsall,WC97-113,31/10/2018,Childrens,ACTION FOR CHILDREN,17/10/2018,825.00,63000-PROFESSIONAL FEES AND SERVICES,ADOPTION TEAM,Supplies & Services,Revenue
Walsall Council,http://opendatacommunities.org/id/metropolitan-district-council/walsall,WC97-114,31/10/2018,Economy & Environment,ACTION MIDLANDS LTD,22/10/2018,150.00,63000-PROFESSIONAL FEES AND SERVICES,YEI (IMPACT) PROGRAMME,Supplies & Services,Revenue
Walsall Council,http://opendatacommunities.org/id/metropolitan-district-council/walsall,WC97-115,31/10/2018,Economy & Environment,ACTION MIDLANDS LTD,22/10/2018,150.00,63000-PROFESSIONAL FEES AND SERVICES,YEI ESF FUNDING,Supplies & Services,Revenue
Walsall Council,http://opendatacommunities.org/id/metropolitan-district-council/walsall,WC97-116,31/10/2018,Economy & Environment,ACTION MIDLANDS LTD,29/10/2018,150.00,63000-PROFESSIONAL FEES AND SERVICES,YEI (IMPACT) PROGRAMME,Supplies & Services,Revenue
Walsall Council,http://opendatacommunities.org/id/metropolitan-district-council/walsall,WC97-117,31/10/2018,Economy & Environment,ACTION MIDLANDS LTD,29/10/2018,150.00,63000-PROFESSIONAL FEES AND SERVICES,YEI ESF FUNDING,Supplies & Services,Revenue
Walsall Council,http://opendatacommunities.org/id/metropolitan-district-council/walsall,WC97-118,31/10/2018,Adult Social Care,ACTON BANKS LTD,16/10/2018,352.82,34305-AGENCY STAFF-EMPLOYEES,GOSCOTE,Employees,Revenue
Walsall Council,http://opendatacommunities.org/id/metropolitan-district-council/walsall,WC97-119,31/10/2018,Adult Social Care,ACTON BANKS LTD,09/10/2018,438.57,34305-AGENCY STAFF-EMPLOYEES,GOSCOTE,Employees,Revenue
Walsall Council,http://opendatacommunities.org/id/metropolitan-district-council/walsall,WC97-120,31/10/2018,Adult Social Care,ACTON BANKS LTD,29/10/2018,442.52,34305-AGENCY STAFF-EMPLOYEES,GOSCOTE,Employees,Revenue
Walsall Council,http://opendatacommunities.org/id/metropolitan-district-council/walsall,WC97-121,31/10/2018,Adult Social Care,REDACTED,08/10/2018,442.52,73506-DIRECT PAYMENT,LEARNING DISABILITY SUPPORT,Third Party Payments,Revenue
Walsall Council,http://opendatacommunities.org/id/metropolitan-district-council/walsall,WC97-122,31/10/2018,Resources and Transformation,ADELIE FOODS LTD,23/10/2018,760.35,61305-CATERING,TOWN HALL RESTAURANT BISTRO,Supplies & Services,Revenue
Walsall Council,http://opendatacommunities.org/id/metropolitan-district-council/walsall,WC97-123,31/10/2018,Resources and Transformation,ADELIE FOODS LTD,01/10/2018,811.30,61305-CATERING,TOWN HALL RESTAURANT BISTRO,Supplies & Services,Revenue
Walsall Council,http://opendatacommunities.org/id/metropolitan-district-council/walsall,WC97-124,31/10/2018,Resources and Transformation,ADELIE FOODS LTD,01/10/2018,811.86,61305-CATERING,TOWN HALL RESTAURANT BISTRO,Supplies & Services,Revenue
Walsall Council,http://opendatacommunities.org/id/metropolitan-district-council/walsall,WC97-125,31/10/2018,Resources and Transformation,ADELIE FOODS LTD,15/10/2018,854.48,61305-CATERING,TOWN HALL RESTAURANT BISTRO,Supplies & Services,Revenue
Walsall Council,http://opendatacommunities.org/id/metropolitan-district-council/walsall,WC97-126,31/10/2018,Resources and Transformation,ADELIE FOODS LTD,23/10/2018,948.39,61305-CATERING,TOWN HALL RESTAURANT BISTRO,Supplies & Services,Revenue
Walsall Council,http://opendatacommunities.org/id/metropolitan-district-council/walsall,WC97-127,31/10/2018,Resources and Transformation,ADELIE FOODS LTD,15/10/2018,984.22,61305-CATERING,TOWN HALL RESTAURANT BISTRO,Supplies & Services,Revenue
Walsall Council,http://opendatacommunities.org/id/metropolitan-district-council/walsall,WC97-128,31/10/2018,Adult Social Care,REDACTED,08/10/2018,"1,018.60",73506-DIRECT PAYMENT,PHYSICAL SUPPORT,Third Party Payments,Revenue
Walsall Council,http://opendatacommunities.org/id/metropolitan-district-council/walsall,WC97-129,31/10/2018,Childrens,REDACTED,19/10/2018,333.12,74510-RESIDENTS ORDERS,ADOPTION ALLOWANCES,Third Party Payments,Revenue
Walsall Council,http://opendatacommunities.org/id/metropolitan-district-council/walsall,WC97-130,31/10/2018,Childrens,REDACTED,19/10/2018,361.12,74510-RESIDENTS ORDERS,ADOPTION ALLOWANCES,Third Party Payments,Revenue
Walsall Council,http://opendatacommunities.org/id/metropolitan-district-council/walsall,WC97-131,31/10/2018,Adult Social Care,REDACTED,08/10/2018,"2,083.20",73506-DIRECT PAYMENT,LEARNING DISABILITY SUPPORT,Third Party Payments,Revenue
Walsall Council,http://opendatacommunities.org/id/metropolitan-district-council/walsall,WC97-132,31/10/2018,Economy & Environment,ADS ELECTRICAL & HIGHWAY SERVICES LTD,24/10/2018,"1,400.00",63000-PROFESSIONAL FEES AND SERVICES,FESTIVE DECORATIONS,Supplies & Services,Revenue
Walsall Council,http://opendatacommunities.org/id/metropolitan-district-council/walsall,WC97-133,31/10/2018,Adult Social Care,ADVANCE HEALTH CARE (UK) LTD,22/10/2018,-755.63,73372-DOMICILIARY CARE,OP PACKAGE/PLACEMENT COSTS,Third Party Payments,Revenue
Walsall Council,http://opendatacommunities.org/id/metropolitan-district-council/walsall,WC97-134,31/10/2018,Adult Social Care,ADVANCE HEALTH CARE (UK) LTD,11/10/2018,252.90,73025-PROFESSIONAL SERVICES-PRIV CONTRACTOR & OTHER AGENCIES,TRANSITIONAL CARE SUPPORT TEAM,Third Party Payments,Revenue
Walsall Council,http://opendatacommunities.org/id/metropolitan-district-council/walsall,WC97-135,31/10/2018,Adult Social Care,ADVANCE HEALTH CARE (UK) LTD,17/10/2018,252.90,73025-PROFESSIONAL SERVICES-PRIV CONTRACTOR & OTHER AGENCIES,TRANSITIONAL CARE SUPPORT TEAM,Third Party Payments,Revenue
Walsall Council,http://opendatacommunities.org/id/metropolitan-district-council/walsall,WC97-136,31/10/2018,Adult Social Care,ADVANCE HEALTH CARE (UK) LTD,17/10/2018,273.98,73025-PROFESSIONAL SERVICES-PRIV CONTRACTOR & OTHER AGENCIES,TRANSITIONAL CARE SUPPORT TEAM,Third Party Payments,Revenue
Walsall Council,http://opendatacommunities.org/id/metropolitan-district-council/walsall,WC97-137,31/10/2018,Adult Social Care,ADVANCE HEALTH CARE (UK) LTD,17/10/2018,277.49,73025-PROFESSIONAL SERVICES-PRIV CONTRACTOR & OTHER AGENCIES,TRANSITIONAL CARE SUPPORT TEAM,Third Party Payments,Revenue
Walsall Council,http://opendatacommunities.org/id/metropolitan-district-council/walsall,WC97-138,31/10/2018,Adult Social Care,ADVANCE HEALTH CARE (UK) LTD,17/10/2018,281.00,73025-PROFESSIONAL SERVICES-PRIV CONTRACTOR & OTHER AGENCIES,TRANSITIONAL CARE SUPPORT TEAM,Third Party Payments,Revenue
Walsall Council,http://opendatacommunities.org/id/metropolitan-district-council/walsall,WC97-139,31/10/2018,Adult Social Care,ADVANCE HEALTH CARE (UK) LTD,01/10/2018,288.03,73025-PROFESSIONAL SERVICES-PRIV CONTRACTOR & OTHER AGENCIES,TRANSITIONAL CARE SUPPORT TEAM,Third Party Payments,Revenue
Walsall Council,http://opendatacommunities.org/id/metropolitan-district-council/walsall,WC97-140,31/10/2018,Adult Social Care,ADVANCE HEALTH CARE (UK) LTD,01/10/2018,288.03,73025-PROFESSIONAL SERVICES-PRIV CONTRACTOR & OTHER AGENCIES,TRANSITIONAL CARE SUPPORT TEAM,Third Party Payments,Revenue
Walsall Council,http://opendatacommunities.org/id/metropolitan-district-council/walsall,WC97-141,31/10/2018,Adult Social Care,ADVANCE HEALTH CARE (UK) LTD,18/10/2018,288.03,73025-PROFESSIONAL SERVICES-PRIV CONTRACTOR & OTHER AGENCIES,TRANSITIONAL CARE SUPPORT TEAM,Third Party Payments,Revenue
Walsall Council,http://opendatacommunities.org/id/metropolitan-district-council/walsall,WC97-142,31/10/2018,Adult Social Care,ADVANCE HEALTH CARE (UK) LTD,29/10/2018,288.03,73025-PROFESSIONAL SERVICES-PRIV CONTRACTOR & OTHER AGENCIES,TRANSITIONAL CARE SUPPORT TEAM,Third Party Payments,Revenue
Walsall Council,http://opendatacommunities.org/id/metropolitan-district-council/walsall,WC97-143,31/10/2018,Adult Social Care,ADVANCE HEALTH CARE (UK) LTD,11/10/2018,295.05,73025-PROFESSIONAL SERVICES-PRIV CONTRACTOR & OTHER AGENCIES,TRANSITIONAL CARE SUPPORT TEAM,Third Party Payments,Revenue
Walsall Council,http://opendatacommunities.org/id/metropolitan-district-council/walsall,WC97-144,31/10/2018,Adult Social Care,ADVANCE HEALTH CARE (UK) LTD,18/10/2018,316.13,73025-PROFESSIONAL SERVICES-PRIV CONTRACTOR & OTHER AGENCIES,TRANSITIONAL CARE SUPPORT TEAM,Third Party Payments,Revenue
Walsall Council,http://opendatacommunities.org/id/metropolitan-district-council/walsall,WC97-145,31/10/2018,Adult Social Care,ADVANCE HEALTH CARE (UK) LTD,29/10/2018,316.13,73025-PROFESSIONAL SERVICES-PRIV CONTRACTOR & OTHER AGENCIES,TRANSITIONAL CARE SUPPORT TEAM,Third Party Payments,Revenue
Walsall Council,http://opendatacommunities.org/id/metropolitan-district-council/walsall,WC97-146,31/10/2018,Adult Social Care,ADVANCE HEALTH CARE (UK) LTD,02/10/2018,327.60,73372-DOMICILIARY CARE,OP PACKAGE/PLACEMENT COSTS,Third Party Payments,Revenue
Walsall Council,http://opendatacommunities.org/id/metropolitan-district-council/walsall,WC97-147,31/10/2018,Adult Social Care,ADVANCE HEALTH CARE (UK) LTD,18/10/2018,330.18,73025-PROFESSIONAL SERVICES-PRIV CONTRACTOR & OTHER AGENCIES,TRANSITIONAL CARE SUPPORT TEAM,Third Party Payments,Revenue
Walsall Council,http://opendatacommunities.org/id/metropolitan-district-council/walsall,WC97-148,31/10/2018,Adult Social Care,ADVANCE HEALTH CARE (UK) LTD,17/10/2018,344.08,73025-PROFESSIONAL SERVICES-PRIV CONTRACTOR & OTHER AGENCIES,TRANSITIONAL CARE SUPPORT TEAM,Third Party Payments,Revenue
Walsall Council,http://opendatacommunities.org/id/metropolitan-district-council/walsall,WC97-149,31/10/2018,Adult Social Care,ADVANCE HEALTH CARE (UK) LTD,18/10/2018,344.08,73025-PROFESSIONAL SERVICES-PRIV CONTRACTOR & OTHER AGENCIES,TRANSITIONAL CARE SUPPORT TEAM,Third Party Payments,Revenue
Walsall Council,http://opendatacommunities.org/id/metropolitan-district-council/walsall,WC97-150,31/10/2018,Adult Social Care,ADVANCE HEALTH CARE (UK) LTD,29/10/2018,344.08,73025-PROFESSIONAL SERVICES-PRIV CONTRACTOR & OTHER AGENCIES,TRANSITIONAL CARE SUPPORT TEAM,Third Party Payments,Revenue
Walsall Council,http://opendatacommunities.org/id/metropolitan-district-council/walsall,WC97-151,31/10/2018,Adult Social Care,ADVANCE HEALTH CARE (UK) LTD,01/10/2018,344.23,73025-PROFESSIONAL SERVICES-PRIV CONTRACTOR & OTHER AGENCIES,TRANSITIONAL CARE SUPPORT TEAM,Third Party Payments,Revenue
Walsall Council,http://opendatacommunities.org/id/metropolitan-district-council/walsall,WC97-152,31/10/2018,Adult Social Care,ADVANCE HEALTH CARE (UK) LTD,01/10/2018,344.23,73025-PROFESSIONAL SERVICES-PRIV CONTRACTOR & OTHER AGENCIES,TRANSITIONAL CARE SUPPORT TEAM,Third Party Payments,Revenue
Walsall Council,http://opendatacommunities.org/id/metropolitan-district-council/walsall,WC97-153,31/10/2018,Adult Social Care,ADVANCE HEALTH CARE (UK) LTD,01/10/2018,344.23,73025-PROFESSIONAL SERVICES-PRIV CONTRACTOR & OTHER AGENCIES,TRANSITIONAL CARE SUPPORT TEAM,Third Party Payments,Revenue
Walsall Council,http://opendatacommunities.org/id/metropolitan-district-council/walsall,WC97-154,31/10/2018,Adult Social Care,ADVANCE HEALTH CARE (UK) LTD,11/10/2018,344.23,73025-PROFESSIONAL SERVICES-PRIV CONTRACTOR & OTHER AGENCIES,TRANSITIONAL CARE SUPPORT TEAM,Third Party Payments,Revenue
Walsall Council,http://opendatacommunities.org/id/metropolitan-district-council/walsall,WC97-155,31/10/2018,Adult Social Care,ADVANCE HEALTH CARE (UK) LTD,17/10/2018,344.23,73025-PROFESSIONAL SERVICES-PRIV CONTRACTOR & OTHER AGENCIES,TRANSITIONAL CARE SUPPORT TEAM,Third Party Payments,Revenue
Walsall Council,http://opendatacommunities.org/id/metropolitan-district-council/walsall,WC97-156,31/10/2018,Adult Social Care,ADVANCE HEALTH CARE (UK) LTD,18/10/2018,344.23,73025-PROFESSIONAL SERVICES-PRIV CONTRACTOR & OTHER AGENCIES,TRANSITIONAL CARE SUPPORT TEAM,Third Party Payments,Revenue
Walsall Council,http://opendatacommunities.org/id/metropolitan-district-council/walsall,WC97-157,31/10/2018,Adult Social Care,ADVANCE HEALTH CARE (UK) LTD,18/10/2018,344.23,73025-PROFESSIONAL SERVICES-PRIV CONTRACTOR & OTHER AGENCIES,TRANSITIONAL CARE SUPPORT TEAM,Third Party Payments,Revenue
Walsall Council,http://opendatacommunities.org/id/metropolitan-district-council/walsall,WC97-158,31/10/2018,Adult Social Care,ADVANCE HEALTH CARE (UK) LTD,29/10/2018,344.23,73025-PROFESSIONAL SERVICES-PRIV CONTRACTOR & OTHER AGENCIES,TRANSITIONAL CARE SUPPORT TEAM,Third Party Payments,Revenue
Walsall Council,http://opendatacommunities.org/id/metropolitan-district-council/walsall,WC97-159,31/10/2018,Adult Social Care,ADVANCE HEALTH CARE (UK) LTD,29/10/2018,344.23,73025-PROFESSIONAL SERVICES-PRIV CONTRACTOR & OTHER AGENCIES,TRANSITIONAL CARE SUPPORT TEAM,Third Party Payments,Revenue
Walsall Council,http://opendatacommunities.org/id/metropolitan-district-council/walsall,WC97-160,31/10/2018,Adult Social Care,ADVANCE HEALTH CARE (UK) LTD,11/10/2018,351.25,73025-PROFESSIONAL SERVICES-PRIV CONTRACTOR & OTHER AGENCIES,TRANSITIONAL CARE SUPPORT TEAM,Third Party Payments,Revenue
Walsall Council,http://opendatacommunities.org/id/metropolitan-district-council/walsall,WC97-161,31/10/2018,Adult Social Care,ADVANCE HEALTH CARE (UK) LTD,01/10/2018,379.35,73025-PROFESSIONAL SERVICES-PRIV CONTRACTOR & OTHER AGENCIES,TRANSITIONAL CARE SUPPORT TEAM,Third Party Payments,Revenue
Walsall Council,http://opendatacommunities.org/id/metropolitan-district-council/walsall,WC97-162,31/10/2018,Adult Social Care,ADVANCE HEALTH CARE (UK) LTD,17/10/2018,414.48,73025-PROFESSIONAL SERVICES-PRIV CONTRACTOR & OTHER AGENCIES,TRANSITIONAL CARE SUPPORT TEAM,Third Party Payments,Revenue
Walsall Council,http://opendatacommunities.org/id/metropolitan-district-council/walsall,WC97-163,31/10/2018,Adult Social Care,ADVANCE HEALTH CARE (UK) LTD,01/10/2018,442.58,73025-PROFESSIONAL SERVICES-PRIV CONTRACTOR & OTHER AGENCIES,TRANSITIONAL CARE SUPPORT TEAM,Third Party Payments,Revenue
Walsall Council,http://opendatacommunities.org/id/metropolitan-district-council/walsall,WC97-164,31/10/2018,Adult Social Care,ADVANCE HEALTH CARE (UK) LTD,01/10/2018,442.58,73025-PROFESSIONAL SERVICES-PRIV CONTRACTOR & OTHER AGENCIES,TRANSITIONAL CARE SUPPORT TEAM,Third Party Payments,Revenue
Walsall Council,http://opendatacommunities.org/id/metropolitan-district-council/walsall,WC97-165,31/10/2018,Adult Social Care,ADVANCE HEALTH CARE (UK) LTD,01/10/2018,442.58,73025-PROFESSIONAL SERVICES-PRIV CONTRACTOR & OTHER AGENCIES,TRANSITIONAL CARE SUPPORT TEAM,Third Party Payments,Revenue
Walsall Council,http://opendatacommunities.org/id/metropolitan-district-council/walsall,WC97-166,31/10/2018,Adult Social Care,ADVANCE HEALTH CARE (UK) LTD,01/10/2018,442.58,73025-PROFESSIONAL SERVICES-PRIV CONTRACTOR & OTHER AGENCIES,TRANSITIONAL CARE SUPPORT TEAM,Third Party Payments,Revenue
Walsall Council,http://opendatacommunities.org/id/metropolitan-district-council/walsall,WC97-167,31/10/2018,Adult Social Care,ADVANCE HEALTH CARE (UK) LTD,01/10/2018,442.58,73025-PROFESSIONAL SERVICES-PRIV CONTRACTOR & OTHER AGENCIES,TRANSITIONAL CARE SUPPORT TEAM,Third Party Payments,Revenue
Walsall Council,http://opendatacommunities.org/id/metropolitan-district-council/walsall,WC97-168,31/10/2018,Adult Social Care,ADVANCE HEALTH CARE (UK) LTD,01/10/2018,442.58,73025-PROFESSIONAL SERVICES-PRIV CONTRACTOR & OTHER AGENCIES,TRANSITIONAL CARE SUPPORT TEAM,Third Party Payments,Revenue
Walsall Council,http://opendatacommunities.org/id/metropolitan-district-council/walsall,WC97-169,31/10/2018,Adult Social Care,ADVANCE HEALTH CARE (UK) LTD,01/10/2018,442.58,73025-PROFESSIONAL SERVICES-PRIV CONTRACTOR & OTHER AGENCIES,TRANSITIONAL CARE SUPPORT TEAM,Third Party Payments,Revenue
Walsall Council,http://opendatacommunities.org/id/metropolitan-district-council/walsall,WC97-170,31/10/2018,Adult Social Care,ADVANCE HEALTH CARE (UK) LTD,01/10/2018,442.58,73025-PROFESSIONAL SERVICES-PRIV CONTRACTOR & OTHER AGENCIES,TRANSITIONAL CARE SUPPORT TEAM,Third Party Payments,Revenue
Walsall Council,http://opendatacommunities.org/id/metropolitan-district-council/walsall,WC97-171,31/10/2018,Adult Social Care,ADVANCE HEALTH CARE (UK) LTD,01/10/2018,442.58,73025-PROFESSIONAL SERVICES-PRIV CONTRACTOR & OTHER AGENCIES,TRANSITIONAL CARE SUPPORT TEAM,Third Party Payments,Revenue
Walsall Council,http://opendatacommunities.org/id/metropolitan-district-council/walsall,WC97-172,31/10/2018,Adult Social Care,ADVANCE HEALTH CARE (UK) LTD,01/10/2018,442.58,73025-PROFESSIONAL SERVICES-PRIV CONTRACTOR & OTHER AGENCIES,TRANSITIONAL CARE SUPPORT TEAM,Third Party Payments,Revenue
Walsall Council,http://opendatacommunities.org/id/metropolitan-district-council/walsall,WC97-173,31/10/2018,Adult Social Care,ADVANCE HEALTH CARE (UK) LTD,01/10/2018,442.58,73025-PROFESSIONAL SERVICES-PRIV CONTRACTOR & OTHER AGENCIES,TRANSITIONAL CARE SUPPORT TEAM,Third Party Payments,Revenue
Walsall Council,http://opendatacommunities.org/id/metropolitan-district-council/walsall,WC97-174,31/10/2018,Adult Social Care,ADVANCE HEALTH CARE (UK) LTD,01/10/2018,442.58,73025-PROFESSIONAL SERVICES-PRIV CONTRACTOR & OTHER AGENCIES,TRANSITIONAL CARE SUPPORT TEAM,Third Party Payments,Revenue
Walsall Council,http://opendatacommunities.org/id/metropolitan-district-council/walsall,WC97-175,31/10/2018,Adult Social Care,ADVANCE HEALTH CARE (UK) LTD,01/10/2018,442.58,73025-PROFESSIONAL SERVICES-PRIV CONTRACTOR & OTHER AGENCIES,TRANSITIONAL CARE SUPPORT TEAM,Third Party Payments,Revenue
Walsall Council,http://opendatacommunities.org/id/metropolitan-district-council/walsall,WC97-176,31/10/2018,Adult Social Care,ADVANCE HEALTH CARE (UK) LTD,01/10/2018,442.58,73025-PROFESSIONAL SERVICES-PRIV CONTRACTOR & OTHER AGENCIES,TRANSITIONAL CARE SUPPORT TEAM,Third Party Payments,Revenue
Walsall Council,http://opendatacommunities.org/id/metropolitan-district-council/walsall,WC97-177,31/10/2018,Adult Social Care,ADVANCE HEALTH CARE (UK) LTD,01/10/2018,442.58,73025-PROFESSIONAL SERVICES-PRIV CONTRACTOR & OTHER AGENCIES,TRANSITIONAL CARE SUPPORT TEAM,Third Party Payments,Revenue
Walsall Council,http://opendatacommunities.org/id/metropolitan-district-council/walsall,WC97-178,31/10/2018,Adult Social Care,ADVANCE HEALTH CARE (UK) LTD,01/10/2018,442.58,73025-PROFESSIONAL SERVICES-PRIV CONTRACTOR & OTHER AGENCIES,TRANSITIONAL CARE SUPPORT TEAM,Third Party Payments,Revenue
Walsall Council,http://opendatacommunities.org/id/metropolitan-district-council/walsall,WC97-179,31/10/2018,Adult Social Care,ADVANCE HEALTH CARE (UK) LTD,01/10/2018,442.58,73025-PROFESSIONAL SERVICES-PRIV CONTRACTOR & OTHER AGENCIES,TRANSITIONAL CARE SUPPORT TEAM,Third Party Payments,Revenue
Walsall Council,http://opendatacommunities.org/id/metropolitan-district-council/walsall,WC97-180,31/10/2018,Adult Social Care,ADVANCE HEALTH CARE (UK) LTD,01/10/2018,442.58,73025-PROFESSIONAL SERVICES-PRIV CONTRACTOR & OTHER AGENCIES,TRANSITIONAL CARE SUPPORT TEAM,Third Party Payments,Revenue
Walsall Council,http://opendatacommunities.org/id/metropolitan-district-council/walsall,WC97-181,31/10/2018,Adult Social Care,ADVANCE HEALTH CARE (UK) LTD,01/10/2018,442.58,73025-PROFESSIONAL SERVICES-PRIV CONTRACTOR & OTHER AGENCIES,TRANSITIONAL CARE SUPPORT TEAM,Third Party Payments,Revenue
Walsall Council,http://opendatacommunities.org/id/metropolitan-district-council/walsall,WC97-182,31/10/2018,Adult Social Care,ADVANCE HEALTH CARE (UK) LTD,01/10/2018,442.58,73025-PROFESSIONAL SERVICES-PRIV CONTRACTOR & OTHER AGENCIES,TRANSITIONAL CARE SUPPORT TEAM,Third Party Payments,Revenue
Walsall Council,http://opendatacommunities.org/id/metropolitan-district-council/walsall,WC97-183,31/10/2018,Adult Social Care,ADVANCE HEALTH CARE (UK) LTD,01/10/2018,442.58,73025-PROFESSIONAL SERVICES-PRIV CONTRACTOR & OTHER AGENCIES,TRANSITIONAL CARE SUPPORT TEAM,Third Party Payments,Revenue
Walsall Council,http://opendatacommunities.org/id/metropolitan-district-council/walsall,WC97-184,31/10/2018,Adult Social Care,ADVANCE HEALTH CARE (UK) LTD,11/10/2018,442.58,73025-PROFESSIONAL SERVICES-PRIV CONTRACTOR & OTHER AGENCIES,TRANSITIONAL CARE SUPPORT TEAM,Third Party Payments,Revenue
Walsall Council,http://opendatacommunities.org/id/metropolitan-district-council/walsall,WC97-185,31/10/2018,Adult Social Care,ADVANCE HEALTH CARE (UK) LTD,11/10/2018,442.58,73025-PROFESSIONAL SERVICES-PRIV CONTRACTOR & OTHER AGENCIES,TRANSITIONAL CARE SUPPORT TEAM,Third Party Payments,Revenue
Walsall Council,http://opendatacommunities.org/id/metropolitan-district-council/walsall,WC97-186,31/10/2018,Adult Social Care,ADVANCE HEALTH CARE (UK) LTD,11/10/2018,442.58,73025-PROFESSIONAL SERVICES-PRIV CONTRACTOR & OTHER AGENCIES,TRANSITIONAL CARE SUPPORT TEAM,Third Party Payments,Revenue
Walsall Council,http://opendatacommunities.org/id/metropolitan-district-council/walsall,WC97-187,31/10/2018,Adult Social Care,ADVANCE HEALTH CARE (UK) LTD,11/10/2018,442.58,73025-PROFESSIONAL SERVICES-PRIV CONTRACTOR & OTHER AGENCIES,TRANSITIONAL CARE SUPPORT TEAM,Third Party Payments,Revenue
Walsall Council,http://opendatacommunities.org/id/metropolitan-district-council/walsall,WC97-188,31/10/2018,Adult Social Care,ADVANCE HEALTH CARE (UK) LTD,11/10/2018,442.58,73025-PROFESSIONAL SERVICES-PRIV CONTRACTOR & OTHER AGENCIES,TRANSITIONAL CARE SUPPORT TEAM,Third Party Payments,Revenue
Walsall Council,http://opendatacommunities.org/id/metropolitan-district-council/walsall,WC97-189,31/10/2018,Adult Social Care,ADVANCE HEALTH CARE (UK) LTD,11/10/2018,442.58,73025-PROFESSIONAL SERVICES-PRIV CONTRACTOR & OTHER AGENCIES,TRANSITIONAL CARE SUPPORT TEAM,Third Party Payments,Revenue
Walsall Council,http://opendatacommunities.org/id/metropolitan-district-council/walsall,WC97-190,31/10/2018,Adult Social Care,ADVANCE HEALTH CARE (UK) LTD,11/10/2018,442.58,73025-PROFESSIONAL SERVICES-PRIV CONTRACTOR & OTHER AGENCIES,TRANSITIONAL CARE SUPPORT TEAM,Third Party Payments,Revenue
Walsall Council,http://opendatacommunities.org/id/metropolitan-district-council/walsall,WC97-191,31/10/2018,Adult Social Care,ADVANCE HEALTH CARE (UK) LTD,11/10/2018,442.58,73025-PROFESSIONAL SERVICES-PRIV CONTRACTOR & OTHER AGENCIES,TRANSITIONAL CARE SUPPORT TEAM,Third Party Payments,Revenue
Walsall Council,http://opendatacommunities.org/id/metropolitan-district-council/walsall,WC97-192,31/10/2018,Adult Social Care,ADVANCE HEALTH CARE (UK) LTD,11/10/2018,442.58,73025-PROFESSIONAL SERVICES-PRIV CONTRACTOR & OTHER AGENCIES,TRANSITIONAL CARE SUPPORT TEAM,Third Party Payments,Revenue
Walsall Council,http://opendatacommunities.org/id/metropolitan-district-council/walsall,WC97-193,31/10/2018,Adult Social Care,ADVANCE HEALTH CARE (UK) LTD,11/10/2018,442.58,73025-PROFESSIONAL SERVICES-PRIV CONTRACTOR & OTHER AGENCIES,TRANSITIONAL CARE SUPPORT TEAM,Third Party Payments,Revenue
Walsall Council,http://opendatacommunities.org/id/metropolitan-district-council/walsall,WC97-194,31/10/2018,Adult Social Care,ADVANCE HEALTH CARE (UK) LTD,11/10/2018,442.58,73025-PROFESSIONAL SERVICES-PRIV CONTRACTOR & OTHER AGENCIES,TRANSITIONAL CARE SUPPORT TEAM,Third Party Payments,Revenue
Walsall Council,http://opendatacommunities.org/id/metropolitan-district-council/walsall,WC97-195,31/10/2018,Adult Social Care,ADVANCE HEALTH CARE (UK) LTD,11/10/2018,442.58,73025-PROFESSIONAL SERVICES-PRIV CONTRACTOR & OTHER AGENCIES,TRANSITIONAL CARE SUPPORT TEAM,Third Party Payments,Revenue
Walsall Council,http://opendatacommunities.org/id/metropolitan-district-council/walsall,WC97-196,31/10/2018,Adult Social Care,ADVANCE HEALTH CARE (UK) LTD,17/10/2018,442.58,73025-PROFESSIONAL SERVICES-PRIV CONTRACTOR & OTHER AGENCIES,TRANSITIONAL CARE SUPPORT TEAM,Third Party Payments,Revenue
Walsall Council,http://opendatacommunities.org/id/metropolitan-district-council/walsall,WC97-197,31/10/2018,Adult Social Care,ADVANCE HEALTH CARE (UK) LTD,17/10/2018,442.58,73025-PROFESSIONAL SERVICES-PRIV CONTRACTOR & OTHER AGENCIES,TRANSITIONAL CARE SUPPORT TEAM,Third Party Payments,Revenue
Walsall Council,http://opendatacommunities.org/id/metropolitan-district-council/walsall,WC97-198,31/10/2018,Adult Social Care,ADVANCE HEALTH CARE (UK) LTD,17/10/2018,442.58,73025-PROFESSIONAL SERVICES-PRIV CONTRACTOR & OTHER AGENCIES,TRANSITIONAL CARE SUPPORT TEAM,Third Party Payments,Revenue
Walsall Council,http://opendatacommunities.org/id/metropolitan-district-council/walsall,WC97-199,31/10/2018,Adult Social Care,ADVANCE HEALTH CARE (UK) LTD,17/10/2018,442.58,73025-PROFESSIONAL SERVICES-PRIV CONTRACTOR & OTHER AGENCIES,TRANSITIONAL CARE SUPPORT TEAM,Third Party Payments,Revenue
Walsall Council,http://opendatacommunities.org/id/metropolitan-district-council/walsall,WC97-200,31/10/2018,Adult Social Care,ADVANCE HEALTH CARE (UK) LTD,17/10/2018,442.58,73025-PROFESSIONAL SERVICES-PRIV CONTRACTOR & OTHER AGENCIES,TRANSITIONAL CARE SUPPORT TEAM,Third Party Payments,Revenue
Walsall Council,http://opendatacommunities.org/id/metropolitan-district-council/walsall,WC97-201,31/10/2018,Adult Social Care,ADVANCE HEALTH CARE (UK) LTD,17/10/2018,442.58,73025-PROFESSIONAL SERVICES-PRIV CONTRACTOR & OTHER AGENCIES,TRANSITIONAL CARE SUPPORT TEAM,Third Party Payments,Revenue
Walsall Council,http://opendatacommunities.org/id/metropolitan-district-council/walsall,WC97-202,31/10/2018,Adult Social Care,ADVANCE HEALTH CARE (UK) LTD,17/10/2018,442.58,73025-PROFESSIONAL SERVICES-PRIV CONTRACTOR & OTHER AGENCIES,TRANSITIONAL CARE SUPPORT TEAM,Third Party Payments,Revenue
Walsall Council,http://opendatacommunities.org/id/metropolitan-district-council/walsall,WC97-203,31/10/2018,Adult Social Care,ADVANCE HEALTH CARE (UK) LTD,17/10/2018,442.58,73025-PROFESSIONAL SERVICES-PRIV CONTRACTOR & OTHER AGENCIES,TRANSITIONAL CARE SUPPORT TEAM,Third Party Payments,Revenue
Walsall Council,http://opendatacommunities.org/id/metropolitan-district-council/walsall,WC97-204,31/10/2018,Adult Social Care,ADVANCE HEALTH CARE (UK) LTD,17/10/2018,442.58,73025-PROFESSIONAL SERVICES-PRIV CONTRACTOR & OTHER AGENCIES,TRANSITIONAL CARE SUPPORT TEAM,Third Party Payments,Revenue
Walsall Council,http://opendatacommunities.org/id/metropolitan-district-council/walsall,WC97-205,31/10/2018,Adult Social Care,ADVANCE HEALTH CARE (UK) LTD,17/10/2018,442.58,73025-PROFESSIONAL SERVICES-PRIV CONTRACTOR & OTHER AGENCIES,TRANSITIONAL CARE SUPPORT TEAM,Third Party Payments,Revenue
Walsall Council,http://opendatacommunities.org/id/metropolitan-district-council/walsall,WC97-206,31/10/2018,Adult Social Care,ADVANCE HEALTH CARE (UK) LTD,17/10/2018,442.58,73025-PROFESSIONAL SERVICES-PRIV CONTRACTOR & OTHER AGENCIES,TRANSITIONAL CARE SUPPORT TEAM,Third Party Payments,Revenue
Walsall Council,http://opendatacommunities.org/id/metropolitan-district-council/walsall,WC97-207,31/10/2018,Adult Social Care,ADVANCE HEALTH CARE (UK) LTD,17/10/2018,442.58,73025-PROFESSIONAL SERVICES-PRIV CONTRACTOR & OTHER AGENCIES,TRANSITIONAL CARE SUPPORT TEAM,Third Party Payments,Revenue
Walsall Council,http://opendatacommunities.org/id/metropolitan-district-council/walsall,WC97-208,31/10/2018,Adult Social Care,ADVANCE HEALTH CARE (UK) LTD,18/10/2018,442.58,73025-PROFESSIONAL SERVICES-PRIV CONTRACTOR & OTHER AGENCIES,TRANSITIONAL CARE SUPPORT TEAM,Third Party Payments,Revenue
Walsall Council,http://opendatacommunities.org/id/metropolitan-district-council/walsall,WC97-209,31/10/2018,Adult Social Care,ADVANCE HEALTH CARE (UK) LTD,18/10/2018,442.58,73025-PROFESSIONAL SERVICES-PRIV CONTRACTOR & OTHER AGENCIES,TRANSITIONAL CARE SUPPORT TEAM,Third Party Payments,Revenue
Walsall Council,http://opendatacommunities.org/id/metropolitan-district-council/walsall,WC97-210,31/10/2018,Adult Social Care,ADVANCE HEALTH CARE (UK) LTD,18/10/2018,442.58,73025-PROFESSIONAL SERVICES-PRIV CONTRACTOR & OTHER AGENCIES,TRANSITIONAL CARE SUPPORT TEAM,Third Party Payments,Revenue
Walsall Council,http://opendatacommunities.org/id/metropolitan-district-council/walsall,WC97-211,31/10/2018,Adult Social Care,ADVANCE HEALTH CARE (UK) LTD,18/10/2018,442.58,73025-PROFESSIONAL SERVICES-PRIV CONTRACTOR & OTHER AGENCIES,TRANSITIONAL CARE SUPPORT TEAM,Third Party Payments,Revenue
Walsall Council,http://opendatacommunities.org/id/metropolitan-district-council/walsall,WC97-212,31/10/2018,Adult Social Care,ADVANCE HEALTH CARE (UK) LTD,18/10/2018,442.58,73025-PROFESSIONAL SERVICES-PRIV CONTRACTOR & OTHER AGENCIES,TRANSITIONAL CARE SUPPORT TEAM,Third Party Payments,Revenue
Walsall Council,http://opendatacommunities.org/id/metropolitan-district-council/walsall,WC97-213,31/10/2018,Adult Social Care,ADVANCE HEALTH CARE (UK) LTD,18/10/2018,442.58,73025-PROFESSIONAL SERVICES-PRIV CONTRACTOR & OTHER AGENCIES,TRANSITIONAL CARE SUPPORT TEAM,Third Party Payments,Revenue
Walsall Council,http://opendatacommunities.org/id/metropolitan-district-council/walsall,WC97-214,31/10/2018,Adult Social Care,ADVANCE HEALTH CARE (UK) LTD,18/10/2018,442.58,73025-PROFESSIONAL SERVICES-PRIV CONTRACTOR & OTHER AGENCIES,TRANSITIONAL CARE SUPPORT TEAM,Third Party Payments,Revenue
Walsall Council,http://opendatacommunities.org/id/metropolitan-district-council/walsall,WC97-215,31/10/2018,Adult Social Care,ADVANCE HEALTH CARE (UK) LTD,29/10/2018,442.58,73025-PROFESSIONAL SERVICES-PRIV CONTRACTOR & OTHER AGENCIES,TRANSITIONAL CARE SUPPORT TEAM,Third Party Payments,Revenue
Walsall Council,http://opendatacommunities.org/id/metropolitan-district-council/walsall,WC97-216,31/10/2018,Adult Social Care,ADVANCE HEALTH CARE (UK) LTD,29/10/2018,442.58,73025-PROFESSIONAL SERVICES-PRIV CONTRACTOR & OTHER AGENCIES,TRANSITIONAL CARE SUPPORT TEAM,Third Party Payments,Revenue
Walsall Council,http://opendatacommunities.org/id/metropolitan-district-council/walsall,WC97-217,31/10/2018,Adult Social Care,ADVANCE HEALTH CARE (UK) LTD,29/10/2018,442.58,73025-PROFESSIONAL SERVICES-PRIV CONTRACTOR & OTHER AGENCIES,TRANSITIONAL CARE SUPPORT TEAM,Third Party Payments,Revenue
Walsall Council,http://opendatacommunities.org/id/metropolitan-district-council/walsall,WC97-218,31/10/2018,Adult Social Care,ADVANCE HEALTH CARE (UK) LTD,29/10/2018,442.58,73025-PROFESSIONAL SERVICES-PRIV CONTRACTOR & OTHER AGENCIES,TRANSITIONAL CARE SUPPORT TEAM,Third Party Payments,Revenue
Walsall Council,http://opendatacommunities.org/id/metropolitan-district-council/walsall,WC97-219,31/10/2018,Adult Social Care,ADVANCE HEALTH CARE (UK) LTD,29/10/2018,442.58,73025-PROFESSIONAL SERVICES-PRIV CONTRACTOR & OTHER AGENCIES,TRANSITIONAL CARE SUPPORT TEAM,Third Party Payments,Revenue
Walsall Council,http://opendatacommunities.org/id/metropolitan-district-council/walsall,WC97-220,31/10/2018,Adult Social Care,ADVANCE HEALTH CARE (UK) LTD,29/10/2018,446.09,73025-PROFESSIONAL SERVICES-PRIV CONTRACTOR & OTHER AGENCIES,TRANSITIONAL CARE SUPPORT TEAM,Third Party Payments,Revenue
Walsall Council,http://opendatacommunities.org/id/metropolitan-district-council/walsall,WC97-221,31/10/2018,Adult Social Care,ADVANCE HEALTH CARE (UK) LTD,01/10/2018,449.60,73025-PROFESSIONAL SERVICES-PRIV CONTRACTOR & OTHER AGENCIES,TRANSITIONAL CARE SUPPORT TEAM,Third Party Payments,Revenue
Walsall Council,http://opendatacommunities.org/id/metropolitan-district-council/walsall,WC97-222,31/10/2018,Adult Social Care,ADVANCE HEALTH CARE (UK) LTD,01/10/2018,456.63,73025-PROFESSIONAL SERVICES-PRIV CONTRACTOR & OTHER AGENCIES,TRANSITIONAL CARE SUPPORT TEAM,Third Party Payments,Revenue
Walsall Council,http://opendatacommunities.org/id/metropolitan-district-council/walsall,WC97-223,31/10/2018,Adult Social Care,ADVANCE HEALTH CARE (UK) LTD,18/10/2018,456.63,73025-PROFESSIONAL SERVICES-PRIV CONTRACTOR & OTHER AGENCIES,COMMUNITY INTERMEDIATE CARE,Third Party Payments,Revenue
Walsall Council,http://opendatacommunities.org/id/metropolitan-district-council/walsall,WC97-224,31/10/2018,Adult Social Care,ADVANCE HEALTH CARE (UK) LTD,18/10/2018,456.63,73025-PROFESSIONAL SERVICES-PRIV CONTRACTOR & OTHER AGENCIES,TRANSITIONAL CARE SUPPORT TEAM,Third Party Payments,Revenue
Walsall Council,http://opendatacommunities.org/id/metropolitan-district-council/walsall,WC97-225,31/10/2018,Adult Social Care,ADVANCE HEALTH CARE (UK) LTD,01/10/2018,463.65,73025-PROFESSIONAL SERVICES-PRIV CONTRACTOR & OTHER AGENCIES,TRANSITIONAL CARE SUPPORT TEAM,Third Party Payments,Revenue
Walsall Council,http://opendatacommunities.org/id/metropolitan-district-council/walsall,WC97-226,31/10/2018,Adult Social Care,ADVANCE HEALTH CARE (UK) LTD,11/10/2018,463.65,73025-PROFESSIONAL SERVICES-PRIV CONTRACTOR & OTHER AGENCIES,TRANSITIONAL CARE SUPPORT TEAM,Third Party Payments,Revenue
Walsall Council,http://opendatacommunities.org/id/metropolitan-district-council/walsall,WC97-227,31/10/2018,Adult Social Care,ADVANCE HEALTH CARE (UK) LTD,29/10/2018,463.65,73025-PROFESSIONAL SERVICES-PRIV CONTRACTOR & OTHER AGENCIES,TRANSITIONAL CARE SUPPORT TEAM,Third Party Payments,Revenue
Walsall Council,http://opendatacommunities.org/id/metropolitan-district-council/walsall,WC97-228,31/10/2018,Adult Social Care,ADVANCE HEALTH CARE (UK) LTD,01/10/2018,470.68,73025-PROFESSIONAL SERVICES-PRIV CONTRACTOR & OTHER AGENCIES,TRANSITIONAL CARE SUPPORT TEAM,Third Party Payments,Revenue
Walsall Council,http://opendatacommunities.org/id/metropolitan-district-council/walsall,WC97-229,31/10/2018,Adult Social Care,ADVANCE HEALTH CARE (UK) LTD,16/10/2018,505.80,73025-PROFESSIONAL SERVICES-PRIV CONTRACTOR & OTHER AGENCIES,RAPID RESPONSE,Third Party Payments,Revenue
Walsall Council,http://opendatacommunities.org/id/metropolitan-district-council/walsall,WC97-230,31/10/2018,Adult Social Care,ADVANCE HEALTH CARE (UK) LTD,15/10/2018,814.90,73025-PROFESSIONAL SERVICES-PRIV CONTRACTOR & OTHER AGENCIES,RAPID RESPONSE,Third Party Payments,Revenue
Walsall Council,http://opendatacommunities.org/id/metropolitan-district-council/walsall,WC97-231,31/10/2018,Adult Social Care,ADVANCE HEALTH CARE (UK) LTD,16/10/2018,899.20,73025-PROFESSIONAL SERVICES-PRIV CONTRACTOR & OTHER AGENCIES,RAPID RESPONSE,Third Party Payments,Revenue
Walsall Council,http://opendatacommunities.org/id/metropolitan-district-council/walsall,WC97-232,31/10/2018,Adult Social Care,ADVANCE HEALTH CARE (UK) LTD,01/10/2018,"1,011.60",73025-PROFESSIONAL SERVICES-PRIV CONTRACTOR & OTHER AGENCIES,TRANSITIONAL CARE SUPPORT TEAM,Third Party Payments,Revenue
Walsall Council,http://opendatacommunities.org/id/metropolitan-district-council/walsall,WC97-233,31/10/2018,Adult Social Care,ADVANCE HEALTH CARE (UK) LTD,04/10/2018,"1,545.50",73025-PROFESSIONAL SERVICES-PRIV CONTRACTOR & OTHER AGENCIES,RAPID RESPONSE,Third Party Payments,Revenue
Walsall Council,http://opendatacommunities.org/id/metropolitan-district-council/walsall,WC97-234,31/10/2018,Adult Social Care,ADVANCE HEALTH CARE (UK) LTD,18/10/2018,"79,964.97",73372-DOMICILIARY CARE,OP PACKAGE/PLACEMENT COSTS,Third Party Payments,Revenue
Walsall Council,http://opendatacommunities.org/id/metropolitan-district-council/walsall,WC97-235,31/10/2018,Resources and Transformation,ADVANCED CONTRACTS (MIDLANDS) LTD,01/10/2018,"1,684.00","40000-REPAIRS,ALTERATIONS & MAINTENANCE-PREM",CENTRAL OFFICE ACCOMMODATION,Premises,Revenue
Walsall Council,http://opendatacommunities.org/id/metropolitan-district-council/walsall,WC97-236,31/10/2018,Resources and Transformation,ADVANCED CONTRACTS (MIDLANDS) LTD,09/10/2018,"2,460.00","40000-REPAIRS,ALTERATIONS & MAINTENANCE-PREM",CENTRALISED MAINTENANCE,Premises,Revenue
Walsall Council,http://opendatacommunities.org/id/metropolitan-district-council/walsall,WC97-237,31/10/2018,Childrens,ADVENTURELAND DAY NURSERY,12/10/2018,640.00,77200-TRANSFER PAYMENTS-OTHER SCHOOLCHILDREN/STUDENT RELATED ITEMS,EARLY YEARS - SOCIAL INCLUSION FUND - 3/4 YR OLD,Transfer Payments,Revenue
Walsall Council,http://opendatacommunities.org/id/metropolitan-district-council/walsall,WC97-238,31/10/2018,Childrens,ADVENTURELAND DAY NURSERY,26/10/2018,"1,096.20",66505-OTHER-GRANTS TO OTHER ORGS,EARLY YEARS - 3 YR OLDS,Third Party Payments,Revenue
Walsall Council,http://opendatacommunities.org/id/metropolitan-district-council/walsall,WC97-239,31/10/2018,Childrens,ADVENTURELAND DAY NURSERY,26/10/2018,"1,100.40",66505-OTHER-GRANTS TO OTHER ORGS,EARLY YEARS - 2 YR OLDS,Third Party Payments,Revenue
Walsall Council,http://opendatacommunities.org/id/metropolitan-district-council/walsall,WC97-240,31/10/2018,Economy & Environment,AECOM LIMITED,01/10/2018,"2,650.00",01001-OTHER CONSULTANTS FEES,CFR 1281 M6 JUNCTION 10 DEVELOPMENT SCHEME,Capital,Capital
Walsall Council,http://opendatacommunities.org/id/metropolitan-district-council/walsall,WC97-241,31/10/2018,Economy & Environment,AECOM LIMITED,29/10/2018,"6,070.50",01001-OTHER CONSULTANTS FEES,CFR 1219 DARLASTON MONITORING AND EVALUATION,Capital,Capital
Walsall Council,http://opendatacommunities.org/id/metropolitan-district-council/walsall,WC97-242,31/10/2018,Childrens,AFTER ADOPTION,01/10/2018,"3,200.00",63000-PROFESSIONAL FEES AND SERVICES,ADOPTION TEAM,Supplies & Services,Revenue
Walsall Council,http://opendatacommunities.org/id/metropolitan-district-council/walsall,WC97-243,31/10/2018,Childrens,AFTER ADOPTION,01/10/2018,"8,450.00",73025-PROFESSIONAL SERVICES-PRIV CONTRACTOR & OTHER AGENCIES,ADOPTION TEAM,Third Party Payments,Revenue
Walsall Council,http://opendatacommunities.org/id/metropolitan-district-council/walsall,WC97-244,31/10/2018,Economy & Environment,AGILE APPLICATIONS LIMITED,17/10/2018,"26,084.28",63800-COMPUTER EQUIPMENT AND SUPPLIES,LLPG ICT PROJECT COSTS,Supplies & Services,Revenue
Walsall Council,http://opendatacommunities.org/id/metropolitan-district-council/walsall,WC97-245,31/10/2018,Adult Social Care,AGINCARE UK LTD,12/10/2018,"1,573.60",73372-DOMICILIARY CARE,OP PACKAGE/PLACEMENT COSTS,Third Party Payments,Revenue
Walsall Council,http://opendatacommunities.org/id/metropolitan-district-council/walsall,WC97-246,31/10/2018,Adult Social Care,REDACTED,08/10/2018,"2,092.80",73506-DIRECT PAYMENT,LEARNING DISABILITY SUPPORT,Third Party Payments,Revenue
Walsall Council,http://opendatacommunities.org/id/metropolitan-district-council/walsall,WC97-247,31/10/2018,Economy & Environment,AIRQUEE,03/10/2018,469.31,60007-REPAIR OF EQUIPMENT-EQUIPMENT,OAK PARK,Supplies & Services,Revenue
Walsall Council,http://opendatacommunities.org/id/metropolitan-district-council/walsall,WC97-248,31/10/2018,Adult Social Care,REDACTED,08/10/2018,"1,277.00",73506-DIRECT PAYMENT,PHYSICAL SUPPORT,Third Party Payments,Revenue
Walsall Council,http://opendatacommunities.org/id/metropolitan-district-council/walsall,WC97-249,31/10/2018,Adult Social Care,REDACTED,08/10/2018,786.80,73506-DIRECT PAYMENT,PHYSICAL SUPPORT,Third Party Payments,Revenue
Walsall Council,http://opendatacommunities.org/id/metropolitan-district-council/walsall,WC97-250,31/10/2018,Economy & Environment,REDACTED,04/10/2018,"2,000.00",62527-VISUAL ARTS,NAG - TEMPORARY EXHIBITIONS,Supplies & Services,Revenue
Walsall Council,http://opendatacommunities.org/id/metropolitan-district-council/walsall,WC97-251,31/10/2018,Childrens,ALBRIGHTON CARE LTD,08/10/2018,"9,980.00",74036-EXTERNAL RESIDENTIAL CARE-OTH AGENCY PROVISION,INDEPENDENT RESIDENTIAL HOMES,Third Party Payments,Revenue
Walsall Council,http://opendatacommunities.org/id/metropolitan-district-council/walsall,WC97-252,31/10/2018,Childrens,ALBRIGHTON CARE LTD,08/10/2018,"19,460.00",74036-EXTERNAL RESIDENTIAL CARE-OTH AGENCY PROVISION,INDEPENDENT RESIDENTIAL HOMES,Third Party Payments,Revenue
Walsall Council,http://opendatacommunities.org/id/metropolitan-district-council/walsall,WC97-253,31/10/2018,Economy & Environment,ALDERBROOK HEALTHCARE LTD,24/10/2018,276.90,63000-PROFESSIONAL FEES AND SERVICES,CORONERS SERVICE,Supplies & Services,Revenue
Walsall Council,http://opendatacommunities.org/id/metropolitan-district-council/walsall,WC97-254,31/10/2018,Economy & Environment,ALDERBROOK HEALTHCARE LTD,24/10/2018,990.10,63000-PROFESSIONAL FEES AND SERVICES,CORONERS SERVICE,Supplies & Services,Revenue
Walsall Council,http://opendatacommunities.org/id/metropolitan-district-council/walsall,WC97-255,31/10/2018,Economy & Environment,ALDERCROSS LIMITED,24/10/2018,475.00,64001-COURSE/CONFERENCE EXPENSES,REGENERATION MANAGEMENT,Supplies & Services,Revenue
Walsall Council,http://opendatacommunities.org/id/metropolitan-district-council/walsall,WC97-256,31/10/2018,Adult Social Care,ALDERGROVE MANOR LTD,16/10/2018,603.17,73501-RESIDENTIAL EMI,MENTAL HEALTH SUPPORT,Third Party Payments,Revenue
Walsall Council,http://opendatacommunities.org/id/metropolitan-district-council/walsall,WC97-257,31/10/2018,Adult Social Care,ALDERGROVE MANOR LTD,15/10/2018,655.61,73502-NURSING,PHYSICAL SUPPORT,Third Party Payments,Revenue
Walsall Council,http://opendatacommunities.org/id/metropolitan-district-council/walsall,WC97-258,31/10/2018,Adult Social Care,ALDERGROVE MANOR LTD,03/10/2018,"1,608.45",73373-RESIDENTIAL & NURSING CARE PLACEMENTS,MENTAL HEALTH PACKAGE/PLACEMENT COSTS,Third Party Payments,Revenue
Walsall Council,http://opendatacommunities.org/id/metropolitan-district-council/walsall,WC97-259,31/10/2018,Adult Social Care,ALDERGROVE MANOR LTD,03/10/2018,"1,748.30",73373-RESIDENTIAL & NURSING CARE PLACEMENTS,OP PACKAGE/PLACEMENT COSTS,Third Party Payments,Revenue
Walsall Council,http://opendatacommunities.org/id/metropolitan-district-council/walsall,WC97-260,31/10/2018,Childrens,ALDRIDGE & BARONS LIMITED,19/10/2018,"2,631.30",52000-WITH DRIVER-HIRE OF VEHICLES,HOME TO SCHOOL TRANSPORT,Transport,Revenue
Walsall Council,http://opendatacommunities.org/id/metropolitan-district-council/walsall,WC97-261,31/10/2018,Childrens,ALDRIDGE & BARONS LIMITED,04/10/2018,"10,042.08",52000-WITH DRIVER-HIRE OF VEHICLES,HOME TO SCHOOL TRANSPORT,Transport,Revenue
Walsall Council,http://opendatacommunities.org/id/metropolitan-district-council/walsall,WC97-262,31/10/2018,Childrens,ALDRIDGE & BARONS LIMITED,04/10/2018,"13,830.00",52000-WITH DRIVER-HIRE OF VEHICLES,HOME TO SCHOOL TRANSPORT,Transport,Revenue
Walsall Council,http://opendatacommunities.org/id/metropolitan-district-council/walsall,WC97-263,31/10/2018,Adult Social Care,REDACTED,08/10/2018,"1,348.80",73506-DIRECT PAYMENT,PHYSICAL SUPPORT,Third Party Payments,Revenue
Walsall Council,http://opendatacommunities.org/id/metropolitan-district-council/walsall,WC97-264,31/10/2018,Adult Social Care,ALEXANDRA HOUSE CARE SERVICES LTD T/A STONEBRIDGE NURSING HOME,15/10/2018,"2,287.75",73502-NURSING,LEARNING DISABILITY SUPPORT,Third Party Payments,Revenue
Walsall Council,http://opendatacommunities.org/id/metropolitan-district-council/walsall,WC97-265,31/10/2018,Adult Social Care,REDACTED,08/10/2018,"1,771.28",73506-DIRECT PAYMENT,PHYSICAL SUPPORT,Third Party Payments,Revenue
Walsall Council,http://opendatacommunities.org/id/metropolitan-district-council/walsall,WC97-266,31/10/2018,Childrens,REDACTED,09/10/2018,288.00,73506-DIRECT PAYMENT,FAMILY SUPPORT - DIRECT PAYMENTS,Third Party Payments,Revenue
Walsall Council,http://opendatacommunities.org/id/metropolitan-district-council/walsall,WC97-267,31/10/2018,Adult Social Care,REDACTED,24/10/2018,"1,301.64",73372-DOMICILIARY CARE,LD PACKAGE/PLACEMENT COSTS,Third Party Payments,Revenue
Walsall Council,http://opendatacommunities.org/id/metropolitan-district-council/walsall,WC97-268,31/10/2018,Economy & Environment,ALLAN HADDOW LTD,11/10/2018,"1,720.00",30030-EXTERNAL TRAINING,FLEET,Employees,Revenue
Walsall Council,http://opendatacommunities.org/id/metropolitan-district-council/walsall,WC97-269,31/10/2018,Economy & Environment,ALLSORTS OFFICE SUPPLIES LTD,26/10/2018,213.20,63800-COMPUTER EQUIPMENT AND SUPPLIES,EMPLOYMENT & SKILLS TEAM,Supplies & Services,Revenue
Walsall Council,http://opendatacommunities.org/id/metropolitan-district-council/walsall,WC97-270,31/10/2018,Resources and Transformation,ALLSORTS OFFICE SUPPLIES LTD,05/10/2018,"1,496.00",63800-COMPUTER EQUIPMENT AND SUPPLIES,RECHARGEABLE EQUIPMENT,Supplies & Services,Revenue
Walsall Council,http://opendatacommunities.org/id/metropolitan-district-council/walsall,WC97-271,31/10/2018,Adult Social Care,ALLSORTS OFFICE SUPPLIES LTD,01/10/2018,"1,600.00",60000-FURNITURE & EQUIPMENT,COMMUNITY ALARMS SERVICE,Supplies & Services,Revenue
Walsall Council,http://opendatacommunities.org/id/metropolitan-district-council/walsall,WC97-272,31/10/2018,Adult Social Care,ALMA COURT,15/10/2018,"1,285.71",73503-NURSING EMI,PHYSICAL SUPPORT,Third Party Payments,Revenue
Walsall Council,http://opendatacommunities.org/id/metropolitan-district-council/walsall,WC97-273,31/10/2018,Adult Social Care,ALMA COURT,15/10/2018,"1,833.93",73502-NURSING,PHYSICAL SUPPORT,Third Party Payments,Revenue
Walsall Council,http://opendatacommunities.org/id/metropolitan-district-council/walsall,WC97-274,31/10/2018,Childrens,ALMOZENE NURSERY & CHILDRENS CENTRE,11/10/2018,252.00,63120-CRECHE FACILITIES-SERVICES-FEES,SAFEGUARDING & FAMILY SUPPORT,Supplies & Services,Revenue
Walsall Council,http://opendatacommunities.org/id/metropolitan-district-council/walsall,WC97-275,31/10/2018,Adult Social Care,ALPHA HEALTH CARE LTD,15/10/2018,542.84,73500-RESIDENTIAL,MENTAL HEALTH SUPPORT,Third Party Payments,Revenue
Walsall Council,http://opendatacommunities.org/id/metropolitan-district-council/walsall,WC97-276,31/10/2018,Adult Social Care,ALPHA HEALTH CARE LTD,15/10/2018,591.43,73501-RESIDENTIAL EMI,PHYSICAL SUPPORT,Third Party Payments,Revenue
Walsall Council,http://opendatacommunities.org/id/metropolitan-district-council/walsall,WC97-277,31/10/2018,Adult Social Care,ALPHA HEALTH CARE LTD,08/10/2018,625.00,73019-PSE'S-PRIV CONTRACTOR FEES,TRANSITIONAL CARE SUPPORT TEAM,Third Party Payments,Revenue
Walsall Council,http://opendatacommunities.org/id/metropolitan-district-council/walsall,WC97-278,31/10/2018,Adult Social Care,ALPHA HEALTH CARE LTD,15/10/2018,655.61,73502-NURSING,PHYSICAL SUPPORT,Third Party Payments,Revenue
Walsall Council,http://opendatacommunities.org/id/metropolitan-district-council/walsall,WC97-279,31/10/2018,Adult Social Care,ALPHA HEALTH CARE LTD,15/10/2018,694.29,73501-RESIDENTIAL EMI,SUPPORT WITH MEMORY & COGNITION,Third Party Payments,Revenue
Walsall Council,http://opendatacommunities.org/id/metropolitan-district-council/walsall,WC97-280,31/10/2018,Adult Social Care,ALPHA HEALTH CARE LTD,15/10/2018,721.17,73503-NURSING EMI,MENTAL HEALTH SUPPORT,Third Party Payments,Revenue
Walsall Council,http://opendatacommunities.org/id/metropolitan-district-council/walsall,WC97-281,31/10/2018,Adult Social Care,ALPHA HEALTH CARE LTD,15/10/2018,721.17,73503-NURSING EMI,MENTAL HEALTH SUPPORT,Third Party Payments,Revenue
Walsall Council,http://opendatacommunities.org/id/metropolitan-district-council/walsall,WC97-282,31/10/2018,Adult Social Care,ALPHA HEALTH CARE LTD,15/10/2018,721.17,73503-NURSING EMI,PHYSICAL SUPPORT,Third Party Payments,Revenue
Walsall Council,http://opendatacommunities.org/id/metropolitan-district-council/walsall,WC97-283,31/10/2018,Adult Social Care,ALPHA HEALTH CARE LTD,15/10/2018,747.64,73502-NURSING,MENTAL HEALTH SUPPORT,Third Party Payments,Revenue
Walsall Council,http://opendatacommunities.org/id/metropolitan-district-council/walsall,WC97-284,31/10/2018,Adult Social Care,ALPHA HEALTH CARE LTD,15/10/2018,764.94,73503-NURSING EMI,PHYSICAL SUPPORT,Third Party Payments,Revenue
Walsall Council,http://opendatacommunities.org/id/metropolitan-district-council/walsall,WC97-285,31/10/2018,Adult Social Care,ALPHA HEALTH CARE LTD,15/10/2018,798.71,73502-NURSING,PHYSICAL SUPPORT,Third Party Payments,Revenue
Walsall Council,http://opendatacommunities.org/id/metropolitan-district-council/walsall,WC97-286,31/10/2018,Adult Social Care,ALPHA HEALTH CARE LTD,15/10/2018,864.27,73503-NURSING EMI,PHYSICAL SUPPORT,Third Party Payments,Revenue
Walsall Council,http://opendatacommunities.org/id/metropolitan-district-council/walsall,WC97-287,31/10/2018,Adult Social Care,ALPHA HEALTH CARE LTD,15/10/2018,889.51,73503-NURSING EMI,MENTAL HEALTH SUPPORT,Third Party Payments,Revenue
Walsall Council,http://opendatacommunities.org/id/metropolitan-district-council/walsall,WC97-288,31/10/2018,Adult Social Care,ALPHA HEALTH CARE LTD,15/10/2018,893.51,73503-NURSING EMI,PHYSICAL SUPPORT,Third Party Payments,Revenue
Walsall Council,http://opendatacommunities.org/id/metropolitan-district-council/walsall,WC97-289,31/10/2018,Adult Social Care,ALPHA HEALTH CARE LTD,15/10/2018,907.53,73503-NURSING EMI,PHYSICAL SUPPORT,Third Party Payments,Revenue
Walsall Council,http://opendatacommunities.org/id/metropolitan-district-council/walsall,WC97-290,31/10/2018,Adult Social Care,ALPHA HEALTH CARE LTD,15/10/2018,"1,748.66",73503-NURSING EMI,MENTAL HEALTH SUPPORT,Third Party Payments,Revenue
Walsall Council,http://opendatacommunities.org/id/metropolitan-district-council/walsall,WC97-291,31/10/2018,Adult Social Care,ALPHA HEALTH CARE LTD,15/10/2018,"2,250.00",73503-NURSING EMI,MENTAL HEALTH SUPPORT,Third Party Payments,Revenue
Walsall Council,http://opendatacommunities.org/id/metropolitan-district-council/walsall,WC97-292,31/10/2018,Adult Social Care,ALPHA HEALTH CARE LTD,18/10/2018,"3,857.14",73025-PROFESSIONAL SERVICES-PRIV CONTRACTOR & OTHER AGENCIES,HOLLYBANK,Third Party Payments,Revenue
Walsall Council,http://opendatacommunities.org/id/metropolitan-district-council/walsall,WC97-293,31/10/2018,Adult Social Care,ALPHA HEALTH CARE LTD,15/10/2018,"8,820.00",73501-RESIDENTIAL EMI,PHYSICAL SUPPORT,Third Party Payments,Revenue
Walsall Council,http://opendatacommunities.org/id/metropolitan-district-council/walsall,WC97-294,31/10/2018,Childrens,ALPHABIOLABS,26/10/2018,465.00,73014-LEGAL FEES-PRIV CONTRACTOR FEES,GENERAL MANAGEMENT SUPPORT (INC LEGAL),Third Party Payments,Revenue
Walsall Council,http://opendatacommunities.org/id/metropolitan-district-council/walsall,WC97-295,31/10/2018,Childrens,ALPHABIOLABS,26/10/2018,465.00,73014-LEGAL FEES-PRIV CONTRACTOR FEES,GENERAL MANAGEMENT SUPPORT (INC LEGAL),Third Party Payments,Revenue
Walsall Council,http://opendatacommunities.org/id/metropolitan-district-council/walsall,WC97-296,31/10/2018,Childrens,ALTUM RESIDENTIAL CARE LTD,08/10/2018,"6,964.29",74036-EXTERNAL RESIDENTIAL CARE-OTH AGENCY PROVISION,INDEPENDENT RESIDENTIAL HOMES,Third Party Payments,Revenue
Walsall Council,http://opendatacommunities.org/id/metropolitan-district-council/walsall,WC97-297,31/10/2018,Childrens,ALUMWELLIES NURSERY,12/10/2018,640.00,77200-TRANSFER PAYMENTS-OTHER SCHOOLCHILDREN/STUDENT RELATED ITEMS,EARLY YEARS - SOCIAL INCLUSION FUND - 2 YR OLDS,Transfer Payments,Revenue
Walsall Council,http://opendatacommunities.org/id/metropolitan-district-council/walsall,WC97-298,31/10/2018,Childrens,ALUMWELLIES NURSERY,12/10/2018,640.00,77200-TRANSFER PAYMENTS-OTHER SCHOOLCHILDREN/STUDENT RELATED ITEMS,EARLY YEARS - SOCIAL INCLUSION FUND - 3/4 YR OLD,Transfer Payments,Revenue
Walsall Council,http://opendatacommunities.org/id/metropolitan-district-council/walsall,WC97-299,31/10/2018,Childrens,REDACTED,19/10/2018,318.08,74510-RESIDENTS ORDERS,ADOPTION ALLOWANCES,Third Party Payments,Revenue
Walsall Council,http://opendatacommunities.org/id/metropolitan-district-council/walsall,WC97-300,31/10/2018,Childrens,REDACTED,19/10/2018,318.08,74510-RESIDENTS ORDERS,ADOPTION ALLOWANCES,Third Party Payments,Revenue
Walsall Council,http://opendatacommunities.org/id/metropolitan-district-council/walsall,WC97-301,31/10/2018,Adult Social Care,REDACTED,08/10/2018,"1,128.76",73506-DIRECT PAYMENT,LEARNING DISABILITY SUPPORT,Third Party Payments,Revenue
Walsall Council,http://opendatacommunities.org/id/metropolitan-district-council/walsall,WC97-302,31/10/2018,Adult Social Care,REDACTED,01/10/2018,"2,821.90",73506-DIRECT PAYMENT,LEARNING DISABILITY SUPPORT,Third Party Payments,Revenue
Walsall Council,http://opendatacommunities.org/id/metropolitan-district-council/walsall,WC97-303,31/10/2018,Childrens,REDACTED,19/10/2018,808.04,74009-ADOPTION ALLOWANCE,ADOPTION ALLOWANCES,Transfer Payments,Revenue
Walsall Council,http://opendatacommunities.org/id/metropolitan-district-council/walsall,WC97-304,31/10/2018,Childrens,REDACTED,08/10/2018,110.00,74503-BIRTHDAY ALLOWANCE-FOSTER CARERS,INTERNAL FOSTER CARE PROVISION,Transfer Payments,Revenue
Walsall Council,http://opendatacommunities.org/id/metropolitan-district-council/walsall,WC97-305,31/10/2018,Childrens,REDACTED,08/10/2018,492.85,74501-MAINTENANCE ALLOWANCE-FOSTER CARERS,INTERNAL FOSTER CARE PROVISION,Transfer Payments,Revenue
Walsall Council,http://opendatacommunities.org/id/metropolitan-district-council/walsall,WC97-306,31/10/2018,Childrens,REDACTED,08/10/2018,"1,000.00",74508-INTERNAL FOSTER CARERS-CARER FEES,INTERNAL FOSTER CARE PROVISION,Transfer Payments,Revenue
Walsall Council,http://opendatacommunities.org/id/metropolitan-district-council/walsall,WC97-307,31/10/2018,Childrens,AMANS TRAVEL LTD,05/10/2018,"16,131.00",52000-WITH DRIVER-HIRE OF VEHICLES,HOME TO SCHOOL TRANSPORT,Transport,Revenue
Walsall Council,http://opendatacommunities.org/id/metropolitan-district-council/walsall,WC97-308,31/10/2018,Adult Social Care,REDACTED,08/10/2018,897.60,73506-DIRECT PAYMENT,LEARNING DISABILITY SUPPORT,Third Party Payments,Revenue
Walsall Council,http://opendatacommunities.org/id/metropolitan-district-council/walsall,WC97-309,31/10/2018,Resources and Transformation,AMEY LG LIMITED,02/10/2018,300.26,60008-MAINTENANCE-FURNITURE & EQUIPMENT,CCTV,Supplies & Services,Revenue
Walsall Council,http://opendatacommunities.org/id/metropolitan-district-council/walsall,WC97-310,31/10/2018,Economy & Environment,AMEY LG LIMITED,01/10/2018,389.26,01002-PROJECT FEES,CFR 1281 BETTER BUS SERVICE IMPROVEMENTS,Capital,Capital
Walsall Council,http://opendatacommunities.org/id/metropolitan-district-council/walsall,WC97-311,31/10/2018,Economy & Environment,AMEY LG LIMITED,19/10/2018,413.39,73025-PROFESSIONAL SERVICES-PRIV CONTRACTOR & OTHER AGENCIES,SECTION 38 OF HIGHWAYS ACT - SUPERVISION,Third Party Payments,Revenue
Walsall Council,http://opendatacommunities.org/id/metropolitan-district-council/walsall,WC97-312,31/10/2018,Economy & Environment,AMEY LG LIMITED,15/10/2018,539.37,73025-PROFESSIONAL SERVICES-PRIV CONTRACTOR & OTHER AGENCIES,SECTION 38 OF HIGHWAYS ACT - SUPERVISION,Third Party Payments,Revenue
Walsall Council,http://opendatacommunities.org/id/metropolitan-district-council/walsall,WC97-313,31/10/2018,Economy & Environment,AMEY LG LIMITED,01/10/2018,578.09,62001-STATIONERY & GENERAL SUPPLIES-OFFICE EXP,VASS IMPLEMENTATION,Supplies & Services,Revenue
Walsall Council,http://opendatacommunities.org/id/metropolitan-district-council/walsall,WC97-314,31/10/2018,Resources and Transformation,AMEY LG LIMITED,01/10/2018,694.96,60008-MAINTENANCE-FURNITURE & EQUIPMENT,CCTV,Supplies & Services,Revenue
Walsall Council,http://opendatacommunities.org/id/metropolitan-district-council/walsall,WC97-315,31/10/2018,Economy & Environment,AMEY LG LIMITED,05/10/2018,949.27,01002-PROJECT FEES,CFR 1072 A461 SALTERS ROAD,Capital,Capital
Walsall Council,http://opendatacommunities.org/id/metropolitan-district-council/walsall,WC97-316,31/10/2018,Economy & Environment,AMEY LG LIMITED,01/10/2018,980.65,73025-PROFESSIONAL SERVICES-PRIV CONTRACTOR & OTHER AGENCIES,TRAFFIC MANAGEMENT,Third Party Payments,Revenue
Walsall Council,http://opendatacommunities.org/id/metropolitan-district-council/walsall,WC97-317,31/10/2018,Economy & Environment,AMEY LG LIMITED,15/10/2018,"1,633.50",01002-PROJECT FEES,CFR 1072 A461 SALTERS ROAD,Capital,Capital
Walsall Council,http://opendatacommunities.org/id/metropolitan-district-council/walsall,WC97-318,31/10/2018,Economy & Environment,AMEY LG LIMITED,15/10/2018,"2,859.54",01002-PROJECT FEES,CFR 1280 M6 J10 RESILIENCE PACKAGE NPIF,Capital,Capital
Walsall Council,http://opendatacommunities.org/id/metropolitan-district-council/walsall,WC97-319,31/10/2018,Economy & Environment,AMEY LG LIMITED,03/10/2018,"9,855.00",73025-PROFESSIONAL SERVICES-PRIV CONTRACTOR & OTHER AGENCIES,STREET LIGHTING PFI PROJECT,Third Party Payments,Revenue
Walsall Council,http://opendatacommunities.org/id/metropolitan-district-council/walsall,WC97-320,31/10/2018,Economy & Environment,AMEY LG LIMITED,10/10/2018,"10,886.52",73025-PROFESSIONAL SERVICES-PRIV CONTRACTOR & OTHER AGENCIES,TRAFFIC MANAGEMENT,Third Party Payments,Revenue
Walsall Council,http://opendatacommunities.org/id/metropolitan-district-council/walsall,WC97-321,31/10/2018,Economy & Environment,AMEY LG LIMITED,03/10/2018,"15,711.05",73025-PROFESSIONAL SERVICES-PRIV CONTRACTOR & OTHER AGENCIES,TRAFFIC MANAGEMENT,Third Party Payments,Revenue
Walsall Council,http://opendatacommunities.org/id/metropolitan-district-council/walsall,WC97-322,31/10/2018,Adult Social Care,REDACTED,08/10/2018,"1,133.44",73506-DIRECT PAYMENT,PHYSICAL SUPPORT,Third Party Payments,Revenue
Walsall Council,http://opendatacommunities.org/id/metropolitan-district-council/walsall,WC97-323,31/10/2018,Economy & Environment,AMX SOLUTIONS LIMITED,01/10/2018,999.80,64500-PUBLICATIONS/ORGANISATIONS-SUBSCRIPTIONS,STRUCTURES & GEOTECHNICS,Supplies & Services,Revenue
Walsall Council,http://opendatacommunities.org/id/metropolitan-district-council/walsall,WC97-324,31/10/2018,Childrens,REDACTED,19/10/2018,340.00,74508-INTERNAL FOSTER CARERS-CARER FEES,FAMILY & FRIENDS FOSTER CARE PROVISION,Transfer Payments,Revenue
Walsall Council,http://opendatacommunities.org/id/metropolitan-district-council/walsall,WC97-325,31/10/2018,Childrens,REDACTED,19/10/2018,600.00,74501-MAINTENANCE ALLOWANCE-FOSTER CARERS,FAMILY & FRIENDS FOSTER CARE PROVISION,Transfer Payments,Revenue
Walsall Council,http://opendatacommunities.org/id/metropolitan-district-council/walsall,WC97-326,31/10/2018,Childrens,REDACTED,19/10/2018,425.08,74510-RESIDENTS ORDERS,ADOPTION ALLOWANCES,Third Party Payments,Revenue
Walsall Council,http://opendatacommunities.org/id/metropolitan-district-council/walsall,WC97-327,31/10/2018,Adult Social Care,ANCHOR,15/10/2018,603.17,73501-RESIDENTIAL EMI,PHYSICAL SUPPORT,Third Party Payments,Revenue
Walsall Council,http://opendatacommunities.org/id/metropolitan-district-council/walsall,WC97-328,31/10/2018,Adult Social Care,ANCHOR,15/10/2018,667.46,73501-RESIDENTIAL EMI,SUPPORT WITH MEMORY & COGNITION,Third Party Payments,Revenue
Walsall Council,http://opendatacommunities.org/id/metropolitan-district-council/walsall,WC97-329,31/10/2018,Economy & Environment,ANDANTE LIVE,22/10/2018,390.60,63000-PROFESSIONAL FEES AND SERVICES,FOREST ARTS CENTRE,Supplies & Services,Revenue
Walsall Council,http://opendatacommunities.org/id/metropolitan-district-council/walsall,WC97-330,31/10/2018,Childrens,REDACTED,19/10/2018,314.44,74509-SPECIAL GUARDIANSHIP ORDERS,ADOPTION ALLOWANCES,Transfer Payments,Revenue
Walsall Council,http://opendatacommunities.org/id/metropolitan-district-council/walsall,WC97-331,31/10/2018,Childrens,REDACTED,08/10/2018,720.00,74501-MAINTENANCE ALLOWANCE-FOSTER CARERS,INTERNAL FOSTER CARE PROVISION,Transfer Payments,Revenue
Walsall Council,http://opendatacommunities.org/id/metropolitan-district-council/walsall,WC97-332,31/10/2018,Childrens,REDACTED,08/10/2018,"1,000.00",74508-INTERNAL FOSTER CARERS-CARER FEES,INTERNAL FOSTER CARE PROVISION,Transfer Payments,Revenue
Walsall Council,http://opendatacommunities.org/id/metropolitan-district-council/walsall,WC97-333,31/10/2018,Adult Social Care,REDACTED,08/10/2018,"1,771.28",73506-DIRECT PAYMENT,PHYSICAL SUPPORT,Third Party Payments,Revenue
Walsall Council,http://opendatacommunities.org/id/metropolitan-district-council/walsall,WC97-334,31/10/2018,Adult Social Care,ANGEL COURT RESIDENTIAL CARE HOME,15/10/2018,93.11,73504-SHORT STAY RESIDENTIAL,PHYSICAL SUPPORT,Third Party Payments,Revenue
Walsall Council,http://opendatacommunities.org/id/metropolitan-district-council/walsall,WC97-335,31/10/2018,Adult Social Care,ANGEL COURT RESIDENTIAL CARE HOME,15/10/2018,542.84,73500-RESIDENTIAL,PHYSICAL SUPPORT,Third Party Payments,Revenue
Walsall Council,http://opendatacommunities.org/id/metropolitan-district-council/walsall,WC97-336,31/10/2018,Adult Social Care,ANGEL COURT RESIDENTIAL CARE HOME,15/10/2018,542.84,73500-RESIDENTIAL,PHYSICAL SUPPORT,Third Party Payments,Revenue
Walsall Council,http://opendatacommunities.org/id/metropolitan-district-council/walsall,WC97-337,31/10/2018,Adult Social Care,ANGEL COURT RESIDENTIAL CARE HOME,15/10/2018,603.17,73501-RESIDENTIAL EMI,PHYSICAL SUPPORT,Third Party Payments,Revenue
Walsall Council,http://opendatacommunities.org/id/metropolitan-district-council/walsall,WC97-338,31/10/2018,Adult Social Care,ANGEL COURT RESIDENTIAL CARE HOME,15/10/2018,626.69,73501-RESIDENTIAL EMI,PHYSICAL SUPPORT,Third Party Payments,Revenue
Walsall Council,http://opendatacommunities.org/id/metropolitan-district-council/walsall,WC97-339,31/10/2018,Childrens,REDACTED,19/10/2018,368.76,74509-SPECIAL GUARDIANSHIP ORDERS,ADOPTION ALLOWANCES,Transfer Payments,Revenue
Walsall Council,http://opendatacommunities.org/id/metropolitan-district-council/walsall,WC97-340,31/10/2018,Childrens,REDACTED,19/10/2018,368.76,74509-SPECIAL GUARDIANSHIP ORDERS,ADOPTION ALLOWANCES,Transfer Payments,Revenue
Walsall Council,http://opendatacommunities.org/id/metropolitan-district-council/walsall,WC97-341,31/10/2018,Childrens,REDACTED,19/10/2018,500.16,74509-SPECIAL GUARDIANSHIP ORDERS,ADOPTION ALLOWANCES,Transfer Payments,Revenue
Walsall Council,http://opendatacommunities.org/id/metropolitan-district-council/walsall,WC97-342,31/10/2018,Childrens,REDACTED,19/10/2018,312.04,74509-SPECIAL GUARDIANSHIP ORDERS,ADOPTION ALLOWANCES,Transfer Payments,Revenue
Walsall Council,http://opendatacommunities.org/id/metropolitan-district-council/walsall,WC97-343,31/10/2018,Childrens,ANGELS AND BUTTERFLIES CHILDMINDING,26/10/2018,"1,100.40",66505-OTHER-GRANTS TO OTHER ORGS,EARLY YEARS - 2 YR OLDS,Third Party Payments,Revenue
Walsall Council,http://opendatacommunities.org/id/metropolitan-district-council/walsall,WC97-344,31/10/2018,Childrens,ANGELS WITHOUT WINGS,17/10/2018,"4,207.50",63000-PROFESSIONAL FEES AND SERVICES,FAMILY PLACEMENTS,Supplies & Services,Revenue
Walsall Council,http://opendatacommunities.org/id/metropolitan-district-council/walsall,WC97-345,31/10/2018,Childrens,ANGELS WITHOUT WINGS,17/10/2018,"4,207.50",63000-PROFESSIONAL FEES AND SERVICES,FAMILY PLACEMENTS,Supplies & Services,Revenue
Walsall Council,http://opendatacommunities.org/id/metropolitan-district-council/walsall,WC97-346,31/10/2018,Childrens,ANGELS WITHOUT WINGS,17/10/2018,"4,252.50",63000-PROFESSIONAL FEES AND SERVICES,FAMILY PLACEMENTS,Supplies & Services,Revenue
Walsall Council,http://opendatacommunities.org/id/metropolitan-district-council/walsall,WC97-347,31/10/2018,Adult Social Care,REDACTED,08/10/2018,327.36,73506-DIRECT PAYMENT,LEARNING DISABILITY SUPPORT,Third Party Payments,Revenue
Walsall Council,http://opendatacommunities.org/id/metropolitan-district-council/walsall,WC97-348,31/10/2018,Adult Social Care,REDACTED,08/10/2018,"1,152.12",73506-DIRECT PAYMENT,PHYSICAL SUPPORT,Third Party Payments,Revenue
Walsall Council,http://opendatacommunities.org/id/metropolitan-district-council/walsall,WC97-349,31/10/2018,Adult Social Care,ANSON COURT RESIDENTIAL HOME,15/10/2018,572.21,73500-RESIDENTIAL,SOCIAL SUPPORT,Third Party Payments,Revenue
Walsall Council,http://opendatacommunities.org/id/metropolitan-district-council/walsall,WC97-350,31/10/2018,Adult Social Care,ANSON COURT RESIDENTIAL HOME,15/10/2018,603.17,73501-RESIDENTIAL EMI,PHYSICAL SUPPORT,Third Party Payments,Revenue
Walsall Council,http://opendatacommunities.org/id/metropolitan-district-council/walsall,WC97-351,31/10/2018,Adult Social Care,ANSON COURT RESIDENTIAL HOME,15/10/2018,603.17,73501-RESIDENTIAL EMI,MENTAL HEALTH SUPPORT,Third Party Payments,Revenue
Walsall Council,http://opendatacommunities.org/id/metropolitan-district-council/walsall,WC97-352,31/10/2018,Adult Social Care,ANSON COURT RESIDENTIAL HOME,15/10/2018,603.17,73501-RESIDENTIAL EMI,MENTAL HEALTH SUPPORT,Third Party Payments,Revenue
Walsall Council,http://opendatacommunities.org/id/metropolitan-district-council/walsall,WC97-353,31/10/2018,Adult Social Care,ANSON COURT RESIDENTIAL HOME,15/10/2018,603.17,73501-RESIDENTIAL EMI,PHYSICAL SUPPORT,Third Party Payments,Revenue
Walsall Council,http://opendatacommunities.org/id/metropolitan-district-council/walsall,WC97-354,31/10/2018,Adult Social Care,ANSON COURT RESIDENTIAL HOME,15/10/2018,603.17,73501-RESIDENTIAL EMI,MENTAL HEALTH SUPPORT,Third Party Payments,Revenue
Walsall Council,http://opendatacommunities.org/id/metropolitan-district-council/walsall,WC97-355,31/10/2018,Adult Social Care,ANSON COURT RESIDENTIAL HOME,15/10/2018,603.17,73501-RESIDENTIAL EMI,PHYSICAL SUPPORT,Third Party Payments,Revenue
Walsall Council,http://opendatacommunities.org/id/metropolitan-district-council/walsall,WC97-356,31/10/2018,Adult Social Care,ANSON COURT RESIDENTIAL HOME,15/10/2018,603.17,73501-RESIDENTIAL EMI,PHYSICAL SUPPORT,Third Party Payments,Revenue
Walsall Council,http://opendatacommunities.org/id/metropolitan-district-council/walsall,WC97-357,31/10/2018,Adult Social Care,ANSON COURT RESIDENTIAL HOME,15/10/2018,603.17,73501-RESIDENTIAL EMI,SUPPORT WITH MEMORY & COGNITION,Third Party Payments,Revenue
Walsall Council,http://opendatacommunities.org/id/metropolitan-district-council/walsall,WC97-358,31/10/2018,Adult Social Care,ANSON COURT RESIDENTIAL HOME,15/10/2018,603.17,73501-RESIDENTIAL EMI,SUPPORT WITH MEMORY & COGNITION,Third Party Payments,Revenue
Walsall Council,http://opendatacommunities.org/id/metropolitan-district-council/walsall,WC97-359,31/10/2018,Adult Social Care,ANSON COURT RESIDENTIAL HOME,15/10/2018,603.17,73501-RESIDENTIAL EMI,SOCIAL SUPPORT,Third Party Payments,Revenue
Walsall Council,http://opendatacommunities.org/id/metropolitan-district-council/walsall,WC97-360,31/10/2018,Adult Social Care,ANSON COURT RESIDENTIAL HOME,15/10/2018,603.17,73501-RESIDENTIAL EMI,SUPPORT WITH MEMORY & COGNITION,Third Party Payments,Revenue
Walsall Council,http://opendatacommunities.org/id/metropolitan-district-council/walsall,WC97-361,31/10/2018,Adult Social Care,ANSON COURT RESIDENTIAL HOME,15/10/2018,603.17,73501-RESIDENTIAL EMI,SUPPORT WITH MEMORY & COGNITION,Third Party Payments,Revenue
Walsall Council,http://opendatacommunities.org/id/metropolitan-district-council/walsall,WC97-362,31/10/2018,Adult Social Care,ANSON COURT RESIDENTIAL HOME,15/10/2018,603.17,73501-RESIDENTIAL EMI,SOCIAL SUPPORT,Third Party Payments,Revenue
Walsall Council,http://opendatacommunities.org/id/metropolitan-district-council/walsall,WC97-363,31/10/2018,Adult Social Care,ANSON COURT RESIDENTIAL HOME,15/10/2018,628.88,73501-RESIDENTIAL EMI,SOCIAL SUPPORT,Third Party Payments,Revenue
Walsall Council,http://opendatacommunities.org/id/metropolitan-district-council/walsall,WC97-364,31/10/2018,Adult Social Care,ANSON COURT RESIDENTIAL HOME,15/10/2018,628.88,73501-RESIDENTIAL EMI,MENTAL HEALTH SUPPORT,Third Party Payments,Revenue
Walsall Council,http://opendatacommunities.org/id/metropolitan-district-council/walsall,WC97-365,31/10/2018,Adult Social Care,ANSON COURT RESIDENTIAL HOME,15/10/2018,628.88,73501-RESIDENTIAL EMI,PHYSICAL SUPPORT,Third Party Payments,Revenue
Walsall Council,http://opendatacommunities.org/id/metropolitan-district-council/walsall,WC97-366,31/10/2018,Adult Social Care,ANSON COURT RESIDENTIAL HOME,15/10/2018,628.88,73501-RESIDENTIAL EMI,PHYSICAL SUPPORT,Third Party Payments,Revenue
Walsall Council,http://opendatacommunities.org/id/metropolitan-district-council/walsall,WC97-367,31/10/2018,Adult Social Care,ANSON COURT RESIDENTIAL HOME,15/10/2018,641.74,73501-RESIDENTIAL EMI,PHYSICAL SUPPORT,Third Party Payments,Revenue
Walsall Council,http://opendatacommunities.org/id/metropolitan-district-council/walsall,WC97-368,31/10/2018,Adult Social Care,ANSON COURT RESIDENTIAL HOME,24/10/2018,938.26,73373-RESIDENTIAL & NURSING CARE PLACEMENTS,OP PACKAGE/PLACEMENT COSTS,Third Party Payments,Revenue
Walsall Council,http://opendatacommunities.org/id/metropolitan-district-council/walsall,WC97-369,31/10/2018,Adult Social Care,ANSON COURT RESIDENTIAL HOME,15/10/2018,"1,593.17",73501-RESIDENTIAL EMI,MENTAL HEALTH SUPPORT,Third Party Payments,Revenue
Walsall Council,http://opendatacommunities.org/id/metropolitan-district-council/walsall,WC97-370,31/10/2018,Adult Social Care,ANSON COURT RESIDENTIAL HOME,15/10/2018,"8,167.05",73501-RESIDENTIAL EMI,PHYSICAL SUPPORT,Third Party Payments,Revenue
Walsall Council,http://opendatacommunities.org/id/metropolitan-district-council/walsall,WC97-371,31/10/2018,Childrens,REDACTED,19/10/2018,604.00,74510-RESIDENTS ORDERS,ADOPTION ALLOWANCES,Third Party Payments,Revenue
Walsall Council,http://opendatacommunities.org/id/metropolitan-district-council/walsall,WC97-372,31/10/2018,Childrens,REDACTED,19/10/2018,333.12,74509-SPECIAL GUARDIANSHIP ORDERS,ADOPTION ALLOWANCES,Transfer Payments,Revenue
Walsall Council,http://opendatacommunities.org/id/metropolitan-district-council/walsall,WC97-373,31/10/2018,Economy & Environment,APCOA PARKING SERVICES (UK) LTD,01/10/2018,"42,252.54",73025-PROFESSIONAL SERVICES-PRIV CONTRACTOR & OTHER AGENCIES,PARKING SERVICES OFF-STREET,Third Party Payments,Revenue
Walsall Council,http://opendatacommunities.org/id/metropolitan-district-council/walsall,WC97-374,31/10/2018,Economy & Environment,APCOA PARKING SERVICES (UK) LTD,15/10/2018,"48,083.02",73025-PROFESSIONAL SERVICES-PRIV CONTRACTOR & OTHER AGENCIES,PARKING SERVICES OFF-STREET,Third Party Payments,Revenue
Walsall Council,http://opendatacommunities.org/id/metropolitan-district-council/walsall,WC97-375,31/10/2018,Childrens,AQUAID (BIRMINGHAM CENTRAL),12/10/2018,417.00,61009-BEVERAGES-PROVISIONS,PELSALL EDC,Supplies & Services,Revenue
Walsall Council,http://opendatacommunities.org/id/metropolitan-district-council/walsall,WC97-376,31/10/2018,Adult Social Care,ARBORETUM NURSING HOME.,15/10/2018,655.61,73502-NURSING,PHYSICAL SUPPORT,Third Party Payments,Revenue
Walsall Council,http://opendatacommunities.org/id/metropolitan-district-council/walsall,WC97-377,31/10/2018,Adult Social Care,ARBORETUM NURSING HOME.,15/10/2018,655.61,73502-NURSING,PHYSICAL SUPPORT,Third Party Payments,Revenue
Walsall Council,http://opendatacommunities.org/id/metropolitan-district-council/walsall,WC97-378,31/10/2018,Adult Social Care,ARBORETUM NURSING HOME.,15/10/2018,655.61,73502-NURSING,SUPPORT WITH MEMORY & COGNITION,Third Party Payments,Revenue
Walsall Council,http://opendatacommunities.org/id/metropolitan-district-council/walsall,WC97-379,31/10/2018,Adult Social Care,ARBORETUM NURSING HOME.,15/10/2018,655.61,73502-NURSING,PHYSICAL SUPPORT,Third Party Payments,Revenue
Walsall Council,http://opendatacommunities.org/id/metropolitan-district-council/walsall,WC97-380,31/10/2018,Adult Social Care,ARBORETUM NURSING HOME.,15/10/2018,681.32,73500-RESIDENTIAL,PHYSICAL SUPPORT,Third Party Payments,Revenue
Walsall Council,http://opendatacommunities.org/id/metropolitan-district-council/walsall,WC97-381,31/10/2018,Adult Social Care,ARBORETUM NURSING HOME.,15/10/2018,694.18,73502-NURSING,PHYSICAL SUPPORT,Third Party Payments,Revenue
Walsall Council,http://opendatacommunities.org/id/metropolitan-district-council/walsall,WC97-382,31/10/2018,Adult Social Care,ARBORETUM NURSING HOME.,16/10/2018,694.18,73502-NURSING,PHYSICAL SUPPORT,Third Party Payments,Revenue
Walsall Council,http://opendatacommunities.org/id/metropolitan-district-council/walsall,WC97-383,31/10/2018,Adult Social Care,ARBORETUM NURSING HOME.,01/10/2018,"8,940.00",73025-PROFESSIONAL SERVICES-PRIV CONTRACTOR & OTHER AGENCIES,TRANSITIONAL CARE SUPPORT TEAM,Third Party Payments,Revenue
Walsall Council,http://opendatacommunities.org/id/metropolitan-district-council/walsall,WC97-384,31/10/2018,Adult Social Care,ARBORETUM NURSING HOME.,01/10/2018,"14,900.00",73019-PSE'S-PRIV CONTRACTOR FEES,TRANSITIONAL CARE SUPPORT TEAM,Third Party Payments,Revenue
Walsall Council,http://opendatacommunities.org/id/metropolitan-district-council/walsall,WC97-385,31/10/2018,Economy & Environment,ARBURY WALSALL,24/10/2018,428.46,60500-GENERAL MATERIALS,FLEET,Supplies & Services,Revenue
Walsall Council,http://opendatacommunities.org/id/metropolitan-district-council/walsall,WC97-386,31/10/2018,Economy & Environment,ARCADIS,09/10/2018,"8,000.00",63000-PROFESSIONAL FEES AND SERVICES,SMARTER WORKPLACES WORKPLACE SOLUTIONS,Supplies & Services,Revenue
Walsall Council,http://opendatacommunities.org/id/metropolitan-district-council/walsall,WC97-387,31/10/2018,Childrens,ARCHWAY ACADEMY,18/10/2018,"11,792.00",66502-TOP UP FUNDING -GRANTS TO SCHOOLS,INDEPENDENT PROVIDERS - SPECIAL & AP,Third Party Payments,Revenue
Walsall Council,http://opendatacommunities.org/id/metropolitan-district-council/walsall,WC97-388,31/10/2018,Childrens,ARCHWAY ACADEMY,18/10/2018,"14,740.00",66502-TOP UP FUNDING -GRANTS TO SCHOOLS,INDEPENDENT PROVIDERS - SPECIAL & AP,Third Party Payments,Revenue
Walsall Council,http://opendatacommunities.org/id/metropolitan-district-council/walsall,WC97-389,31/10/2018,Childrens,ARCHWAY ACADEMY,18/10/2018,"23,584.00",66502-TOP UP FUNDING -GRANTS TO SCHOOLS,INDEPENDENT PROVIDERS - SPECIAL & AP,Third Party Payments,Revenue
Walsall Council,http://opendatacommunities.org/id/metropolitan-district-council/walsall,WC97-390,31/10/2018,Economy & Environment,ARCHWAY TCS LTD,22/10/2018,707.50,60537-VEHICLE WASH PLANT-MATERIALS,DEPOT,Supplies & Services,Revenue
Walsall Council,http://opendatacommunities.org/id/metropolitan-district-council/walsall,WC97-391,31/10/2018,Economy & Environment,ARCO GROUP,19/10/2018,226.80,60514-MATERIALS TO STORES,FLEET PARTS STOCK ACCOUNT,Supplies & Services,Revenue
Walsall Council,http://opendatacommunities.org/id/metropolitan-district-council/walsall,WC97-392,31/10/2018,Adult Social Care,ARDEN MANOR CARE HOME,15/10/2018,642.86,73501-RESIDENTIAL EMI,PHYSICAL SUPPORT,Third Party Payments,Revenue
Walsall Council,http://opendatacommunities.org/id/metropolitan-district-council/walsall,WC97-393,31/10/2018,Childrens,ARK FORENSICS LTD,09/10/2018,719.70,73014-LEGAL FEES-PRIV CONTRACTOR FEES,GENERAL MANAGEMENT SUPPORT (INC LEGAL),Third Party Payments,Revenue
Walsall Council,http://opendatacommunities.org/id/metropolitan-district-council/walsall,WC97-394,31/10/2018,Adult Social Care,ASH GRANGE CARE HOME,15/10/2018,542.84,73500-RESIDENTIAL,SUPPORT WITH MEMORY & COGNITION,Third Party Payments,Revenue
Walsall Council,http://opendatacommunities.org/id/metropolitan-district-council/walsall,WC97-395,31/10/2018,Adult Social Care,ASH GRANGE CARE HOME,15/10/2018,655.61,73502-NURSING,PHYSICAL SUPPORT,Third Party Payments,Revenue
Walsall Council,http://opendatacommunities.org/id/metropolitan-district-council/walsall,WC97-396,31/10/2018,Adult Social Care,ASH GRANGE CARE HOME,15/10/2018,655.61,73502-NURSING,PHYSICAL SUPPORT,Third Party Payments,Revenue
Walsall Council,http://opendatacommunities.org/id/metropolitan-district-council/walsall,WC97-397,31/10/2018,Adult Social Care,ASH GRANGE CARE HOME,15/10/2018,655.61,73502-NURSING,SUPPORT WITH MEMORY & COGNITION,Third Party Payments,Revenue
Walsall Council,http://opendatacommunities.org/id/metropolitan-district-council/walsall,WC97-398,31/10/2018,Adult Social Care,ASH GRANGE CARE HOME,15/10/2018,655.61,73502-NURSING,PHYSICAL SUPPORT,Third Party Payments,Revenue
Walsall Council,http://opendatacommunities.org/id/metropolitan-district-council/walsall,WC97-399,31/10/2018,Adult Social Care,ASH GRANGE CARE HOME,15/10/2018,655.61,73502-NURSING,PHYSICAL SUPPORT,Third Party Payments,Revenue
Walsall Council,http://opendatacommunities.org/id/metropolitan-district-council/walsall,WC97-400,31/10/2018,Adult Social Care,ASH GRANGE CARE HOME,15/10/2018,655.61,73502-NURSING,PHYSICAL SUPPORT,Third Party Payments,Revenue
Walsall Council,http://opendatacommunities.org/id/metropolitan-district-council/walsall,WC97-401,31/10/2018,Adult Social Care,ASH GRANGE CARE HOME,15/10/2018,655.61,73502-NURSING,PHYSICAL SUPPORT,Third Party Payments,Revenue
Walsall Council,http://opendatacommunities.org/id/metropolitan-district-council/walsall,WC97-402,31/10/2018,Adult Social Care,ASH GRANGE CARE HOME,15/10/2018,655.61,73502-NURSING,PHYSICAL SUPPORT,Third Party Payments,Revenue
Walsall Council,http://opendatacommunities.org/id/metropolitan-district-council/walsall,WC97-403,31/10/2018,Adult Social Care,ASH GRANGE CARE HOME,15/10/2018,655.61,73502-NURSING,PHYSICAL SUPPORT,Third Party Payments,Revenue
Walsall Council,http://opendatacommunities.org/id/metropolitan-district-council/walsall,WC97-404,31/10/2018,Adult Social Care,ASH GRANGE CARE HOME,15/10/2018,655.61,73502-NURSING,PHYSICAL SUPPORT,Third Party Payments,Revenue
Walsall Council,http://opendatacommunities.org/id/metropolitan-district-council/walsall,WC97-405,31/10/2018,Adult Social Care,ASH GRANGE CARE HOME,15/10/2018,655.61,73502-NURSING,MENTAL HEALTH SUPPORT,Third Party Payments,Revenue
Walsall Council,http://opendatacommunities.org/id/metropolitan-district-council/walsall,WC97-406,31/10/2018,Adult Social Care,ASH GRANGE CARE HOME,15/10/2018,721.17,73503-NURSING EMI,PHYSICAL SUPPORT,Third Party Payments,Revenue
Walsall Council,http://opendatacommunities.org/id/metropolitan-district-council/walsall,WC97-407,31/10/2018,Adult Social Care,ASH GRANGE CARE HOME,15/10/2018,721.17,73503-NURSING EMI,PHYSICAL SUPPORT,Third Party Payments,Revenue
Walsall Council,http://opendatacommunities.org/id/metropolitan-district-council/walsall,WC97-408,31/10/2018,Adult Social Care,ASH GRANGE CARE HOME,15/10/2018,745.61,73502-NURSING,PHYSICAL SUPPORT,Third Party Payments,Revenue
Walsall Council,http://opendatacommunities.org/id/metropolitan-district-council/walsall,WC97-409,31/10/2018,Adult Social Care,ASH GRANGE CARE HOME,15/10/2018,797.14,73503-NURSING EMI,PHYSICAL SUPPORT,Third Party Payments,Revenue
Walsall Council,http://opendatacommunities.org/id/metropolitan-district-council/walsall,WC97-410,31/10/2018,Adult Social Care,ASH GRANGE CARE HOME,15/10/2018,802.19,73502-NURSING,LEARNING DISABILITY SUPPORT,Third Party Payments,Revenue
Walsall Council,http://opendatacommunities.org/id/metropolitan-district-council/walsall,WC97-411,31/10/2018,Adult Social Care,ASHBOURNE LODGE,15/10/2018,631.16,73500-RESIDENTIAL,PHYSICAL SUPPORT,Third Party Payments,Revenue
Walsall Council,http://opendatacommunities.org/id/metropolitan-district-council/walsall,WC97-412,31/10/2018,Adult Social Care,REDACTED,08/10/2018,422.00,73506-DIRECT PAYMENT,LEARNING DISABILITY SUPPORT,Third Party Payments,Revenue
Walsall Council,http://opendatacommunities.org/id/metropolitan-district-council/walsall,WC97-413,31/10/2018,Adult Social Care,REDACTED,08/10/2018,"1,092.00",73506-DIRECT PAYMENT,LEARNING DISABILITY SUPPORT,Third Party Payments,Revenue
Walsall Council,http://opendatacommunities.org/id/metropolitan-district-council/walsall,WC97-414,31/10/2018,Economy & Environment,ASKEWS AND HOLTS LIBRARY SERVICES LTD,01/10/2018,279.89,60501-LIBRARY BOOKS,LIBRARY STOCK AND PERFORMANCE,Supplies & Services,Revenue
Walsall Council,http://opendatacommunities.org/id/metropolitan-district-council/walsall,WC97-415,31/10/2018,Economy & Environment,ASKEWS AND HOLTS LIBRARY SERVICES LTD,24/10/2018,280.91,60501-LIBRARY BOOKS,LIBRARY STOCK AND PERFORMANCE,Supplies & Services,Revenue
Walsall Council,http://opendatacommunities.org/id/metropolitan-district-council/walsall,WC97-416,31/10/2018,Economy & Environment,ASKEWS AND HOLTS LIBRARY SERVICES LTD,24/10/2018,307.08,60501-LIBRARY BOOKS,LIBRARY STOCK AND PERFORMANCE,Supplies & Services,Revenue
Walsall Council,http://opendatacommunities.org/id/metropolitan-district-council/walsall,WC97-417,31/10/2018,Economy & Environment,ASKEWS AND HOLTS LIBRARY SERVICES LTD,01/10/2018,460.27,60501-LIBRARY BOOKS,LIBRARY STOCK AND PERFORMANCE,Supplies & Services,Revenue
Walsall Council,http://opendatacommunities.org/id/metropolitan-district-council/walsall,WC97-418,31/10/2018,Economy & Environment,ASKEWS AND HOLTS LIBRARY SERVICES LTD,01/10/2018,466.08,60501-LIBRARY BOOKS,LIBRARY STOCK AND PERFORMANCE,Supplies & Services,Revenue
Walsall Council,http://opendatacommunities.org/id/metropolitan-district-council/walsall,WC97-419,31/10/2018,Economy & Environment,ASKEWS AND HOLTS LIBRARY SERVICES LTD,01/10/2018,554.38,60501-LIBRARY BOOKS,LIBRARY STOCK AND PERFORMANCE,Supplies & Services,Revenue
Walsall Council,http://opendatacommunities.org/id/metropolitan-district-council/walsall,WC97-420,31/10/2018,Economy & Environment,ASKEWS AND HOLTS LIBRARY SERVICES LTD,01/10/2018,567.53,60501-LIBRARY BOOKS,LIBRARY STOCK AND PERFORMANCE,Supplies & Services,Revenue
Walsall Council,http://opendatacommunities.org/id/metropolitan-district-council/walsall,WC97-421,31/10/2018,Economy & Environment,ASKEWS AND HOLTS LIBRARY SERVICES LTD,01/10/2018,585.89,60501-LIBRARY BOOKS,LIBRARY STOCK AND PERFORMANCE,Supplies & Services,Revenue
Walsall Council,http://opendatacommunities.org/id/metropolitan-district-council/walsall,WC97-422,31/10/2018,Economy & Environment,ASKEWS AND HOLTS LIBRARY SERVICES LTD,01/10/2018,606.03,60501-LIBRARY BOOKS,LIBRARY STOCK AND PERFORMANCE,Supplies & Services,Revenue
Walsall Council,http://opendatacommunities.org/id/metropolitan-district-council/walsall,WC97-423,31/10/2018,Economy & Environment,ASKEWS AND HOLTS LIBRARY SERVICES LTD,01/10/2018,624.16,60501-LIBRARY BOOKS,LIBRARY STOCK AND PERFORMANCE,Supplies & Services,Revenue
Walsall Council,http://opendatacommunities.org/id/metropolitan-district-council/walsall,WC97-424,31/10/2018,Economy & Environment,ASKEWS AND HOLTS LIBRARY SERVICES LTD,01/10/2018,678.80,60501-LIBRARY BOOKS,LIBRARY STOCK AND PERFORMANCE,Supplies & Services,Revenue
Walsall Council,http://opendatacommunities.org/id/metropolitan-district-council/walsall,WC97-425,31/10/2018,Economy & Environment,ASKEWS AND HOLTS LIBRARY SERVICES LTD,22/10/2018,843.40,60501-LIBRARY BOOKS,LIBRARY STOCK AND PERFORMANCE,Supplies & Services,Revenue
Walsall Council,http://opendatacommunities.org/id/metropolitan-district-council/walsall,WC97-426,31/10/2018,Economy & Environment,ASKEWS AND HOLTS LIBRARY SERVICES LTD,26/10/2018,918.62,60501-LIBRARY BOOKS,LIBRARY STOCK AND PERFORMANCE,Supplies & Services,Revenue
Walsall Council,http://opendatacommunities.org/id/metropolitan-district-council/walsall,WC97-427,31/10/2018,Economy & Environment,ASKEWS AND HOLTS LIBRARY SERVICES LTD,22/10/2018,934.63,60501-LIBRARY BOOKS,LIBRARY STOCK AND PERFORMANCE,Supplies & Services,Revenue
Walsall Council,http://opendatacommunities.org/id/metropolitan-district-council/walsall,WC97-428,31/10/2018,Economy & Environment,ASKEWS AND HOLTS LIBRARY SERVICES LTD,26/10/2018,976.83,60501-LIBRARY BOOKS,LIBRARY STOCK AND PERFORMANCE,Supplies & Services,Revenue
Walsall Council,http://opendatacommunities.org/id/metropolitan-district-council/walsall,WC97-429,31/10/2018,Economy & Environment,ASKEWS AND HOLTS LIBRARY SERVICES LTD,26/10/2018,995.75,60501-LIBRARY BOOKS,LIBRARY STOCK AND PERFORMANCE,Supplies & Services,Revenue
Walsall Council,http://opendatacommunities.org/id/metropolitan-district-council/walsall,WC97-430,31/10/2018,Economy & Environment,ASKEWS AND HOLTS LIBRARY SERVICES LTD,26/10/2018,999.75,60501-LIBRARY BOOKS,LIBRARY STOCK AND PERFORMANCE,Supplies & Services,Revenue
Walsall Council,http://opendatacommunities.org/id/metropolitan-district-council/walsall,WC97-431,31/10/2018,Economy & Environment,ASKEWS AND HOLTS LIBRARY SERVICES LTD,26/10/2018,"1,012.27",60501-LIBRARY BOOKS,LIBRARY STOCK AND PERFORMANCE,Supplies & Services,Revenue
Walsall Council,http://opendatacommunities.org/id/metropolitan-district-council/walsall,WC97-432,31/10/2018,Economy & Environment,ASKEWS AND HOLTS LIBRARY SERVICES LTD,26/10/2018,"1,017.80",60501-LIBRARY BOOKS,LIBRARY STOCK AND PERFORMANCE,Supplies & Services,Revenue
Walsall Council,http://opendatacommunities.org/id/metropolitan-district-council/walsall,WC97-433,31/10/2018,Economy & Environment,ASKEWS AND HOLTS LIBRARY SERVICES LTD,22/10/2018,"1,021.08",60501-LIBRARY BOOKS,LIBRARY STOCK AND PERFORMANCE,Supplies & Services,Revenue
Walsall Council,http://opendatacommunities.org/id/metropolitan-district-council/walsall,WC97-434,31/10/2018,Economy & Environment,ASKEWS AND HOLTS LIBRARY SERVICES LTD,26/10/2018,"1,024.02",60501-LIBRARY BOOKS,LIBRARY STOCK AND PERFORMANCE,Supplies & Services,Revenue
Walsall Council,http://opendatacommunities.org/id/metropolitan-district-council/walsall,WC97-435,31/10/2018,Economy & Environment,ASKEWS AND HOLTS LIBRARY SERVICES LTD,26/10/2018,"1,026.39",60501-LIBRARY BOOKS,LIBRARY STOCK AND PERFORMANCE,Supplies & Services,Revenue
Walsall Council,http://opendatacommunities.org/id/metropolitan-district-council/walsall,WC97-436,31/10/2018,Economy & Environment,ASKEWS AND HOLTS LIBRARY SERVICES LTD,26/10/2018,"1,038.24",60501-LIBRARY BOOKS,LIBRARY STOCK AND PERFORMANCE,Supplies & Services,Revenue
Walsall Council,http://opendatacommunities.org/id/metropolitan-district-council/walsall,WC97-437,31/10/2018,Economy & Environment,ASKEWS AND HOLTS LIBRARY SERVICES LTD,26/10/2018,"1,043.43",60501-LIBRARY BOOKS,LIBRARY STOCK AND PERFORMANCE,Supplies & Services,Revenue
Walsall Council,http://opendatacommunities.org/id/metropolitan-district-council/walsall,WC97-438,31/10/2018,Adult Social Care,REDACTED,08/10/2018,856.80,73506-DIRECT PAYMENT,PHYSICAL SUPPORT,Third Party Payments,Revenue
Walsall Council,http://opendatacommunities.org/id/metropolitan-district-council/walsall,WC97-439,31/10/2018,Childrens,ASPIRE RESIDENTIAL CARE HOME,08/10/2018,"6,089.28",74036-EXTERNAL RESIDENTIAL CARE-OTH AGENCY PROVISION,INDEPENDENT RESIDENTIAL HOMES,Third Party Payments,Revenue
Walsall Council,http://opendatacommunities.org/id/metropolitan-district-council/walsall,WC97-440,31/10/2018,Adult Social Care,ASSURED HEALTHCARE SOLUTIONS (PARK FARM LODGE),15/10/2018,626.24,73500-RESIDENTIAL,PHYSICAL SUPPORT,Third Party Payments,Revenue
Walsall Council,http://opendatacommunities.org/id/metropolitan-district-council/walsall,WC97-441,31/10/2018,Adult Social Care,ASSURED HEALTHCARE SOLUTIONS (PARK FARM LODGE),03/10/2018,"2,087.49",73373-RESIDENTIAL & NURSING CARE PLACEMENTS,OP PACKAGE/PLACEMENT COSTS,Third Party Payments,Revenue
Walsall Council,http://opendatacommunities.org/id/metropolitan-district-council/walsall,WC97-442,31/10/2018,Resources and Transformation,ASTUN TECHNOLOGY LIMITED,02/10/2018,"4,250.00",63820-RECHARGE FOR MAINTENANCE/APPLICATION COSTS-COMPUTER,APPLICATIONS,Supplies & Services,Revenue
Walsall Council,http://opendatacommunities.org/id/metropolitan-district-council/walsall,WC97-443,31/10/2018,Economy & Environment,ATHWAL NEWS LTD,29/10/2018,292.62,60501-LIBRARY BOOKS,LIBRARY STOCK AND PERFORMANCE,Supplies & Services,Revenue
Walsall Council,http://opendatacommunities.org/id/metropolitan-district-council/walsall,WC97-444,31/10/2018,Adult Social Care,AUTISM WEST MIDLANDS,15/10/2018,"2,282.62",73500-RESIDENTIAL,LEARNING DISABILITY SUPPORT,Third Party Payments,Revenue
Walsall Council,http://opendatacommunities.org/id/metropolitan-district-council/walsall,WC97-445,31/10/2018,Adult Social Care,AUTISM WEST MIDLANDS 001,16/10/2018,"1,525.81",73500-RESIDENTIAL,LEARNING DISABILITY SUPPORT,Third Party Payments,Revenue
Walsall Council,http://opendatacommunities.org/id/metropolitan-district-council/walsall,WC97-446,31/10/2018,Adult Social Care,REDACTED,08/10/2018,989.04,73506-DIRECT PAYMENT,SUPPORT WITH MEMORY & COGNITION,Third Party Payments,Revenue
Walsall Council,http://opendatacommunities.org/id/metropolitan-district-council/walsall,WC97-447,31/10/2018,Economy & Environment,AXIELL LIMITED,29/10/2018,389.08,63800-COMPUTER EQUIPMENT AND SUPPLIES,BLOXWICH LIBRARY,Supplies & Services,Revenue
Walsall Council,http://opendatacommunities.org/id/metropolitan-district-council/walsall,WC97-448,31/10/2018,Economy & Environment,AXIELL LIMITED,29/10/2018,"17,389.05",63800-COMPUTER EQUIPMENT AND SUPPLIES,NETWORK SUPPORT,Supplies & Services,Revenue
Walsall Council,http://opendatacommunities.org/id/metropolitan-district-council/walsall,WC97-449,31/10/2018,Adult Social Care,REDACTED,08/10/2018,"3,182.40",73506-DIRECT PAYMENT,LEARNING DISABILITY SUPPORT,Third Party Payments,Revenue
Walsall Council,http://opendatacommunities.org/id/metropolitan-district-council/walsall,WC97-450,31/10/2018,Childrens,REDACTED,05/10/2018,"1,150.00",60500-GENERAL MATERIALS,PRIMARY CONSULTATIVE GROUP,Supplies & Services,Revenue
Walsall Council,http://opendatacommunities.org/id/metropolitan-district-council/walsall,WC97-451,31/10/2018,Childrens,REDACTED,10/10/2018,464.00,76000-TRANSFER PAYMENTS - SOCIAL SERVICES CLIENTS,TRANSITION AND LEAVING CARE PLACEMENTS,Transfer Payments,Revenue
Walsall Council,http://opendatacommunities.org/id/metropolitan-district-council/walsall,WC97-452,31/10/2018,Childrens,REDACTED,10/10/2018,464.00,76000-TRANSFER PAYMENTS - SOCIAL SERVICES CLIENTS,TRANSITION AND LEAVING CARE PLACEMENTS,Transfer Payments,Revenue
Walsall Council,http://opendatacommunities.org/id/metropolitan-district-council/walsall,WC97-453,31/10/2018,Childrens,REDACTED,24/10/2018,464.00,76000-TRANSFER PAYMENTS - SOCIAL SERVICES CLIENTS,TRANSITION AND LEAVING CARE PLACEMENTS,Transfer Payments,Revenue
Walsall Council,http://opendatacommunities.org/id/metropolitan-district-council/walsall,WC97-454,31/10/2018,Childrens,REDACTED,24/10/2018,464.00,76000-TRANSFER PAYMENTS - SOCIAL SERVICES CLIENTS,TRANSITION AND LEAVING CARE PLACEMENTS,Transfer Payments,Revenue
Walsall Council,http://opendatacommunities.org/id/metropolitan-district-council/walsall,WC97-455,31/10/2018,Economy & Environment,BAART HARRIES NEWALL,17/10/2018,"3,000.00",01002-PROJECT FEES,CFR 632 WALSALL ARBORETUM RESTORATION PROGRAMME,Capital,Capital
Walsall Council,http://opendatacommunities.org/id/metropolitan-district-council/walsall,WC97-456,31/10/2018,Economy & Environment,BACK CARE SOLUTIONS LTD,25/10/2018,886.00,60000-FURNITURE & EQUIPMENT,PUBLIC HEALTH BUSINESS SUPPORT,Supplies & Services,Revenue
Walsall Council,http://opendatacommunities.org/id/metropolitan-district-council/walsall,WC97-457,31/10/2018,Resources and Transformation,BACK CARE SOLUTIONS LTD,18/10/2018,"1,057.20",60008-MAINTENANCE-FURNITURE & EQUIPMENT,LEARNING & MANAGEMENT DEVELOPMENT,Supplies & Services,Revenue
Walsall Council,http://opendatacommunities.org/id/metropolitan-district-council/walsall,WC97-458,31/10/2018,Childrens,BACK CARE SOLUTIONS LTD,04/10/2018,"1,138.00",60000-FURNITURE & EQUIPMENT,CHILDREN'S ADMIN,Supplies & Services,Revenue
Walsall Council,http://opendatacommunities.org/id/metropolitan-district-council/walsall,WC97-459,31/10/2018,Childrens,BAILY GARNER LLP,02/10/2018,576.00,01001-OTHER CONSULTANTS FEES,CFR 783 BASIC NEED,Capital,Capital
Walsall Council,http://opendatacommunities.org/id/metropolitan-district-council/walsall,WC97-460,31/10/2018,Childrens,BAILY GARNER LLP,02/10/2018,576.00,01001-OTHER CONSULTANTS FEES,CFR 783 BASIC NEED,Capital,Capital
Walsall Council,http://opendatacommunities.org/id/metropolitan-district-council/walsall,WC97-461,31/10/2018,Childrens,BAILY GARNER LLP,02/10/2018,"2,036.76",01001-OTHER CONSULTANTS FEES,CFR 783 BASIC NEED,Capital,Capital
Walsall Council,http://opendatacommunities.org/id/metropolitan-district-council/walsall,WC97-462,31/10/2018,Childrens,BAILY GARNER LLP,02/10/2018,"5,500.00",01001-OTHER CONSULTANTS FEES,CFR 783 BASIC NEED,Capital,Capital
Walsall Council,http://opendatacommunities.org/id/metropolitan-district-council/walsall,WC97-463,31/10/2018,Childrens,BAILY GARNER LLP,02/10/2018,"7,304.00",01001-OTHER CONSULTANTS FEES,CFR 783 BASIC NEED,Capital,Capital
Walsall Council,http://opendatacommunities.org/id/metropolitan-district-council/walsall,WC97-464,31/10/2018,Childrens,BAILY GARNER LLP,02/10/2018,"8,970.00",01001-OTHER CONSULTANTS FEES,CFR 783 BASIC NEED,Capital,Capital
Walsall Council,http://opendatacommunities.org/id/metropolitan-district-council/walsall,WC97-465,31/10/2018,Childrens,BAILY GARNER LLP,04/10/2018,"36,949.20",01001-OTHER CONSULTANTS FEES,CFR 783 BASIC NEED,Capital,Capital
Walsall Council,http://opendatacommunities.org/id/metropolitan-district-council/walsall,WC97-466,31/10/2018,Economy & Environment,BAKER HALL PARTNERSHIP,15/10/2018,639.25,63000-PROFESSIONAL FEES AND SERVICES,BUILDING CONTROL REVENUE FUNDED,Supplies & Services,Revenue
Walsall Council,http://opendatacommunities.org/id/metropolitan-district-council/walsall,WC97-467,31/10/2018,Adult Social Care,REDACTED,08/10/2018,"3,328.80",73506-DIRECT PAYMENT,LEARNING DISABILITY SUPPORT,Third Party Payments,Revenue
Walsall Council,http://opendatacommunities.org/id/metropolitan-district-council/walsall,WC97-468,31/10/2018,Adult Social Care,REDACTED,08/10/2018,"1,582.88",73506-DIRECT PAYMENT,PHYSICAL SUPPORT,Third Party Payments,Revenue
Walsall Council,http://opendatacommunities.org/id/metropolitan-district-council/walsall,WC97-469,31/10/2018,Childrens,REDACTED,19/10/2018,340.00,74508-INTERNAL FOSTER CARERS-CARER FEES,FAMILY & FRIENDS FOSTER CARE PROVISION,Transfer Payments,Revenue
Walsall Council,http://opendatacommunities.org/id/metropolitan-district-council/walsall,WC97-470,31/10/2018,Childrens,REDACTED,19/10/2018,540.00,74501-MAINTENANCE ALLOWANCE-FOSTER CARERS,FAMILY & FRIENDS FOSTER CARE PROVISION,Transfer Payments,Revenue
Walsall Council,http://opendatacommunities.org/id/metropolitan-district-council/walsall,WC97-471,31/10/2018,Adult Social Care,REDACTED,08/10/2018,814.92,73506-DIRECT PAYMENT,SUPPORT WITH MEMORY & COGNITION,Third Party Payments,Revenue
Walsall Council,http://opendatacommunities.org/id/metropolitan-district-council/walsall,WC97-472,31/10/2018,Childrens,BARNARDOS SERVICES LTD,08/10/2018,"3,116.40",74037-INDEPENDENT FOSTER CARE-OTH AGENCY PROVISION,EXTERNAL FOSTER CARE PROVISION,Third Party Payments,Revenue
Walsall Council,http://opendatacommunities.org/id/metropolitan-district-council/walsall,WC97-473,31/10/2018,Adult Social Care,BARTHOLAMEW LODGE CARE HOME,15/10/2018,907.53,73503-NURSING EMI,PHYSICAL SUPPORT,Third Party Payments,Revenue
Walsall Council,http://opendatacommunities.org/id/metropolitan-district-council/walsall,WC97-474,31/10/2018,Adult Social Care,REDACTED,08/10/2018,490.40,73506-DIRECT PAYMENT,PHYSICAL SUPPORT,Third Party Payments,Revenue
Walsall Council,http://opendatacommunities.org/id/metropolitan-district-council/walsall,WC97-475,31/10/2018,Economy & Environment,BAT FABRICATIONS LTD,16/10/2018,230.00,"40000-REPAIRS,ALTERATIONS & MAINTENANCE-PREM",INFRASTRUCTURE MAINTENANCE,Premises,Revenue
Walsall Council,http://opendatacommunities.org/id/metropolitan-district-council/walsall,WC97-476,31/10/2018,Economy & Environment,BAT FABRICATIONS LTD,16/10/2018,320.00,60500-GENERAL MATERIALS,COUNTRYSIDE MANAGEMENT-OTHER,Supplies & Services,Revenue
Walsall Council,http://opendatacommunities.org/id/metropolitan-district-council/walsall,WC97-477,31/10/2018,Economy & Environment,BAT FABRICATIONS LTD,22/10/2018,750.00,"40000-REPAIRS,ALTERATIONS & MAINTENANCE-PREM",GREEN SPACE MANAGEMENT,Premises,Revenue
Walsall Council,http://opendatacommunities.org/id/metropolitan-district-council/walsall,WC97-478,31/10/2018,Childrens,BAT FABRICATIONS LTD,01/10/2018,"15,100.00",01006-SITE WORKS MAIN CONTRACTORS,CFR 1137 ST GILES PRIMARY EXPANSION,Capital,Capital
Walsall Council,http://opendatacommunities.org/id/metropolitan-district-council/walsall,WC97-479,31/10/2018,Economy & Environment,BATLEYS,15/10/2018,442.31,61305-CATERING,FOREST ARTS CENTRE,Supplies & Services,Revenue
Walsall Council,http://opendatacommunities.org/id/metropolitan-district-council/walsall,WC97-480,31/10/2018,Economy & Environment,BATLEYS,18/10/2018,602.34,61305-CATERING,FOREST ARTS CENTRE,Supplies & Services,Revenue
Walsall Council,http://opendatacommunities.org/id/metropolitan-district-council/walsall,WC97-481,31/10/2018,Resources and Transformation,BATLEYS,05/10/2018,672.69,61016-FOOD AND BEVERAGES-PROVISIONS,WALSALL TOWN HALL,Supplies & Services,Revenue
Walsall Council,http://opendatacommunities.org/id/metropolitan-district-council/walsall,WC97-482,31/10/2018,Resources and Transformation,BATLEYS,18/10/2018,"2,197.90",61016-FOOD AND BEVERAGES-PROVISIONS,WALSALL TOWN HALL,Supplies & Services,Revenue
Walsall Council,http://opendatacommunities.org/id/metropolitan-district-council/walsall,WC97-483,31/10/2018,Economy & Environment,BAUER CORPORATE SERVICES - BAUER RADIO LTD,15/10/2018,"2,062.08",63253-PAYMENT TO CONTRACTOR,HEALTH CHECKS - PHARMACIES,Third Party Payments,Revenue
Walsall Council,http://opendatacommunities.org/id/metropolitan-district-council/walsall,WC97-484,31/10/2018,Holding Accounts,BEACON LAW,03/10/2018,293.00,67001-MISC INSURANCES - PAYMENT OF CLAIMS,PUBLIC LIABILITY,Supplies & Services,Revenue
Walsall Council,http://opendatacommunities.org/id/metropolitan-district-council/walsall,WC97-485,31/10/2018,Childrens,REDACTED,08/10/2018,51.66,74506-TRAVEL-FOSTER CARERS,INTERNAL FOSTER CARE PROVISION,Transfer Payments,Revenue
Walsall Council,http://opendatacommunities.org/id/metropolitan-district-council/walsall,WC97-486,31/10/2018,Childrens,REDACTED,08/10/2018,800.00,74508-INTERNAL FOSTER CARERS-CARER FEES,INTERNAL FOSTER CARE PROVISION,Transfer Payments,Revenue
Walsall Council,http://opendatacommunities.org/id/metropolitan-district-council/walsall,WC97-487,31/10/2018,Adult Social Care,REDACTED,08/10/2018,758.72,73506-DIRECT PAYMENT,PHYSICAL SUPPORT,Third Party Payments,Revenue
Walsall Council,http://opendatacommunities.org/id/metropolitan-district-council/walsall,WC97-488,31/10/2018,Childrens,BECKYS CHILDMINDING SERVICE,26/10/2018,365.40,66505-OTHER-GRANTS TO OTHER ORGS,EARLY YEARS - 3 YR OLDS,Third Party Payments,Revenue
Walsall Council,http://opendatacommunities.org/id/metropolitan-district-council/walsall,WC97-489,31/10/2018,Childrens,BECKYS CHILDMINDING SERVICE,26/10/2018,660.24,66505-OTHER-GRANTS TO OTHER ORGS,EARLY YEARS - 2 YR OLDS,Third Party Payments,Revenue
Walsall Council,http://opendatacommunities.org/id/metropolitan-district-council/walsall,WC97-490,31/10/2018,Economy & Environment,BEDAZZLE,15/10/2018,375.00,63000-PROFESSIONAL FEES AND SERVICES,FOREST ARTS CENTRE,Supplies & Services,Revenue
Walsall Council,http://opendatacommunities.org/id/metropolitan-district-council/walsall,WC97-491,31/10/2018,Adult Social Care,BELVIDERE COURT,15/10/2018,642.86,73502-NURSING,MENTAL HEALTH SUPPORT,Third Party Payments,Revenue
Walsall Council,http://opendatacommunities.org/id/metropolitan-district-council/walsall,WC97-492,31/10/2018,Adult Social Care,BELVIDERE COURT,15/10/2018,648.56,73502-NURSING,MENTAL HEALTH SUPPORT,Third Party Payments,Revenue
Walsall Council,http://opendatacommunities.org/id/metropolitan-district-council/walsall,WC97-493,31/10/2018,Adult Social Care,BELVIDERE COURT,15/10/2018,707.14,73503-NURSING EMI,PHYSICAL SUPPORT,Third Party Payments,Revenue
Walsall Council,http://opendatacommunities.org/id/metropolitan-district-council/walsall,WC97-494,31/10/2018,Adult Social Care,BELVIDERE COURT,15/10/2018,707.14,73503-NURSING EMI,PHYSICAL SUPPORT,Third Party Payments,Revenue
Walsall Council,http://opendatacommunities.org/id/metropolitan-district-council/walsall,WC97-495,31/10/2018,Childrens,BELVIDERE SCHOOL,08/10/2018,600.00,77300-ISB-FORMULA ALLOCATION,OUT OF BOROUGH SCHOOLS,Transfer Payments,Revenue
Walsall Council,http://opendatacommunities.org/id/metropolitan-district-council/walsall,WC97-496,31/10/2018,Economy & Environment,BEMROSEBOOTH LTD,26/10/2018,925.00,62001-STATIONERY & GENERAL SUPPLIES-OFFICE EXP,PARKING SERVICES OFF-STREET,Supplies & Services,Revenue
Walsall Council,http://opendatacommunities.org/id/metropolitan-district-council/walsall,WC97-497,31/10/2018,Adult Social Care,REDACTED,08/10/2018,"2,569.64",73506-DIRECT PAYMENT,LEARNING DISABILITY SUPPORT,Third Party Payments,Revenue
Walsall Council,http://opendatacommunities.org/id/metropolitan-district-council/walsall,WC97-498,31/10/2018,Adult Social Care,BENTLEY COURT PRIORY,15/10/2018,542.84,73500-RESIDENTIAL,MENTAL HEALTH SUPPORT,Third Party Payments,Revenue
Walsall Council,http://opendatacommunities.org/id/metropolitan-district-council/walsall,WC97-499,31/10/2018,Adult Social Care,BENTLEY COURT PRIORY,15/10/2018,655.61,73502-NURSING,PHYSICAL SUPPORT,Third Party Payments,Revenue
Walsall Council,http://opendatacommunities.org/id/metropolitan-district-council/walsall,WC97-500,31/10/2018,Adult Social Care,BENTLEY COURT PRIORY,15/10/2018,721.17,73503-NURSING EMI,PHYSICAL SUPPORT,Third Party Payments,Revenue
Walsall Council,http://opendatacommunities.org/id/metropolitan-district-council/walsall,WC97-501,31/10/2018,Adult Social Care,BENTLEY COURT PRIORY,15/10/2018,721.17,73503-NURSING EMI,SUPPORT WITH MEMORY & COGNITION,Third Party Payments,Revenue
Walsall Council,http://opendatacommunities.org/id/metropolitan-district-council/walsall,WC97-502,31/10/2018,Adult Social Care,BENTLEY COURT PRIORY,15/10/2018,721.17,73503-NURSING EMI,PHYSICAL SUPPORT,Third Party Payments,Revenue
Walsall Council,http://opendatacommunities.org/id/metropolitan-district-council/walsall,WC97-503,31/10/2018,Adult Social Care,BENTLEY COURT PRIORY,15/10/2018,721.17,73503-NURSING EMI,PHYSICAL SUPPORT,Third Party Payments,Revenue
Walsall Council,http://opendatacommunities.org/id/metropolitan-district-council/walsall,WC97-504,31/10/2018,Adult Social Care,BENTLEY COURT PRIORY,15/10/2018,721.17,73503-NURSING EMI,PHYSICAL SUPPORT,Third Party Payments,Revenue
Walsall Council,http://opendatacommunities.org/id/metropolitan-district-council/walsall,WC97-505,31/10/2018,Adult Social Care,BENTLEY COURT PRIORY,15/10/2018,900.00,73501-RESIDENTIAL EMI,SUPPORT WITH MEMORY & COGNITION,Third Party Payments,Revenue
Walsall Council,http://opendatacommunities.org/id/metropolitan-district-council/walsall,WC97-506,31/10/2018,Adult Social Care,BENTLEY COURT PRIORY,08/10/2018,"3,192.86",73019-PSE'S-PRIV CONTRACTOR FEES,TRANSITIONAL CARE SUPPORT TEAM,Third Party Payments,Revenue
Walsall Council,http://opendatacommunities.org/id/metropolitan-district-council/walsall,WC97-507,31/10/2018,Adult Social Care,BENTLEY COURT PRIORY,08/10/2018,"3,192.86",73019-PSE'S-PRIV CONTRACTOR FEES,TRANSITIONAL CARE SUPPORT TEAM,Third Party Payments,Revenue
Walsall Council,http://opendatacommunities.org/id/metropolitan-district-council/walsall,WC97-508,31/10/2018,Adult Social Care,BENTLEY COURT PRIORY,09/10/2018,"3,192.86",73019-PSE'S-PRIV CONTRACTOR FEES,TRANSITIONAL CARE SUPPORT TEAM,Third Party Payments,Revenue
Walsall Council,http://opendatacommunities.org/id/metropolitan-district-council/walsall,WC97-509,31/10/2018,Economy & Environment,BENTLEY MILL WAY ALLOTMENTS ASSOCIATION,01/10/2018,300.00,66500-GRANTS TO OTHER ORGS,CENTRAL SERVICES ALLOTMENTS,Third Party Payments,Revenue
Walsall Council,http://opendatacommunities.org/id/metropolitan-district-council/walsall,WC97-510,31/10/2018,Holding Accounts,BERRYMANS LACE MAWER LLP,29/10/2018,"1,469.16",67001-MISC INSURANCES - PAYMENT OF CLAIMS,PUBLIC LIABILITY,Supplies & Services,Revenue
Walsall Council,http://opendatacommunities.org/id/metropolitan-district-council/walsall,WC97-511,31/10/2018,Adult Social Care,REDACTED,08/10/2018,"1,082.48",73506-DIRECT PAYMENT,PHYSICAL SUPPORT,Third Party Payments,Revenue
Walsall Council,http://opendatacommunities.org/id/metropolitan-district-council/walsall,WC97-512,31/10/2018,Adult Social Care,REDACTED,08/10/2018,"1,743.20",73506-DIRECT PAYMENT,PHYSICAL SUPPORT,Third Party Payments,Revenue
Walsall Council,http://opendatacommunities.org/id/metropolitan-district-council/walsall,WC97-513,31/10/2018,Adult Social Care,REDACTED,08/10/2018,"1,148.31",73506-DIRECT PAYMENT,PHYSICAL SUPPORT,Third Party Payments,Revenue
Walsall Council,http://opendatacommunities.org/id/metropolitan-district-council/walsall,WC97-514,31/10/2018,Adult Social Care,BESCOT LODGE RESIDENTIAL CARE HOME,15/10/2018,542.84,73500-RESIDENTIAL,PHYSICAL SUPPORT,Third Party Payments,Revenue
Walsall Council,http://opendatacommunities.org/id/metropolitan-district-council/walsall,WC97-515,31/10/2018,Adult Social Care,BESCOT LODGE RESIDENTIAL CARE HOME,15/10/2018,542.84,73500-RESIDENTIAL,LEARNING DISABILITY SUPPORT,Third Party Payments,Revenue
Walsall Council,http://opendatacommunities.org/id/metropolitan-district-council/walsall,WC97-516,31/10/2018,Adult Social Care,BESCOT LODGE RESIDENTIAL CARE HOME,15/10/2018,603.17,73501-RESIDENTIAL EMI,PHYSICAL SUPPORT,Third Party Payments,Revenue
Walsall Council,http://opendatacommunities.org/id/metropolitan-district-council/walsall,WC97-517,31/10/2018,Adult Social Care,BESCOT LODGE RESIDENTIAL CARE HOME,15/10/2018,603.17,73501-RESIDENTIAL EMI,PHYSICAL SUPPORT,Third Party Payments,Revenue
Walsall Council,http://opendatacommunities.org/id/metropolitan-district-council/walsall,WC97-518,31/10/2018,Adult Social Care,BESCOT LODGE RESIDENTIAL CARE HOME,15/10/2018,603.17,73501-RESIDENTIAL EMI,PHYSICAL SUPPORT,Third Party Payments,Revenue
Walsall Council,http://opendatacommunities.org/id/metropolitan-district-council/walsall,WC97-519,31/10/2018,Adult Social Care,BESCOT LODGE RESIDENTIAL CARE HOME,15/10/2018,603.17,73501-RESIDENTIAL EMI,PHYSICAL SUPPORT,Third Party Payments,Revenue
Walsall Council,http://opendatacommunities.org/id/metropolitan-district-council/walsall,WC97-520,31/10/2018,Adult Social Care,BESCOT LODGE RESIDENTIAL CARE HOME,15/10/2018,603.17,73501-RESIDENTIAL EMI,MENTAL HEALTH SUPPORT,Third Party Payments,Revenue
Walsall Council,http://opendatacommunities.org/id/metropolitan-district-council/walsall,WC97-521,31/10/2018,Adult Social Care,BESCOT LODGE RESIDENTIAL CARE HOME,15/10/2018,628.88,73501-RESIDENTIAL EMI,SOCIAL SUPPORT,Third Party Payments,Revenue
Walsall Council,http://opendatacommunities.org/id/metropolitan-district-council/walsall,WC97-522,31/10/2018,Adult Social Care,BESCOT LODGE RESIDENTIAL CARE HOME,15/10/2018,655.61,73501-RESIDENTIAL EMI,PHYSICAL SUPPORT,Third Party Payments,Revenue
Walsall Council,http://opendatacommunities.org/id/metropolitan-district-council/walsall,WC97-523,31/10/2018,Economy & Environment,BESCOT STADIUM SUNDAY MARKET LTD,22/10/2018,"2,600.00",73025-PROFESSIONAL SERVICES-PRIV CONTRACTOR & OTHER AGENCIES,WILLENHALL MARKET,Third Party Payments,Revenue
Walsall Council,http://opendatacommunities.org/id/metropolitan-district-council/walsall,WC97-524,31/10/2018,Adult Social Care,BESS CARE LIMITED,02/10/2018,688.45,73372-DOMICILIARY CARE,OP PACKAGE/PLACEMENT COSTS,Third Party Payments,Revenue
Walsall Council,http://opendatacommunities.org/id/metropolitan-district-council/walsall,WC97-525,31/10/2018,Adult Social Care,BETHPHAGE.,12/10/2018,"1,296.76",73372-DOMICILIARY CARE,LD PACKAGE/PLACEMENT COSTS,Third Party Payments,Revenue
Walsall Council,http://opendatacommunities.org/id/metropolitan-district-council/walsall,WC97-526,31/10/2018,Adult Social Care,BETHPHAGE.,12/10/2018,"1,311.00",73372-DOMICILIARY CARE,LD PACKAGE/PLACEMENT COSTS,Third Party Payments,Revenue
Walsall Council,http://opendatacommunities.org/id/metropolitan-district-council/walsall,WC97-527,31/10/2018,Adult Social Care,BETHPHAGE.,12/10/2018,"1,339.52",73372-DOMICILIARY CARE,LD PACKAGE/PLACEMENT COSTS,Third Party Payments,Revenue
Walsall Council,http://opendatacommunities.org/id/metropolitan-district-council/walsall,WC97-528,31/10/2018,Adult Social Care,BETHPHAGE.,30/10/2018,"1,620.95",73372-DOMICILIARY CARE,LD PACKAGE/PLACEMENT COSTS,Third Party Payments,Revenue
Walsall Council,http://opendatacommunities.org/id/metropolitan-district-council/walsall,WC97-529,31/10/2018,Adult Social Care,BETHPHAGE.,30/10/2018,"1,674.40",73372-DOMICILIARY CARE,LD PACKAGE/PLACEMENT COSTS,Third Party Payments,Revenue
Walsall Council,http://opendatacommunities.org/id/metropolitan-district-council/walsall,WC97-530,31/10/2018,Adult Social Care,BETHPHAGE.,12/10/2018,"2,693.24",73372-DOMICILIARY CARE,LD PACKAGE/PLACEMENT COSTS,Third Party Payments,Revenue
Walsall Council,http://opendatacommunities.org/id/metropolitan-district-council/walsall,WC97-531,31/10/2018,Adult Social Care,REDACTED,08/10/2018,949.52,73506-DIRECT PAYMENT,PHYSICAL SUPPORT,Third Party Payments,Revenue
Walsall Council,http://opendatacommunities.org/id/metropolitan-district-council/walsall,WC97-532,31/10/2018,Adult Social Care,REDACTED,08/10/2018,"2,767.84",73506-DIRECT PAYMENT,PHYSICAL SUPPORT,Third Party Payments,Revenue
Walsall Council,http://opendatacommunities.org/id/metropolitan-district-council/walsall,WC97-533,31/10/2018,Leasing,BEVAN MOTOR BODIES LTD,19/10/2018,"78,290.00",01018-VEHICLES LEASING,VEHICLE MAINTENANCE VEHICLES,Capital,Capital
Walsall Council,http://opendatacommunities.org/id/metropolitan-district-council/walsall,WC97-534,31/10/2018,Leasing,BEVAN MOTOR BODIES LTD,19/10/2018,"78,290.00",01018-VEHICLES LEASING,VEHICLE MAINTENANCE VEHICLES,Capital,Capital
Walsall Council,http://opendatacommunities.org/id/metropolitan-district-council/walsall,WC97-535,31/10/2018,Leasing,BEVAN MOTOR BODIES LTD,19/10/2018,"78,290.00",01018-VEHICLES LEASING,VEHICLE MAINTENANCE VEHICLES,Capital,Capital
Walsall Council,http://opendatacommunities.org/id/metropolitan-district-council/walsall,WC97-536,31/10/2018,Resources and Transformation,BFA SAFETY TRAINING,19/10/2018,525.00,30030-EXTERNAL TRAINING,HEALTH & SAFETY,Employees,Revenue
Walsall Council,http://opendatacommunities.org/id/metropolitan-district-council/walsall,WC97-537,31/10/2018,Resources and Transformation,BFA SAFETY TRAINING,18/10/2018,625.00,30030-EXTERNAL TRAINING,HEALTH & SAFETY,Employees,Revenue
Walsall Council,http://opendatacommunities.org/id/metropolitan-district-council/walsall,WC97-538,31/10/2018,Resources and Transformation,BFA SAFETY TRAINING,18/10/2018,730.00,30030-EXTERNAL TRAINING,HEALTH & SAFETY,Employees,Revenue
Walsall Council,http://opendatacommunities.org/id/metropolitan-district-council/walsall,WC97-539,31/10/2018,Childrens,REDACTED,09/10/2018,517.92,73506-DIRECT PAYMENT,FAMILY SUPPORT - DIRECT PAYMENTS,Third Party Payments,Revenue
Walsall Council,http://opendatacommunities.org/id/metropolitan-district-council/walsall,WC97-540,31/10/2018,Childrens,BIRMINGHAM CITY COUNCIL,10/10/2018,"1,818.24",52000-WITH DRIVER-HIRE OF VEHICLES,HOME TO SCHOOL TRANSPORT,Transport,Revenue
Walsall Council,http://opendatacommunities.org/id/metropolitan-district-council/walsall,WC97-541,31/10/2018,Childrens,BIRMINGHAM CITY COUNCIL,08/10/2018,"1,956.16",74037-INDEPENDENT FOSTER CARE-OTH AGENCY PROVISION,EXTERNAL FOSTER CARE PROVISION,Third Party Payments,Revenue
Walsall Council,http://opendatacommunities.org/id/metropolitan-district-council/walsall,WC97-542,31/10/2018,Economy & Environment,BIRMINGHAM WOMENS AND CHILDRENS NHS FOUNDATION TRUST,24/10/2018,"1,061.90",74000-OTHER AGENCY FEES,CORONERS SERVICE,Third Party Payments,Revenue
Walsall Council,http://opendatacommunities.org/id/metropolitan-district-council/walsall,WC97-543,31/10/2018,Economy & Environment,BIRMINGHAM WOMENS AND CHILDRENS NHS FOUNDATION TRUST,03/10/2018,"1,164.60",74000-OTHER AGENCY FEES,CORONERS SERVICE,Third Party Payments,Revenue
Walsall Council,http://opendatacommunities.org/id/metropolitan-district-council/walsall,WC97-544,31/10/2018,Economy & Environment,BLACK COUNTRY CONSORTIUM LIMITED,01/10/2018,794.69,01045-PRIVATE GRANTS,CFR 1072 CAPITALISATION OF PROJECT OFFICER COSTS,Capital,Capital
Walsall Council,http://opendatacommunities.org/id/metropolitan-district-council/walsall,WC97-545,31/10/2018,Economy & Environment,BLACK COUNTRY DANCE HUB,15/10/2018,838.00,63000-PROFESSIONAL FEES AND SERVICES,FOREST ARTS CENTRE,Supplies & Services,Revenue
Walsall Council,http://opendatacommunities.org/id/metropolitan-district-council/walsall,WC97-546,31/10/2018,Resources and Transformation,BLACK COUNTRY INNOVATE CIC,17/10/2018,"1,000.00",63102-CONSULTANTS FEES - CORPORATE,COHESION,Supplies & Services,Revenue
Walsall Council,http://opendatacommunities.org/id/metropolitan-district-council/walsall,WC97-547,31/10/2018,Economy & Environment,BLACK COUNTRY TRAINING LTD T/A BRITISH HGV TRAINING GROUP,01/10/2018,239.00,30030-EXTERNAL TRAINING,FLEET,Employees,Revenue
Walsall Council,http://opendatacommunities.org/id/metropolitan-district-council/walsall,WC97-548,31/10/2018,Economy & Environment,BLACK COUNTRY TRAINING LTD T/A BRITISH HGV TRAINING GROUP,01/10/2018,"1,316.00",30030-EXTERNAL TRAINING,FLEET,Employees,Revenue
Walsall Council,http://opendatacommunities.org/id/metropolitan-district-council/walsall,WC97-549,31/10/2018,Childrens,BLACK COUNTRY WOMENS AID,04/10/2018,"6,250.00",63000-PROFESSIONAL FEES AND SERVICES,TOXIC TRIO,Supplies & Services,Revenue
Walsall Council,http://opendatacommunities.org/id/metropolitan-district-council/walsall,WC97-550,31/10/2018,Childrens,BLACK COUNTRY WOMENS AID,04/10/2018,"15,000.00",63000-PROFESSIONAL FEES AND SERVICES,TOXIC TRIO,Supplies & Services,Revenue
Walsall Council,http://opendatacommunities.org/id/metropolitan-district-council/walsall,WC97-551,31/10/2018,Childrens,BLACK COUNTRY WOMENS AID,03/10/2018,"16,654.25",63000-PROFESSIONAL FEES AND SERVICES,TOXIC TRIO,Supplies & Services,Revenue
Walsall Council,http://opendatacommunities.org/id/metropolitan-district-council/walsall,WC97-552,31/10/2018,Childrens,BLACK COUNTRY WOMENS AID,03/10/2018,"16,654.25",63000-PROFESSIONAL FEES AND SERVICES,TOXIC TRIO,Supplies & Services,Revenue
Walsall Council,http://opendatacommunities.org/id/metropolitan-district-council/walsall,WC97-553,31/10/2018,Childrens,BLACK COUNTRY WOMENS AID,04/10/2018,"16,654.25",63000-PROFESSIONAL FEES AND SERVICES,TOXIC TRIO,Supplies & Services,Revenue
Walsall Council,http://opendatacommunities.org/id/metropolitan-district-council/walsall,WC97-554,31/10/2018,Childrens,BLACK COUNTRY WOMENS AID,04/10/2018,"16,654.25",63000-PROFESSIONAL FEES AND SERVICES,TOXIC TRIO,Supplies & Services,Revenue
Walsall Council,http://opendatacommunities.org/id/metropolitan-district-council/walsall,WC97-555,31/10/2018,Childrens,BLAKENALL HEATH JMI SCHOOL,05/10/2018,"57,165.00",77302-ISB-SCHOOL STANDARDS GRANT,BLAKENALL HEATH JUNIOR SCHOOL,Transfer Payments,Revenue
Walsall Council,http://opendatacommunities.org/id/metropolitan-district-council/walsall,WC97-556,31/10/2018,Childrens,BLOXWICH COMMUNITY PARTNERSHIP.,01/10/2018,300.00,77000-TRANSFER PAYMENTS-MANDATORY AWARDS,NORTH LOCALITY - SCHOOL READY,Transfer Payments,Revenue
Walsall Council,http://opendatacommunities.org/id/metropolitan-district-council/walsall,WC97-557,31/10/2018,Resources and Transformation,BLOXWICH COMMUNITY PARTNERSHIP.,01/10/2018,540.00,66500-GRANTS TO OTHER ORGS,BLOXWICH COMMUNITY PARTNERSHIP,Third Party Payments,Revenue
Walsall Council,http://opendatacommunities.org/id/metropolitan-district-council/walsall,WC97-558,31/10/2018,Resources and Transformation,BLOXWICH COMMUNITY PARTNERSHIP.,04/10/2018,"5,000.00",66500-GRANTS TO OTHER ORGS,BLOXWICH COMMUNITY PARTNERSHIP,Third Party Payments,Revenue
Walsall Council,http://opendatacommunities.org/id/metropolitan-district-council/walsall,WC97-559,31/10/2018,Economy & Environment,BLOXWICH COMMUNITY PARTNERSHIP.,26/10/2018,"7,491.25",63253-PAYMENT TO CONTRACTOR,MENTAL HEALTH,Third Party Payments,Revenue
Walsall Council,http://opendatacommunities.org/id/metropolitan-district-council/walsall,WC97-560,31/10/2018,Economy & Environment,BLOXWICH COMMUNITY PARTNERSHIP.,26/10/2018,"7,491.25",63253-PAYMENT TO CONTRACTOR,MENTAL HEALTH,Third Party Payments,Revenue
Walsall Council,http://opendatacommunities.org/id/metropolitan-district-council/walsall,WC97-561,31/10/2018,Childrens,BLUE GIRAFFE CHILDCARE,26/10/2018,"9,683.52",66505-OTHER-GRANTS TO OTHER ORGS,EARLY YEARS - 2 YR OLDS,Third Party Payments,Revenue
Walsall Council,http://opendatacommunities.org/id/metropolitan-district-council/walsall,WC97-562,31/10/2018,Childrens,BLUE GIRAFFE CHILDCARE,26/10/2018,"9,756.18",66505-OTHER-GRANTS TO OTHER ORGS,EARLY YEARS - 3 YR OLDS,Third Party Payments,Revenue
Walsall Council,http://opendatacommunities.org/id/metropolitan-district-council/walsall,WC97-563,31/10/2018,Economy & Environment,BME UNITED LTD,19/10/2018,"5,409.60",63253-PAYMENT TO CONTRACTOR,SMOKING CESSATION,Third Party Payments,Revenue
Walsall Council,http://opendatacommunities.org/id/metropolitan-district-council/walsall,WC97-564,31/10/2018,Economy & Environment,BME UNITED LTD,12/10/2018,"6,404.59",66500-GRANTS TO OTHER ORGS,ESF COMMUNITY GRANTS,Third Party Payments,Revenue
Walsall Council,http://opendatacommunities.org/id/metropolitan-district-council/walsall,WC97-565,31/10/2018,Economy & Environment,BME UNITED LTD,01/10/2018,"6,762.00",63253-PAYMENT TO CONTRACTOR,SMOKING CESSATION,Third Party Payments,Revenue
Walsall Council,http://opendatacommunities.org/id/metropolitan-district-council/walsall,WC97-566,31/10/2018,Childrens,REDACTED,15/10/2018,"1,200.00",73506-DIRECT PAYMENT,FAMILY SUPPORT - DIRECT PAYMENTS,Third Party Payments,Revenue
Walsall Council,http://opendatacommunities.org/id/metropolitan-district-council/walsall,WC97-567,31/10/2018,Economy & Environment,BOC LTD,16/10/2018,216.85,73025-PROFESSIONAL SERVICES-PRIV CONTRACTOR & OTHER AGENCIES,FLEET,Third Party Payments,Revenue
Walsall Council,http://opendatacommunities.org/id/metropolitan-district-council/walsall,WC97-568,31/10/2018,Childrens,BODRIGGY ACADEMY,24/10/2018,"1,141.92",77300-ISB-FORMULA ALLOCATION,OUT OF BOROUGH SCHOOLS,Transfer Payments,Revenue
Walsall Council,http://opendatacommunities.org/id/metropolitan-district-council/walsall,WC97-569,31/10/2018,Economy & Environment,BOOKS ASIA,29/10/2018,515.52,60501-LIBRARY BOOKS,LIBRARY STOCK AND PERFORMANCE,Supplies & Services,Revenue
Walsall Council,http://opendatacommunities.org/id/metropolitan-district-council/walsall,WC97-570,31/10/2018,Economy & Environment,BORNEO ST ALLOTMENT ASSOCIATION,01/10/2018,"1,400.00",66500-GRANTS TO OTHER ORGS,CENTRAL SERVICES ALLOTMENTS,Third Party Payments,Revenue
Walsall Council,http://opendatacommunities.org/id/metropolitan-district-council/walsall,WC97-571,31/10/2018,Resources and Transformation,BORSHCH LTD,02/10/2018,237.49,60000-FURNITURE & EQUIPMENT,WALSALL CRISIS SUPPORT SCHEME,Supplies & Services,Revenue
Walsall Council,http://opendatacommunities.org/id/metropolitan-district-council/walsall,WC97-572,31/10/2018,Resources and Transformation,BORSHCH LTD,01/10/2018,279.17,60000-FURNITURE & EQUIPMENT,WALSALL CRISIS SUPPORT SCHEME,Supplies & Services,Revenue
Walsall Council,http://opendatacommunities.org/id/metropolitan-district-council/walsall,WC97-573,31/10/2018,Resources and Transformation,BORSHCH LTD,22/10/2018,287.50,60000-FURNITURE & EQUIPMENT,WALSALL CRISIS SUPPORT SCHEME,Supplies & Services,Revenue
Walsall Council,http://opendatacommunities.org/id/metropolitan-district-council/walsall,WC97-574,31/10/2018,Resources and Transformation,BORSHCH LTD,01/10/2018,291.66,60000-FURNITURE & EQUIPMENT,WALSALL CRISIS SUPPORT SCHEME,Supplies & Services,Revenue
Walsall Council,http://opendatacommunities.org/id/metropolitan-district-council/walsall,WC97-575,31/10/2018,Resources and Transformation,BORSHCH LTD,02/10/2018,291.66,60000-FURNITURE & EQUIPMENT,WALSALL CRISIS SUPPORT SCHEME,Supplies & Services,Revenue
Walsall Council,http://opendatacommunities.org/id/metropolitan-district-council/walsall,WC97-576,31/10/2018,Resources and Transformation,BORSHCH LTD,09/10/2018,291.66,60000-FURNITURE & EQUIPMENT,WALSALL CRISIS SUPPORT SCHEME,Supplies & Services,Revenue
Walsall Council,http://opendatacommunities.org/id/metropolitan-district-council/walsall,WC97-577,31/10/2018,Resources and Transformation,BORSHCH LTD,16/10/2018,291.66,60000-FURNITURE & EQUIPMENT,WALSALL CRISIS SUPPORT SCHEME,Supplies & Services,Revenue
Walsall Council,http://opendatacommunities.org/id/metropolitan-district-council/walsall,WC97-578,31/10/2018,Resources and Transformation,BORSHCH LTD,22/10/2018,291.66,60000-FURNITURE & EQUIPMENT,WALSALL CRISIS SUPPORT SCHEME,Supplies & Services,Revenue
Walsall Council,http://opendatacommunities.org/id/metropolitan-district-council/walsall,WC97-579,31/10/2018,Resources and Transformation,BORSHCH LTD,22/10/2018,291.66,60000-FURNITURE & EQUIPMENT,WALSALL CRISIS SUPPORT SCHEME,Supplies & Services,Revenue
Walsall Council,http://opendatacommunities.org/id/metropolitan-district-council/walsall,WC97-580,31/10/2018,Resources and Transformation,BORSHCH LTD,09/10/2018,295.83,60000-FURNITURE & EQUIPMENT,WALSALL CRISIS SUPPORT SCHEME,Supplies & Services,Revenue
Walsall Council,http://opendatacommunities.org/id/metropolitan-district-council/walsall,WC97-581,31/10/2018,Resources and Transformation,BORSHCH LTD,22/10/2018,325.00,60000-FURNITURE & EQUIPMENT,WALSALL CRISIS SUPPORT SCHEME,Supplies & Services,Revenue
Walsall Council,http://opendatacommunities.org/id/metropolitan-district-council/walsall,WC97-582,31/10/2018,Resources and Transformation,BORSHCH LTD,09/10/2018,333.34,60000-FURNITURE & EQUIPMENT,WALSALL CRISIS SUPPORT SCHEME,Supplies & Services,Revenue
Walsall Council,http://opendatacommunities.org/id/metropolitan-district-council/walsall,WC97-583,31/10/2018,Resources and Transformation,BORSHCH LTD,17/10/2018,379.16,60000-FURNITURE & EQUIPMENT,WALSALL CRISIS SUPPORT SCHEME,Supplies & Services,Revenue
Walsall Council,http://opendatacommunities.org/id/metropolitan-district-council/walsall,WC97-584,31/10/2018,Resources and Transformation,BORSHCH LTD,22/10/2018,379.16,60000-FURNITURE & EQUIPMENT,WALSALL CRISIS SUPPORT SCHEME,Supplies & Services,Revenue
Walsall Council,http://opendatacommunities.org/id/metropolitan-district-council/walsall,WC97-585,31/10/2018,Resources and Transformation,BORSHCH LTD,08/10/2018,425.00,60000-FURNITURE & EQUIPMENT,WALSALL CRISIS SUPPORT SCHEME,Supplies & Services,Revenue
Walsall Council,http://opendatacommunities.org/id/metropolitan-district-council/walsall,WC97-586,31/10/2018,Resources and Transformation,BORSHCH LTD,16/10/2018,425.00,60000-FURNITURE & EQUIPMENT,WALSALL CRISIS SUPPORT SCHEME,Supplies & Services,Revenue
Walsall Council,http://opendatacommunities.org/id/metropolitan-district-council/walsall,WC97-587,31/10/2018,Resources and Transformation,BORSHCH LTD,19/10/2018,425.00,60000-FURNITURE & EQUIPMENT,WALSALL CRISIS SUPPORT SCHEME,Supplies & Services,Revenue
Walsall Council,http://opendatacommunities.org/id/metropolitan-district-council/walsall,WC97-588,31/10/2018,Resources and Transformation,BORSHCH LTD,22/10/2018,425.00,60000-FURNITURE & EQUIPMENT,WALSALL CRISIS SUPPORT SCHEME,Supplies & Services,Revenue
Walsall Council,http://opendatacommunities.org/id/metropolitan-district-council/walsall,WC97-589,31/10/2018,Resources and Transformation,BORSHCH LTD,22/10/2018,425.00,60000-FURNITURE & EQUIPMENT,WALSALL CRISIS SUPPORT SCHEME,Supplies & Services,Revenue
Walsall Council,http://opendatacommunities.org/id/metropolitan-district-council/walsall,WC97-590,31/10/2018,Resources and Transformation,BORSHCH LTD,22/10/2018,425.00,60000-FURNITURE & EQUIPMENT,WALSALL CRISIS SUPPORT SCHEME,Supplies & Services,Revenue
Walsall Council,http://opendatacommunities.org/id/metropolitan-district-council/walsall,WC97-591,31/10/2018,Resources and Transformation,BORSHCH LTD,26/10/2018,425.00,60000-FURNITURE & EQUIPMENT,WALSALL CRISIS SUPPORT SCHEME,Supplies & Services,Revenue
Walsall Council,http://opendatacommunities.org/id/metropolitan-district-council/walsall,WC97-592,31/10/2018,Resources and Transformation,BORSHCH LTD,01/10/2018,433.33,60000-FURNITURE & EQUIPMENT,WALSALL CRISIS SUPPORT SCHEME,Supplies & Services,Revenue
Walsall Council,http://opendatacommunities.org/id/metropolitan-district-council/walsall,WC97-593,31/10/2018,Resources and Transformation,BORSHCH LTD,08/10/2018,433.33,60000-FURNITURE & EQUIPMENT,WALSALL CRISIS SUPPORT SCHEME,Supplies & Services,Revenue
Walsall Council,http://opendatacommunities.org/id/metropolitan-district-council/walsall,WC97-594,31/10/2018,Resources and Transformation,BORSHCH LTD,09/10/2018,433.33,60000-FURNITURE & EQUIPMENT,WALSALL CRISIS SUPPORT SCHEME,Supplies & Services,Revenue
Walsall Council,http://opendatacommunities.org/id/metropolitan-district-council/walsall,WC97-595,31/10/2018,Resources and Transformation,BORSHCH LTD,22/10/2018,433.33,60000-FURNITURE & EQUIPMENT,WALSALL CRISIS SUPPORT SCHEME,Supplies & Services,Revenue
Walsall Council,http://opendatacommunities.org/id/metropolitan-district-council/walsall,WC97-596,31/10/2018,Resources and Transformation,BORSHCH LTD,26/10/2018,433.33,60000-FURNITURE & EQUIPMENT,WALSALL CRISIS SUPPORT SCHEME,Supplies & Services,Revenue
Walsall Council,http://opendatacommunities.org/id/metropolitan-district-council/walsall,WC97-597,31/10/2018,Resources and Transformation,BORSHCH LTD,26/10/2018,433.33,60000-FURNITURE & EQUIPMENT,WALSALL CRISIS SUPPORT SCHEME,Supplies & Services,Revenue
Walsall Council,http://opendatacommunities.org/id/metropolitan-district-council/walsall,WC97-598,31/10/2018,Resources and Transformation,BORSHCH LTD,09/10/2018,479.17,60000-FURNITURE & EQUIPMENT,WALSALL CRISIS SUPPORT SCHEME,Supplies & Services,Revenue
Walsall Council,http://opendatacommunities.org/id/metropolitan-district-council/walsall,WC97-599,31/10/2018,Resources and Transformation,BORSHCH LTD,01/10/2018,487.50,60000-FURNITURE & EQUIPMENT,WALSALL CRISIS SUPPORT SCHEME,Supplies & Services,Revenue
Walsall Council,http://opendatacommunities.org/id/metropolitan-district-council/walsall,WC97-600,31/10/2018,Economy & Environment,BOS BUSINESS OFFICE SOLUTIONS CIC,18/10/2018,"7,500.00",66500-GRANTS TO OTHER ORGS,ESF COMMUNITY GRANTS,Third Party Payments,Revenue
Walsall Council,http://opendatacommunities.org/id/metropolitan-district-council/walsall,WC97-601,31/10/2018,Adult Social Care,BOWDEN DERRA PARK,15/10/2018,"3,548.93",73500-RESIDENTIAL,LEARNING DISABILITY SUPPORT,Third Party Payments,Revenue
Walsall Council,http://opendatacommunities.org/id/metropolitan-district-council/walsall,WC97-602,31/10/2018,Economy & Environment,BRADVALE LTD T/A INSPIRE HEALTHCARE SERVICES,22/10/2018,336.98,60008-MAINTENANCE-FURNITURE & EQUIPMENT,DARLASTON LEISURE CENTRE,Supplies & Services,Revenue
Walsall Council,http://opendatacommunities.org/id/metropolitan-district-council/walsall,WC97-603,31/10/2018,Economy & Environment,BRADVALE LTD T/A INSPIRE HEALTHCARE SERVICES,22/10/2018,600.23,60008-MAINTENANCE-FURNITURE & EQUIPMENT,OAK PARK,Supplies & Services,Revenue
Walsall Council,http://opendatacommunities.org/id/metropolitan-district-council/walsall,WC97-604,31/10/2018,Economy & Environment,BRADVALE LTD T/A INSPIRE HEALTHCARE SERVICES,12/10/2018,612.25,60500-GENERAL MATERIALS,ARBORETUM VISITOR CENTRE,Supplies & Services,Revenue
Walsall Council,http://opendatacommunities.org/id/metropolitan-district-council/walsall,WC97-605,31/10/2018,Economy & Environment,BRADVALE LTD T/A INSPIRE HEALTHCARE SERVICES,22/10/2018,622.31,73025-PROFESSIONAL SERVICES-PRIV CONTRACTOR & OTHER AGENCIES,DEPOT,Third Party Payments,Revenue
Walsall Council,http://opendatacommunities.org/id/metropolitan-district-council/walsall,WC97-606,31/10/2018,Economy & Environment,BRADVALE LTD T/A INSPIRE HEALTHCARE SERVICES,15/10/2018,926.53,60008-MAINTENANCE-FURNITURE & EQUIPMENT,BLOXWICH LEISURE CENTRE,Supplies & Services,Revenue
Walsall Council,http://opendatacommunities.org/id/metropolitan-district-council/walsall,WC97-607,31/10/2018,Resources and Transformation,BRELMAYNE LTD,09/10/2018,276.04,60007-REPAIR OF EQUIPMENT-EQUIPMENT,CA COOPER JORDAN CE PRIMARY SCHOOL,Supplies & Services,Revenue
Walsall Council,http://opendatacommunities.org/id/metropolitan-district-council/walsall,WC97-608,31/10/2018,Resources and Transformation,BRELMAYNE LTD,15/10/2018,583.55,60007-REPAIR OF EQUIPMENT-EQUIPMENT,CA BLOXWICH C.E. JMI PRIMARY SCHOOL,Supplies & Services,Revenue
Walsall Council,http://opendatacommunities.org/id/metropolitan-district-council/walsall,WC97-609,31/10/2018,Resources and Transformation,BRELMAYNE LTD,24/10/2018,806.91,"40000-REPAIRS,ALTERATIONS & MAINTENANCE-PREM",CA ALUMWELL INFANT SCHOOL,Premises,Revenue
Walsall Council,http://opendatacommunities.org/id/metropolitan-district-council/walsall,WC97-610,31/10/2018,Childrens,BRELMAYNE LTD,17/10/2018,"36,143.22",01006-SITE WORKS MAIN CONTRACTORS,CFR 1193 FULLBROOK NURSERY - REPLACEMENT BOILER HOUSE PLANT,Capital,Capital
Walsall Council,http://opendatacommunities.org/id/metropolitan-district-council/walsall,WC97-611,31/10/2018,Adult Social Care,REDACTED,08/10/2018,440.00,73506-DIRECT PAYMENT,LEARNING DISABILITY SUPPORT,Third Party Payments,Revenue
Walsall Council,http://opendatacommunities.org/id/metropolitan-district-council/walsall,WC97-612,31/10/2018,Childrens,REDACTED,08/10/2018,720.00,74501-MAINTENANCE ALLOWANCE-FOSTER CARERS,INTERNAL FOSTER CARE PROVISION,Transfer Payments,Revenue
Walsall Council,http://opendatacommunities.org/id/metropolitan-district-council/walsall,WC97-613,31/10/2018,Childrens,REDACTED,08/10/2018,720.00,74501-MAINTENANCE ALLOWANCE-FOSTER CARERS,INTERNAL FOSTER CARE PROVISION,Transfer Payments,Revenue
Walsall Council,http://opendatacommunities.org/id/metropolitan-district-council/walsall,WC97-614,31/10/2018,Childrens,REDACTED,08/10/2018,"1,600.00",74508-INTERNAL FOSTER CARERS-CARER FEES,INTERNAL FOSTER CARE PROVISION,Transfer Payments,Revenue
Walsall Council,http://opendatacommunities.org/id/metropolitan-district-council/walsall,WC97-615,31/10/2018,Economy & Environment,BRENNTAG UK LIMITED,25/10/2018,259.74,60503-CHEMICALS & SCIENTIFIC MATS-MATERIALS,BLOXWICH LEISURE CENTRE,Supplies & Services,Revenue
Walsall Council,http://opendatacommunities.org/id/metropolitan-district-council/walsall,WC97-616,31/10/2018,Economy & Environment,BRENNTAG UK LIMITED,22/10/2018,406.39,60503-CHEMICALS & SCIENTIFIC MATS-MATERIALS,OAK PARK,Supplies & Services,Revenue
Walsall Council,http://opendatacommunities.org/id/metropolitan-district-council/walsall,WC97-617,31/10/2018,Economy & Environment,BRENNTAG UK LIMITED,26/10/2018,406.39,60503-CHEMICALS & SCIENTIFIC MATS-MATERIALS,BLOXWICH LEISURE CENTRE,Supplies & Services,Revenue
Walsall Council,http://opendatacommunities.org/id/metropolitan-district-council/walsall,WC97-618,31/10/2018,Economy & Environment,BRENNTAG UK LIMITED,15/10/2018,710.28,50301-FUEL-TRANSPORT RUN COSTS,FUEL STOCK ACCOUNT,Transport,Revenue
Walsall Council,http://opendatacommunities.org/id/metropolitan-district-council/walsall,WC97-619,31/10/2018,Adult Social Care,REDACTED,16/10/2018,"1,337.64",73372-DOMICILIARY CARE,LD PACKAGE/PLACEMENT COSTS,Third Party Payments,Revenue
Walsall Council,http://opendatacommunities.org/id/metropolitan-district-council/walsall,WC97-620,31/10/2018,Adult Social Care,REDACTED,16/10/2018,"1,597.60",73372-DOMICILIARY CARE,LD PACKAGE/PLACEMENT COSTS,Third Party Payments,Revenue
Walsall Council,http://opendatacommunities.org/id/metropolitan-district-council/walsall,WC97-621,31/10/2018,Adult Social Care,REDACTED,08/10/2018,"-4,284.00",73506-DIRECT PAYMENT,PHYSICAL SUPPORT,Third Party Payments,Revenue
Walsall Council,http://opendatacommunities.org/id/metropolitan-district-council/walsall,WC97-622,31/10/2018,Adult Social Care,REDACTED,08/10/2018,"7,085.12",73506-DIRECT PAYMENT,PHYSICAL SUPPORT,Third Party Payments,Revenue
Walsall Council,http://opendatacommunities.org/id/metropolitan-district-council/walsall,WC97-623,31/10/2018,Adult Social Care,REDACTED,08/10/2018,836.40,73506-DIRECT PAYMENT,PHYSICAL SUPPORT,Third Party Payments,Revenue
Walsall Council,http://opendatacommunities.org/id/metropolitan-district-council/walsall,WC97-624,31/10/2018,Adult Social Care,BRIDGEWOOD HEALTH CARE LTD,15/10/2018,"1,863.10",73502-NURSING,SENSORY SUPPORT,Third Party Payments,Revenue
Walsall Council,http://opendatacommunities.org/id/metropolitan-district-council/walsall,WC97-625,31/10/2018,Childrens,BRIGHT HORIZONS (BANSTEAD DAY NURSERY AND PRESCHOOL),17/10/2018,306.02,32000-MISC FEES AND EXPENSES,ADOPTION TEAM,Employees,Revenue
Walsall Council,http://opendatacommunities.org/id/metropolitan-district-council/walsall,WC97-626,31/10/2018,Resources and Transformation,BRISTOL OILSKIN & OVERALL CO,15/10/2018,"1,836.00",61502-PROTECTIVE CLOTHING & UNIFORM,SCHOOL CROSSING PATROL ADMIN,Supplies & Services,Revenue
Walsall Council,http://opendatacommunities.org/id/metropolitan-district-council/walsall,WC97-627,31/10/2018,Resources and Transformation,BRISTOL OILSKIN & OVERALL CO,23/10/2018,"4,683.50",61502-PROTECTIVE CLOTHING & UNIFORM,SCHOOL CROSSING PATROL ADMIN,Supplies & Services,Revenue
Walsall Council,http://opendatacommunities.org/id/metropolitan-district-council/walsall,WC97-628,31/10/2018,Economy & Environment,BRITANNIA APPRENTICESHIPS LTD,05/10/2018,"1,500.00",66500-GRANTS TO OTHER ORGS,RES-WALSALL WORKS,Third Party Payments,Revenue
Walsall Council,http://opendatacommunities.org/id/metropolitan-district-council/walsall,WC97-629,31/10/2018,Economy & Environment,BROADWAY SOUTH ALLOTMENTS,01/10/2018,300.00,66500-GRANTS TO OTHER ORGS,CENTRAL SERVICES ALLOTMENTS,Third Party Payments,Revenue
Walsall Council,http://opendatacommunities.org/id/metropolitan-district-council/walsall,WC97-630,31/10/2018,Holding Accounts,BROWNE JACOBSON SOLICITORS,15/10/2018,560.00,67001-MISC INSURANCES - PAYMENT OF CLAIMS,PUBLIC LIABILITY,Supplies & Services,Revenue
Walsall Council,http://opendatacommunities.org/id/metropolitan-district-council/walsall,WC97-631,31/10/2018,Childrens,BROWNHILLS ASPHALT & TARMAC LIMITED,29/10/2018,450.00,01006-SITE WORKS MAIN CONTRACTORS,CFR 1297 JANE LANE SPECIAL SCHOOL EXPANSION,Capital,Capital
Walsall Council,http://opendatacommunities.org/id/metropolitan-district-council/walsall,WC97-632,31/10/2018,Childrens,BROWNHILLS ASPHALT & TARMAC LIMITED,09/10/2018,560.00,01006-SITE WORKS MAIN CONTRACTORS,CFR 1297 CASTLE BUSINESS & ENTERPRISE COLLEGE EXPANSION,Capital,Capital
Walsall Council,http://opendatacommunities.org/id/metropolitan-district-council/walsall,WC97-633,31/10/2018,Economy & Environment,BROWNHILLS ASPHALT & TARMAC LIMITED,22/10/2018,750.00,60500-GENERAL MATERIALS,INFRASTRUCTURE MAINTENANCE,Supplies & Services,Revenue
Walsall Council,http://opendatacommunities.org/id/metropolitan-district-council/walsall,WC97-634,31/10/2018,Childrens,BROWNHILLS ASPHALT & TARMAC LIMITED,29/10/2018,"1,800.00",01006-SITE WORKS MAIN CONTRACTORS,CFR 1297 OLD CHURCH PRIMARY SCHOOL EXPANSION,Capital,Capital
Walsall Council,http://opendatacommunities.org/id/metropolitan-district-council/walsall,WC97-635,31/10/2018,Childrens,BROWNHILLS ASPHALT & TARMAC LIMITED,29/10/2018,"1,800.00",01006-SITE WORKS MAIN CONTRACTORS,CFR 1297 JANE LANE SPECIAL SCHOOL EXPANSION,Capital,Capital
Walsall Council,http://opendatacommunities.org/id/metropolitan-district-council/walsall,WC97-636,31/10/2018,Childrens,BROWNHILLS ASPHALT & TARMAC LIMITED,12/10/2018,"2,450.00",01006-SITE WORKS MAIN CONTRACTORS,CFR 1297 CASTLE BUSINESS & ENTERPRISE COLLEGE EXPANSION,Capital,Capital
Walsall Council,http://opendatacommunities.org/id/metropolitan-district-council/walsall,WC97-637,31/10/2018,Childrens,BROWNHILLS ASPHALT & TARMAC LIMITED,01/10/2018,"3,184.00",01006-SITE WORKS MAIN CONTRACTORS,CFR 1299 BUSILL JONES PRMARY SCHOOL - ROOFING PHASE 2 KS2,Capital,Capital
Walsall Council,http://opendatacommunities.org/id/metropolitan-district-council/walsall,WC97-638,31/10/2018,Economy & Environment,BROWNHILLS ASPHALT & TARMAC LIMITED,12/10/2018,"3,460.00",60500-GENERAL MATERIALS,CEMETERIES CENTRAL ADMINISTRATION,Supplies & Services,Revenue
Walsall Council,http://opendatacommunities.org/id/metropolitan-district-council/walsall,WC97-639,31/10/2018,Childrens,BROWNHILLS COMMUNITY ASSOCIATION,29/10/2018,350.00,77000-TRANSFER PAYMENTS-MANDATORY AWARDS,CENTRAL & EAST LOCALITY - SCHOOL READY,Transfer Payments,Revenue
Walsall Council,http://opendatacommunities.org/id/metropolitan-district-council/walsall,WC97-640,31/10/2018,Resources and Transformation,BROWNHILLS COMMUNITY ASSOCIATION,19/10/2018,445.00,73025-PROFESSIONAL SERVICES-PRIV CONTRACTOR & OTHER AGENCIES,AREA PARTNERSHIPS,Third Party Payments,Revenue
Walsall Council,http://opendatacommunities.org/id/metropolitan-district-council/walsall,WC97-641,31/10/2018,Childrens,BROWNHILLS COMMUNITY ASSOCIATION,26/10/2018,"2,557.80",66505-OTHER-GRANTS TO OTHER ORGS,EARLY YEARS - 3 YR OLDS,Third Party Payments,Revenue
Walsall Council,http://opendatacommunities.org/id/metropolitan-district-council/walsall,WC97-642,31/10/2018,Childrens,BROWNHILLS COMMUNITY ASSOCIATION,26/10/2018,"8,186.98",66505-OTHER-GRANTS TO OTHER ORGS,EARLY YEARS - 2 YR OLDS,Third Party Payments,Revenue
Walsall Council,http://opendatacommunities.org/id/metropolitan-district-council/walsall,WC97-643,31/10/2018,Adult Social Care,REDACTED,08/10/2018,"1,713.60",73506-DIRECT PAYMENT,LEARNING DISABILITY SUPPORT,Third Party Payments,Revenue
Walsall Council,http://opendatacommunities.org/id/metropolitan-district-council/walsall,WC97-644,31/10/2018,Economy & Environment,REDACTED,24/10/2018,500.00,63000-PROFESSIONAL FEES AND SERVICES,NAG - TEMPORARY EXHIBITIONS,Supplies & Services,Revenue
Walsall Council,http://opendatacommunities.org/id/metropolitan-district-council/walsall,WC97-645,31/10/2018,Economy & Environment,B-SURE SECURITY SERVICES LTD,01/10/2018,460.00,62515-MISCELLANEOUS SUPPLIES,CENTRALISED STATIONERY,Supplies & Services,Revenue
Walsall Council,http://opendatacommunities.org/id/metropolitan-district-council/walsall,WC97-646,31/10/2018,Resources and Transformation,BT,08/10/2018,276.46,63601-COSTS (NOT INTERNAL RECHARGES)-TELEPHONES,CENTRAL COMMUNICATIONS RECHARGES,Supplies & Services,Revenue
Walsall Council,http://opendatacommunities.org/id/metropolitan-district-council/walsall,WC97-647,31/10/2018,Resources and Transformation,BT,12/10/2018,681.00,63603-COST OF CALLS-TELEPHONES,PROCESSING,Supplies & Services,Revenue
Walsall Council,http://opendatacommunities.org/id/metropolitan-district-council/walsall,WC97-648,31/10/2018,Economy & Environment,BT,19/10/2018,"6,092.39",63601-COSTS (NOT INTERNAL RECHARGES)-TELEPHONES,TRAFFIC CONTROL,Supplies & Services,Revenue
Walsall Council,http://opendatacommunities.org/id/metropolitan-district-council/walsall,WC97-649,31/10/2018,Resources and Transformation,BT,08/10/2018,"14,032.74",63601-COSTS (NOT INTERNAL RECHARGES)-TELEPHONES,CENTRAL COMMUNICATIONS RECHARGES,Supplies & Services,Revenue
Walsall Council,http://opendatacommunities.org/id/metropolitan-district-council/walsall,WC97-650,31/10/2018,Resources and Transformation,BT PLC,01/10/2018,"1,268.35",63807-COMMS LINKS-COMPUTER,NETWORKS,Supplies & Services,Revenue
Walsall Council,http://opendatacommunities.org/id/metropolitan-district-council/walsall,WC97-651,31/10/2018,Resources and Transformation,BT PLC,29/10/2018,"1,268.35",63807-COMMS LINKS-COMPUTER,NETWORKS,Supplies & Services,Revenue
Walsall Council,http://opendatacommunities.org/id/metropolitan-district-council/walsall,WC97-652,31/10/2018,Childrens,BUFFET EXPRESS LTD,02/10/2018,249.60,61305-CATERING,MY PLACE (REVENUE),Supplies & Services,Revenue
Walsall Council,http://opendatacommunities.org/id/metropolitan-district-council/walsall,WC97-653,31/10/2018,Adult Social Care,BUNZIL HEALTHCARE T/A CARESHOP,18/10/2018,797.43,60539-CLEANING MATERIALS,COMMUNITY INTERMEDIATE CARE,Supplies & Services,Revenue
Walsall Council,http://opendatacommunities.org/id/metropolitan-district-council/walsall,WC97-654,31/10/2018,Adult Social Care,BUSH HOME LTD,15/10/2018,532.28,73500-RESIDENTIAL,PHYSICAL SUPPORT,Third Party Payments,Revenue
Walsall Council,http://opendatacommunities.org/id/metropolitan-district-council/walsall,WC97-655,31/10/2018,Adult Social Care,BUSH HOME LTD,15/10/2018,542.84,73500-RESIDENTIAL,MENTAL HEALTH SUPPORT,Third Party Payments,Revenue
Walsall Council,http://opendatacommunities.org/id/metropolitan-district-council/walsall,WC97-656,31/10/2018,Adult Social Care,BUSH HOME LTD,15/10/2018,542.84,73500-RESIDENTIAL,PHYSICAL SUPPORT,Third Party Payments,Revenue
Walsall Council,http://opendatacommunities.org/id/metropolitan-district-council/walsall,WC97-657,31/10/2018,Adult Social Care,BUSH HOME LTD,15/10/2018,542.84,73500-RESIDENTIAL,MENTAL HEALTH SUPPORT,Third Party Payments,Revenue
Walsall Council,http://opendatacommunities.org/id/metropolitan-district-council/walsall,WC97-658,31/10/2018,Adult Social Care,BUSH HOME LTD,15/10/2018,542.84,73500-RESIDENTIAL,PHYSICAL SUPPORT,Third Party Payments,Revenue
Walsall Council,http://opendatacommunities.org/id/metropolitan-district-council/walsall,WC97-659,31/10/2018,Adult Social Care,BUSH HOME LTD,15/10/2018,542.84,73500-RESIDENTIAL,MENTAL HEALTH SUPPORT,Third Party Payments,Revenue
Walsall Council,http://opendatacommunities.org/id/metropolitan-district-council/walsall,WC97-660,31/10/2018,Adult Social Care,BUSH HOME LTD,15/10/2018,542.84,73500-RESIDENTIAL,PHYSICAL SUPPORT,Third Party Payments,Revenue
Walsall Council,http://opendatacommunities.org/id/metropolitan-district-council/walsall,WC97-661,31/10/2018,Adult Social Care,BUSH HOME LTD,15/10/2018,603.17,73501-RESIDENTIAL EMI,PHYSICAL SUPPORT,Third Party Payments,Revenue
Walsall Council,http://opendatacommunities.org/id/metropolitan-district-council/walsall,WC97-662,31/10/2018,Adult Social Care,BUSH HOME LTD,15/10/2018,603.17,73501-RESIDENTIAL EMI,PHYSICAL SUPPORT,Third Party Payments,Revenue
Walsall Council,http://opendatacommunities.org/id/metropolitan-district-council/walsall,WC97-663,31/10/2018,Adult Social Care,BUSH HOME LTD,15/10/2018,603.17,73501-RESIDENTIAL EMI,PHYSICAL SUPPORT,Third Party Payments,Revenue
Walsall Council,http://opendatacommunities.org/id/metropolitan-district-council/walsall,WC97-664,31/10/2018,Adult Social Care,BUSH HOME LTD,15/10/2018,603.17,73501-RESIDENTIAL EMI,MENTAL HEALTH SUPPORT,Third Party Payments,Revenue
Walsall Council,http://opendatacommunities.org/id/metropolitan-district-council/walsall,WC97-665,31/10/2018,Adult Social Care,BUSH HOME LTD,15/10/2018,603.17,73501-RESIDENTIAL EMI,PHYSICAL SUPPORT,Third Party Payments,Revenue
Walsall Council,http://opendatacommunities.org/id/metropolitan-district-council/walsall,WC97-666,31/10/2018,Adult Social Care,BUSH HOME LTD,15/10/2018,603.17,73501-RESIDENTIAL EMI,MENTAL HEALTH SUPPORT,Third Party Payments,Revenue
Walsall Council,http://opendatacommunities.org/id/metropolitan-district-council/walsall,WC97-667,31/10/2018,Adult Social Care,BUSH HOME LTD,15/10/2018,603.17,73501-RESIDENTIAL EMI,PHYSICAL SUPPORT,Third Party Payments,Revenue
Walsall Council,http://opendatacommunities.org/id/metropolitan-district-council/walsall,WC97-668,31/10/2018,Childrens,BUSY BEES CHILDCARE LTD,26/10/2018,"1,100.40",66505-OTHER-GRANTS TO OTHER ORGS,EARLY YEARS - 2 YR OLDS,Third Party Payments,Revenue
Walsall Council,http://opendatacommunities.org/id/metropolitan-district-council/walsall,WC97-669,31/10/2018,Childrens,BUSY BEES CHILDCARE LTD,12/10/2018,"1,280.00",77200-TRANSFER PAYMENTS-OTHER SCHOOLCHILDREN/STUDENT RELATED ITEMS,EARLY YEARS - SOCIAL INCLUSION FUND - 3/4 YR OLD,Transfer Payments,Revenue
Walsall Council,http://opendatacommunities.org/id/metropolitan-district-council/walsall,WC97-670,31/10/2018,Childrens,BY THE BRIDGE,08/10/2018,"3,996.00",74037-INDEPENDENT FOSTER CARE-OTH AGENCY PROVISION,EXTERNAL FOSTER CARE PROVISION,Third Party Payments,Revenue
Walsall Council,http://opendatacommunities.org/id/metropolitan-district-council/walsall,WC97-671,31/10/2018,Childrens,BY THE BRIDGE,08/10/2018,"3,996.00",74037-INDEPENDENT FOSTER CARE-OTH AGENCY PROVISION,EXTERNAL FOSTER CARE PROVISION,Third Party Payments,Revenue
Walsall Council,http://opendatacommunities.org/id/metropolitan-district-council/walsall,WC97-672,31/10/2018,Adult Social Care,C & V ORCHARD MANOR LTD,09/10/2018,"1,620.00",73373-RESIDENTIAL & NURSING CARE PLACEMENTS,MENTAL HEALTH PACKAGE/PLACEMENT COSTS,Third Party Payments,Revenue
Walsall Council,http://opendatacommunities.org/id/metropolitan-district-council/walsall,WC97-673,31/10/2018,Adult Social Care,C & V ORCHARD MANOR LTD,09/10/2018,"1,620.00",73373-RESIDENTIAL & NURSING CARE PLACEMENTS,MENTAL HEALTH PACKAGE/PLACEMENT COSTS,Third Party Payments,Revenue
Walsall Council,http://opendatacommunities.org/id/metropolitan-district-council/walsall,WC97-674,31/10/2018,Adult Social Care,C & V ORCHARD MANOR LTD,09/10/2018,"1,620.00",73373-RESIDENTIAL & NURSING CARE PLACEMENTS,MENTAL HEALTH PACKAGE/PLACEMENT COSTS,Third Party Payments,Revenue
Walsall Council,http://opendatacommunities.org/id/metropolitan-district-council/walsall,WC97-675,31/10/2018,Childrens,REDACTED,18/10/2018,"1,617.96",74500-CARE LEAVERS MTCE PAYMENTS,TRANSITION AND LEAVING CARE PLACEMENTS,Third Party Payments,Revenue
Walsall Council,http://opendatacommunities.org/id/metropolitan-district-council/walsall,WC97-676,31/10/2018,Childrens,REDACTED,08/10/2018,180.00,74503-BIRTHDAY ALLOWANCE-FOSTER CARERS,INTERNAL FOSTER CARE PROVISION,Transfer Payments,Revenue
Walsall Council,http://opendatacommunities.org/id/metropolitan-district-council/walsall,WC97-677,31/10/2018,Childrens,REDACTED,08/10/2018,720.00,74501-MAINTENANCE ALLOWANCE-FOSTER CARERS,INTERNAL FOSTER CARE PROVISION,Transfer Payments,Revenue
Walsall Council,http://opendatacommunities.org/id/metropolitan-district-council/walsall,WC97-678,31/10/2018,Childrens,REDACTED,08/10/2018,720.00,74501-MAINTENANCE ALLOWANCE-FOSTER CARERS,INTERNAL FOSTER CARE PROVISION,Transfer Payments,Revenue
Walsall Council,http://opendatacommunities.org/id/metropolitan-district-council/walsall,WC97-679,31/10/2018,Childrens,REDACTED,08/10/2018,720.00,74501-MAINTENANCE ALLOWANCE-FOSTER CARERS,INTERNAL FOSTER CARE PROVISION,Transfer Payments,Revenue
Walsall Council,http://opendatacommunities.org/id/metropolitan-district-council/walsall,WC97-680,31/10/2018,Childrens,REDACTED,08/10/2018,860.00,74501-MAINTENANCE ALLOWANCE-FOSTER CARERS,INTERNAL FOSTER CARE PROVISION,Transfer Payments,Revenue
Walsall Council,http://opendatacommunities.org/id/metropolitan-district-council/walsall,WC97-681,31/10/2018,Childrens,REDACTED,08/10/2018,"3,000.00",74508-INTERNAL FOSTER CARERS-CARER FEES,INTERNAL FOSTER CARE PROVISION,Transfer Payments,Revenue
Walsall Council,http://opendatacommunities.org/id/metropolitan-district-council/walsall,WC97-682,31/10/2018,Childrens,REDACTED,08/10/2018,720.00,74501-MAINTENANCE ALLOWANCE-FOSTER CARERS,INTERNAL FOSTER CARE PROVISION,Transfer Payments,Revenue
Walsall Council,http://opendatacommunities.org/id/metropolitan-district-council/walsall,WC97-683,31/10/2018,Childrens,REDACTED,08/10/2018,860.00,74501-MAINTENANCE ALLOWANCE-FOSTER CARERS,INTERNAL FOSTER CARE PROVISION,Transfer Payments,Revenue
Walsall Council,http://opendatacommunities.org/id/metropolitan-district-council/walsall,WC97-684,31/10/2018,Childrens,REDACTED,08/10/2018,"1,600.00",74508-INTERNAL FOSTER CARERS-CARER FEES,INTERNAL FOSTER CARE PROVISION,Transfer Payments,Revenue
Walsall Council,http://opendatacommunities.org/id/metropolitan-district-council/walsall,WC97-685,31/10/2018,Childrens,C M H T SOLICITORS LLP,01/10/2018,238.53,73014-LEGAL FEES-PRIV CONTRACTOR FEES,GENERAL MANAGEMENT SUPPORT (INC LEGAL),Third Party Payments,Revenue
Walsall Council,http://opendatacommunities.org/id/metropolitan-district-council/walsall,WC97-686,31/10/2018,Childrens,C M H T SOLICITORS LLP,09/10/2018,244.80,73014-LEGAL FEES-PRIV CONTRACTOR FEES,GENERAL MANAGEMENT SUPPORT (INC LEGAL),Third Party Payments,Revenue
Walsall Council,http://opendatacommunities.org/id/metropolitan-district-council/walsall,WC97-687,31/10/2018,Childrens,C M H T SOLICITORS LLP,01/10/2018,253.89,73014-LEGAL FEES-PRIV CONTRACTOR FEES,GENERAL MANAGEMENT SUPPORT (INC LEGAL),Third Party Payments,Revenue
Walsall Council,http://opendatacommunities.org/id/metropolitan-district-council/walsall,WC97-688,31/10/2018,Childrens,C M H T SOLICITORS LLP,08/10/2018,301.32,73014-LEGAL FEES-PRIV CONTRACTOR FEES,GENERAL MANAGEMENT SUPPORT (INC LEGAL),Third Party Payments,Revenue
Walsall Council,http://opendatacommunities.org/id/metropolitan-district-council/walsall,WC97-689,31/10/2018,Childrens,C M H T SOLICITORS LLP,03/10/2018,309.06,73014-LEGAL FEES-PRIV CONTRACTOR FEES,GENERAL MANAGEMENT SUPPORT (INC LEGAL),Third Party Payments,Revenue
Walsall Council,http://opendatacommunities.org/id/metropolitan-district-council/walsall,WC97-690,31/10/2018,Childrens,C M H T SOLICITORS LLP,03/10/2018,640.04,73014-LEGAL FEES-PRIV CONTRACTOR FEES,GENERAL MANAGEMENT SUPPORT (INC LEGAL),Third Party Payments,Revenue
Walsall Council,http://opendatacommunities.org/id/metropolitan-district-council/walsall,WC97-691,31/10/2018,Economy & Environment,C P DAVIDSON & SONS LTD,12/10/2018,-250.00,60500-GENERAL MATERIALS,FLEET,Supplies & Services,Revenue
Walsall Council,http://opendatacommunities.org/id/metropolitan-district-council/walsall,WC97-692,31/10/2018,Economy & Environment,C P DAVIDSON & SONS LTD,11/10/2018,242.28,60500-GENERAL MATERIALS,FLEET,Supplies & Services,Revenue
Walsall Council,http://opendatacommunities.org/id/metropolitan-district-council/walsall,WC97-693,31/10/2018,Economy & Environment,C P DAVIDSON & SONS LTD,17/10/2018,266.84,60500-GENERAL MATERIALS,FLEET,Supplies & Services,Revenue
Walsall Council,http://opendatacommunities.org/id/metropolitan-district-council/walsall,WC97-694,31/10/2018,Economy & Environment,C P DAVIDSON & SONS LTD,05/10/2018,"1,183.31",73025-PROFESSIONAL SERVICES-PRIV CONTRACTOR & OTHER AGENCIES,FLEET,Third Party Payments,Revenue
Walsall Council,http://opendatacommunities.org/id/metropolitan-district-council/walsall,WC97-695,31/10/2018,Childrens,REDACTED,19/10/2018,408.00,74508-INTERNAL FOSTER CARERS-CARER FEES,FAMILY & FRIENDS FOSTER CARE PROVISION,Transfer Payments,Revenue
Walsall Council,http://opendatacommunities.org/id/metropolitan-district-council/walsall,WC97-696,31/10/2018,Childrens,REDACTED,19/10/2018,600.00,74501-MAINTENANCE ALLOWANCE-FOSTER CARERS,FAMILY & FRIENDS FOSTER CARE PROVISION,Transfer Payments,Revenue
Walsall Council,http://opendatacommunities.org/id/metropolitan-district-council/walsall,WC97-697,31/10/2018,Childrens,REDACTED,19/10/2018,600.00,74501-MAINTENANCE ALLOWANCE-FOSTER CARERS,FAMILY & FRIENDS FOSTER CARE PROVISION,Transfer Payments,Revenue
Walsall Council,http://opendatacommunities.org/id/metropolitan-district-council/walsall,WC97-698,31/10/2018,Economy & Environment,CADENT GAS LTD,12/10/2018,"11,748.33",01002-PROJECT FEES,CFR 1280 BLOXWICH NORTH PARK & RIDE NPIF,Capital,Capital
Walsall Council,http://opendatacommunities.org/id/metropolitan-district-council/walsall,WC97-699,31/10/2018,Resources and Transformation,CAE TECHNOLOGY SERVICES LTD,09/10/2018,"1,650.00",63800-COMPUTER EQUIPMENT AND SUPPLIES,NETWORKS,Supplies & Services,Revenue
Walsall Council,http://opendatacommunities.org/id/metropolitan-district-council/walsall,WC97-700,31/10/2018,Adult Social Care,CALDMORE AREA HOUSING ASS LTD,09/10/2018,361.86,73373-RESIDENTIAL & NURSING CARE PLACEMENTS,MENTAL HEALTH PACKAGE/PLACEMENT COSTS,Third Party Payments,Revenue
Walsall Council,http://opendatacommunities.org/id/metropolitan-district-council/walsall,WC97-701,31/10/2018,Adult Social Care,CALDMORE AREA HOUSING ASS LTD,24/10/2018,530.85,73373-RESIDENTIAL & NURSING CARE PLACEMENTS,OP PACKAGE/PLACEMENT COSTS,Third Party Payments,Revenue
Walsall Council,http://opendatacommunities.org/id/metropolitan-district-council/walsall,WC97-702,31/10/2018,Adult Social Care,CALDMORE AREA HOUSING ASS LTD,09/10/2018,633.26,73373-RESIDENTIAL & NURSING CARE PLACEMENTS,MENTAL HEALTH PACKAGE/PLACEMENT COSTS,Third Party Payments,Revenue
Walsall Council,http://opendatacommunities.org/id/metropolitan-district-council/walsall,WC97-703,31/10/2018,Adult Social Care,CALDMORE AREA HOUSING ASS LTD,16/10/2018,814.19,73500-RESIDENTIAL,MENTAL HEALTH SUPPORT,Third Party Payments,Revenue
Walsall Council,http://opendatacommunities.org/id/metropolitan-district-council/walsall,WC97-704,31/10/2018,Adult Social Care,CALDMORE AREA HOUSING ASS LTD,16/10/2018,839.97,73501-RESIDENTIAL EMI,MENTAL HEALTH SUPPORT,Third Party Payments,Revenue
Walsall Council,http://opendatacommunities.org/id/metropolitan-district-council/walsall,WC97-705,31/10/2018,Adult Social Care,CALDMORE AREA HOUSING ASS LTD,16/10/2018,855.92,73500-RESIDENTIAL,MENTAL HEALTH SUPPORT,Third Party Payments,Revenue
Walsall Council,http://opendatacommunities.org/id/metropolitan-district-council/walsall,WC97-706,31/10/2018,Adult Social Care,CALDMORE AREA HOUSING ASS LTD,16/10/2018,855.92,73500-RESIDENTIAL,MENTAL HEALTH SUPPORT,Third Party Payments,Revenue
Walsall Council,http://opendatacommunities.org/id/metropolitan-district-council/walsall,WC97-707,31/10/2018,Adult Social Care,CALDMORE AREA HOUSING ASS LTD,16/10/2018,855.92,73500-RESIDENTIAL,MENTAL HEALTH SUPPORT,Third Party Payments,Revenue
Walsall Council,http://opendatacommunities.org/id/metropolitan-district-council/walsall,WC97-708,31/10/2018,Adult Social Care,CALDMORE AREA HOUSING ASS LTD,16/10/2018,855.92,73500-RESIDENTIAL,MENTAL HEALTH SUPPORT,Third Party Payments,Revenue
Walsall Council,http://opendatacommunities.org/id/metropolitan-district-council/walsall,WC97-709,31/10/2018,Adult Social Care,CALDMORE AREA HOUSING ASS LTD,16/10/2018,855.92,73500-RESIDENTIAL,MENTAL HEALTH SUPPORT,Third Party Payments,Revenue
Walsall Council,http://opendatacommunities.org/id/metropolitan-district-council/walsall,WC97-710,31/10/2018,Adult Social Care,CALDMORE AREA HOUSING ASS LTD,16/10/2018,855.92,73500-RESIDENTIAL,MENTAL HEALTH SUPPORT,Third Party Payments,Revenue
Walsall Council,http://opendatacommunities.org/id/metropolitan-district-council/walsall,WC97-711,31/10/2018,Adult Social Care,CALDMORE AREA HOUSING ASS LTD,16/10/2018,855.92,73500-RESIDENTIAL,MENTAL HEALTH SUPPORT,Third Party Payments,Revenue
Walsall Council,http://opendatacommunities.org/id/metropolitan-district-council/walsall,WC97-712,31/10/2018,Adult Social Care,CALDMORE AREA HOUSING ASS LTD,09/10/2018,973.23,73373-RESIDENTIAL & NURSING CARE PLACEMENTS,MENTAL HEALTH PACKAGE/PLACEMENT COSTS,Third Party Payments,Revenue
Walsall Council,http://opendatacommunities.org/id/metropolitan-district-council/walsall,WC97-713,31/10/2018,Adult Social Care,CALDMORE AREA HOUSING ASS LTD,09/10/2018,"1,026.63",73373-RESIDENTIAL & NURSING CARE PLACEMENTS,MENTAL HEALTH PACKAGE/PLACEMENT COSTS,Third Party Payments,Revenue
Walsall Council,http://opendatacommunities.org/id/metropolitan-district-council/walsall,WC97-714,31/10/2018,Adult Social Care,CALDMORE AREA HOUSING ASS LTD,09/10/2018,"1,537.92",73373-RESIDENTIAL & NURSING CARE PLACEMENTS,MENTAL HEALTH PACKAGE/PLACEMENT COSTS,Third Party Payments,Revenue
Walsall Council,http://opendatacommunities.org/id/metropolitan-district-council/walsall,WC97-715,31/10/2018,Adult Social Care,CALDMORE AREA HOUSING ASS LTD,09/10/2018,"2,533.04",73373-RESIDENTIAL & NURSING CARE PLACEMENTS,MENTAL HEALTH PACKAGE/PLACEMENT COSTS,Third Party Payments,Revenue
Walsall Council,http://opendatacommunities.org/id/metropolitan-district-council/walsall,WC97-716,31/10/2018,Adult Social Care,CALDMORE AREA HOUSING ASS LTD,09/10/2018,"2,533.04",73373-RESIDENTIAL & NURSING CARE PLACEMENTS,MENTAL HEALTH PACKAGE/PLACEMENT COSTS,Third Party Payments,Revenue
Walsall Council,http://opendatacommunities.org/id/metropolitan-district-council/walsall,WC97-717,31/10/2018,Adult Social Care,CALDMORE AREA HOUSING ASS LTD,09/10/2018,"2,533.04",73373-RESIDENTIAL & NURSING CARE PLACEMENTS,MENTAL HEALTH PACKAGE/PLACEMENT COSTS,Third Party Payments,Revenue
Walsall Council,http://opendatacommunities.org/id/metropolitan-district-council/walsall,WC97-718,31/10/2018,Adult Social Care,CALDMORE AREA HOUSING ASS LTD,09/10/2018,"2,533.04",73373-RESIDENTIAL & NURSING CARE PLACEMENTS,MENTAL HEALTH PACKAGE/PLACEMENT COSTS,Third Party Payments,Revenue
Walsall Council,http://opendatacommunities.org/id/metropolitan-district-council/walsall,WC97-719,31/10/2018,Adult Social Care,CALDMORE AREA HOUSING ASS LTD,09/10/2018,"2,533.04",73373-RESIDENTIAL & NURSING CARE PLACEMENTS,MENTAL HEALTH PACKAGE/PLACEMENT COSTS,Third Party Payments,Revenue
Walsall Council,http://opendatacommunities.org/id/metropolitan-district-council/walsall,WC97-720,31/10/2018,Adult Social Care,CALDMORE AREA HOUSING ASS LTD,09/10/2018,"2,613.24",73373-RESIDENTIAL & NURSING CARE PLACEMENTS,MENTAL HEALTH PACKAGE/PLACEMENT COSTS,Third Party Payments,Revenue
Walsall Council,http://opendatacommunities.org/id/metropolitan-district-council/walsall,WC97-721,31/10/2018,Adult Social Care,CALDMORE AREA HOUSING ASS LTD,09/10/2018,"2,613.24",73373-RESIDENTIAL & NURSING CARE PLACEMENTS,MENTAL HEALTH PACKAGE/PLACEMENT COSTS,Third Party Payments,Revenue
Walsall Council,http://opendatacommunities.org/id/metropolitan-district-council/walsall,WC97-722,31/10/2018,Adult Social Care,CALDMORE AREA HOUSING ASS LTD,09/10/2018,"2,613.24",73373-RESIDENTIAL & NURSING CARE PLACEMENTS,MENTAL HEALTH PACKAGE/PLACEMENT COSTS,Third Party Payments,Revenue
Walsall Council,http://opendatacommunities.org/id/metropolitan-district-council/walsall,WC97-723,31/10/2018,Adult Social Care,CALDMORE AREA HOUSING ASS LTD,09/10/2018,"2,613.24",73373-RESIDENTIAL & NURSING CARE PLACEMENTS,MENTAL HEALTH PACKAGE/PLACEMENT COSTS,Third Party Payments,Revenue
Walsall Council,http://opendatacommunities.org/id/metropolitan-district-council/walsall,WC97-724,31/10/2018,Adult Social Care,CALDMORE AREA HOUSING ASS LTD,09/10/2018,"2,613.24",73373-RESIDENTIAL & NURSING CARE PLACEMENTS,MENTAL HEALTH PACKAGE/PLACEMENT COSTS,Third Party Payments,Revenue
Walsall Council,http://opendatacommunities.org/id/metropolitan-district-council/walsall,WC97-725,31/10/2018,Adult Social Care,CALDMORE AREA HOUSING ASS LTD,09/10/2018,"2,613.24",73373-RESIDENTIAL & NURSING CARE PLACEMENTS,MENTAL HEALTH PACKAGE/PLACEMENT COSTS,Third Party Payments,Revenue
Walsall Council,http://opendatacommunities.org/id/metropolitan-district-council/walsall,WC97-726,31/10/2018,Adult Social Care,CALDMORE AREA HOUSING ASS LTD,09/10/2018,"2,613.24",73373-RESIDENTIAL & NURSING CARE PLACEMENTS,MENTAL HEALTH PACKAGE/PLACEMENT COSTS,Third Party Payments,Revenue
Walsall Council,http://opendatacommunities.org/id/metropolitan-district-council/walsall,WC97-727,31/10/2018,Adult Social Care,CALDMORE AREA HOUSING ASS LTD,09/10/2018,"2,613.24",73373-RESIDENTIAL & NURSING CARE PLACEMENTS,MENTAL HEALTH PACKAGE/PLACEMENT COSTS,Third Party Payments,Revenue
Walsall Council,http://opendatacommunities.org/id/metropolitan-district-council/walsall,WC97-728,31/10/2018,Adult Social Care,CALDMORE AREA HOUSING ASS LTD,09/10/2018,"2,613.24",73373-RESIDENTIAL & NURSING CARE PLACEMENTS,MENTAL HEALTH PACKAGE/PLACEMENT COSTS,Third Party Payments,Revenue
Walsall Council,http://opendatacommunities.org/id/metropolitan-district-council/walsall,WC97-729,31/10/2018,Adult Social Care,CALDMORE AREA HOUSING ASS LTD,09/10/2018,"2,613.24",73373-RESIDENTIAL & NURSING CARE PLACEMENTS,MENTAL HEALTH PACKAGE/PLACEMENT COSTS,Third Party Payments,Revenue
Walsall Council,http://opendatacommunities.org/id/metropolitan-district-council/walsall,WC97-730,31/10/2018,Adult Social Care,CALDMORE AREA HOUSING ASS LTD,09/10/2018,"2,613.24",73373-RESIDENTIAL & NURSING CARE PLACEMENTS,MENTAL HEALTH PACKAGE/PLACEMENT COSTS,Third Party Payments,Revenue
Walsall Council,http://opendatacommunities.org/id/metropolitan-district-council/walsall,WC97-731,31/10/2018,Adult Social Care,CALDMORE AREA HOUSING ASS LTD,09/10/2018,"2,613.24",73373-RESIDENTIAL & NURSING CARE PLACEMENTS,MENTAL HEALTH PACKAGE/PLACEMENT COSTS,Third Party Payments,Revenue
Walsall Council,http://opendatacommunities.org/id/metropolitan-district-council/walsall,WC97-732,31/10/2018,Adult Social Care,CALDMORE AREA HOUSING ASS LTD,09/10/2018,"2,613.24",73373-RESIDENTIAL & NURSING CARE PLACEMENTS,MENTAL HEALTH PACKAGE/PLACEMENT COSTS,Third Party Payments,Revenue
Walsall Council,http://opendatacommunities.org/id/metropolitan-district-council/walsall,WC97-733,31/10/2018,Adult Social Care,CALDMORE AREA HOUSING ASS LTD,09/10/2018,"2,613.24",73373-RESIDENTIAL & NURSING CARE PLACEMENTS,MENTAL HEALTH PACKAGE/PLACEMENT COSTS,Third Party Payments,Revenue
Walsall Council,http://opendatacommunities.org/id/metropolitan-district-council/walsall,WC97-734,31/10/2018,Adult Social Care,CALDMORE AREA HOUSING ASS LTD,09/10/2018,"2,713.97",73373-RESIDENTIAL & NURSING CARE PLACEMENTS,MENTAL HEALTH PACKAGE/PLACEMENT COSTS,Third Party Payments,Revenue
Walsall Council,http://opendatacommunities.org/id/metropolitan-district-council/walsall,WC97-735,31/10/2018,Adult Social Care,CALDMORE AREA HOUSING ASS LTD,09/10/2018,"2,985.37",73373-RESIDENTIAL & NURSING CARE PLACEMENTS,MENTAL HEALTH PACKAGE/PLACEMENT COSTS,Third Party Payments,Revenue
Walsall Council,http://opendatacommunities.org/id/metropolitan-district-council/walsall,WC97-736,31/10/2018,Adult Social Care,CALDMORE AREA HOUSING ASS LTD,09/10/2018,"3,166.30",73373-RESIDENTIAL & NURSING CARE PLACEMENTS,MENTAL HEALTH PACKAGE/PLACEMENT COSTS,Third Party Payments,Revenue
Walsall Council,http://opendatacommunities.org/id/metropolitan-district-council/walsall,WC97-737,31/10/2018,Adult Social Care,CALDMORE AREA HOUSING ASS LTD,09/10/2018,"3,166.30",73373-RESIDENTIAL & NURSING CARE PLACEMENTS,MENTAL HEALTH PACKAGE/PLACEMENT COSTS,Third Party Payments,Revenue
Walsall Council,http://opendatacommunities.org/id/metropolitan-district-council/walsall,WC97-738,31/10/2018,Adult Social Care,CALDMORE AREA HOUSING ASS LTD,09/10/2018,"3,166.30",73373-RESIDENTIAL & NURSING CARE PLACEMENTS,MENTAL HEALTH PACKAGE/PLACEMENT COSTS,Third Party Payments,Revenue
Walsall Council,http://opendatacommunities.org/id/metropolitan-district-council/walsall,WC97-739,31/10/2018,Adult Social Care,CALDMORE AREA HOUSING ASS LTD,09/10/2018,"3,173.22",73373-RESIDENTIAL & NURSING CARE PLACEMENTS,MENTAL HEALTH PACKAGE/PLACEMENT COSTS,Third Party Payments,Revenue
Walsall Council,http://opendatacommunities.org/id/metropolitan-district-council/walsall,WC97-740,31/10/2018,Adult Social Care,CALDMORE AREA HOUSING ASS LTD,09/10/2018,"3,173.22",73373-RESIDENTIAL & NURSING CARE PLACEMENTS,MENTAL HEALTH PACKAGE/PLACEMENT COSTS,Third Party Payments,Revenue
Walsall Council,http://opendatacommunities.org/id/metropolitan-district-council/walsall,WC97-741,31/10/2018,Adult Social Care,CALDMORE AREA HOUSING ASS LTD,09/10/2018,"3,173.22",73373-RESIDENTIAL & NURSING CARE PLACEMENTS,MENTAL HEALTH PACKAGE/PLACEMENT COSTS,Third Party Payments,Revenue
Walsall Council,http://opendatacommunities.org/id/metropolitan-district-council/walsall,WC97-742,31/10/2018,Adult Social Care,CALDMORE AREA HOUSING ASS LTD,09/10/2018,"3,173.22",73373-RESIDENTIAL & NURSING CARE PLACEMENTS,MENTAL HEALTH PACKAGE/PLACEMENT COSTS,Third Party Payments,Revenue
Walsall Council,http://opendatacommunities.org/id/metropolitan-district-council/walsall,WC97-743,31/10/2018,Adult Social Care,CALDMORE AREA HOUSING ASS LTD,09/10/2018,"3,266.55",73373-RESIDENTIAL & NURSING CARE PLACEMENTS,MENTAL HEALTH PACKAGE/PLACEMENT COSTS,Third Party Payments,Revenue
Walsall Council,http://opendatacommunities.org/id/metropolitan-district-council/walsall,WC97-744,31/10/2018,Adult Social Care,CALDMORE AREA HOUSING ASS LTD,09/10/2018,"3,266.55",73373-RESIDENTIAL & NURSING CARE PLACEMENTS,MENTAL HEALTH PACKAGE/PLACEMENT COSTS,Third Party Payments,Revenue
Walsall Council,http://opendatacommunities.org/id/metropolitan-district-council/walsall,WC97-745,31/10/2018,Childrens,REDACTED,19/10/2018,375.88,74510-RESIDENTS ORDERS,ADOPTION ALLOWANCES,Third Party Payments,Revenue
Walsall Council,http://opendatacommunities.org/id/metropolitan-district-council/walsall,WC97-746,31/10/2018,Adult Social Care,REDACTED,08/10/2018,"1,334.08",73506-DIRECT PAYMENT,LEARNING DISABILITY SUPPORT,Third Party Payments,Revenue
Walsall Council,http://opendatacommunities.org/id/metropolitan-district-council/walsall,WC97-747,31/10/2018,Childrens,CAMBIAN WHINFELL SCHOOLS LTD,23/10/2018,"26,508.77",66502-TOP UP FUNDING -GRANTS TO SCHOOLS,INDEPENDENT PROVIDERS - SPECIAL & AP,Third Party Payments,Revenue
Walsall Council,http://opendatacommunities.org/id/metropolitan-district-council/walsall,WC97-748,31/10/2018,Economy & Environment,CAMERA ONE LIMITED,11/10/2018,520.00,73025-PROFESSIONAL SERVICES-PRIV CONTRACTOR & OTHER AGENCIES,DEPOT,Third Party Payments,Revenue
Walsall Council,http://opendatacommunities.org/id/metropolitan-district-council/walsall,WC97-749,31/10/2018,Economy & Environment,CAMERA ONE LIMITED,15/10/2018,"1,075.00",73025-PROFESSIONAL SERVICES-PRIV CONTRACTOR & OTHER AGENCIES,DEPOT,Third Party Payments,Revenue
Walsall Council,http://opendatacommunities.org/id/metropolitan-district-council/walsall,WC97-750,31/10/2018,Childrens,REDACTED,04/10/2018,567.00,64002-OTHER EXPENSES-EXPENSES,TRANSITION AND LEAVING CARE PLACEMENTS,Supplies & Services,Revenue
Walsall Council,http://opendatacommunities.org/id/metropolitan-district-council/walsall,WC97-751,31/10/2018,Economy & Environment,CANNOCK TACHOGRAPH CENTRE LTD,10/10/2018,265.00,73025-PROFESSIONAL SERVICES-PRIV CONTRACTOR & OTHER AGENCIES,FLEET,Third Party Payments,Revenue
Walsall Council,http://opendatacommunities.org/id/metropolitan-district-council/walsall,WC97-752,31/10/2018,Childrens,CANNON HYGIENE LTD,18/10/2018,214.40,60539-CLEANING MATERIALS,SAFEGUARDING & FAMILY SUPPORT,Supplies & Services,Revenue
Walsall Council,http://opendatacommunities.org/id/metropolitan-district-council/walsall,WC97-753,31/10/2018,Childrens,CAPSTONE FOSTER CARE (SOUTH EAST) LIMITED,08/10/2018,"3,003.12",74037-INDEPENDENT FOSTER CARE-OTH AGENCY PROVISION,EXTERNAL FOSTER CARE PROVISION,Third Party Payments,Revenue
Walsall Council,http://opendatacommunities.org/id/metropolitan-district-council/walsall,WC97-754,31/10/2018,Childrens,CAPSTONE FOSTER CARE (SOUTH EAST) LIMITED,08/10/2018,"3,124.44",74037-INDEPENDENT FOSTER CARE-OTH AGENCY PROVISION,EXTERNAL FOSTER CARE PROVISION,Third Party Payments,Revenue
Walsall Council,http://opendatacommunities.org/id/metropolitan-district-council/walsall,WC97-755,31/10/2018,Childrens,CAPSTONE FOSTER CARE (SOUTH EAST) LIMITED,08/10/2018,"3,194.04",74037-INDEPENDENT FOSTER CARE-OTH AGENCY PROVISION,EXTERNAL FOSTER CARE PROVISION,Third Party Payments,Revenue
Walsall Council,http://opendatacommunities.org/id/metropolitan-district-council/walsall,WC97-756,31/10/2018,Childrens,CAPSTONE FOSTER CARE (SOUTH EAST) LIMITED,08/10/2018,"3,194.04",74037-INDEPENDENT FOSTER CARE-OTH AGENCY PROVISION,EXTERNAL FOSTER CARE PROVISION,Third Party Payments,Revenue
Walsall Council,http://opendatacommunities.org/id/metropolitan-district-council/walsall,WC97-757,31/10/2018,Adult Social Care,CARE 2 U LIMITED,04/10/2018,"1,803.17",73025-PROFESSIONAL SERVICES-PRIV CONTRACTOR & OTHER AGENCIES,TRANSITIONAL CARE SUPPORT TEAM,Third Party Payments,Revenue
Walsall Council,http://opendatacommunities.org/id/metropolitan-district-council/walsall,WC97-758,31/10/2018,Adult Social Care,CARE 2 U LIMITED,18/10/2018,"29,514.56",73372-DOMICILIARY CARE,OP PACKAGE/PLACEMENT COSTS,Third Party Payments,Revenue
Walsall Council,http://opendatacommunities.org/id/metropolitan-district-council/walsall,WC97-759,31/10/2018,Adult Social Care,CARE AVENUES LTD,11/10/2018,"21,289.26",73372-DOMICILIARY CARE,OP PACKAGE/PLACEMENT COSTS,Third Party Payments,Revenue
Walsall Council,http://opendatacommunities.org/id/metropolitan-district-council/walsall,WC97-760,31/10/2018,Adult Social Care,CARE AVENUES LTD,22/10/2018,"21,289.26",73372-DOMICILIARY CARE,OP PACKAGE/PLACEMENT COSTS,Third Party Payments,Revenue
Walsall Council,http://opendatacommunities.org/id/metropolitan-district-council/walsall,WC97-761,31/10/2018,Childrens,CARE LEAVERS,05/10/2018,104.74,63100-EMISSION TESTING-SERVICES-FEES,TRANSITION AND LEAVING CARE PLACEMENTS,Supplies & Services,Revenue
Walsall Council,http://opendatacommunities.org/id/metropolitan-district-council/walsall,WC97-762,31/10/2018,Childrens,CARE LEAVERS,05/10/2018,851.28,76010-ACCOMMODATION AND RELATED COSTS-ASSISTANCE TO S/S CLIENTS,TRANSITION AND LEAVING CARE PLACEMENTS,Transfer Payments,Revenue
Walsall Council,http://opendatacommunities.org/id/metropolitan-district-council/walsall,WC97-763,31/10/2018,Childrens,CARE LEAVERS,05/10/2018,"2,789.47",64002-OTHER EXPENSES-EXPENSES,TRANSITION AND LEAVING CARE PLACEMENTS,Supplies & Services,Revenue
Walsall Council,http://opendatacommunities.org/id/metropolitan-district-council/walsall,WC97-764,31/10/2018,Childrens,CARE LEAVERS,05/10/2018,"5,937.80",74500-CARE LEAVERS MTCE PAYMENTS,TRANSITION AND LEAVING CARE PLACEMENTS,Third Party Payments,Revenue
Walsall Council,http://opendatacommunities.org/id/metropolitan-district-council/walsall,WC97-765,31/10/2018,Childrens,CARE LEAVERS,05/10/2018,"6,501.90",76400-RESIDENTS PERSONAL EXPENSES-ALLOWANCES TO S/S CLIENTS,TRANSITION AND LEAVING CARE PLACEMENTS,Transfer Payments,Revenue
Walsall Council,http://opendatacommunities.org/id/metropolitan-district-council/walsall,WC97-766,31/10/2018,Childrens,CARE PERSPECTIVES LTD,08/10/2018,"21,300.00",74036-EXTERNAL RESIDENTIAL CARE-OTH AGENCY PROVISION,INDEPENDENT RESIDENTIAL HOMES,Third Party Payments,Revenue
Walsall Council,http://opendatacommunities.org/id/metropolitan-district-council/walsall,WC97-767,31/10/2018,Childrens,CARE TODAY CHILDRENS SERVICES,08/10/2018,"10,380.00",74036-EXTERNAL RESIDENTIAL CARE-OTH AGENCY PROVISION,INDEPENDENT RESIDENTIAL HOMES,Third Party Payments,Revenue
Walsall Council,http://opendatacommunities.org/id/metropolitan-district-council/walsall,WC97-768,31/10/2018,Adult Social Care,CARE XY LIMITED,19/10/2018,-295.04,73019-PSE'S-PRIV CONTRACTOR FEES,INTEGRATED DISCHARGE TEAM,Third Party Payments,Revenue
Walsall Council,http://opendatacommunities.org/id/metropolitan-district-council/walsall,WC97-769,31/10/2018,Adult Social Care,CARE XY LIMITED,23/10/2018,309.10,73372-DOMICILIARY CARE,OP PACKAGE/PLACEMENT COSTS,Third Party Payments,Revenue
Walsall Council,http://opendatacommunities.org/id/metropolitan-district-council/walsall,WC97-770,31/10/2018,Adult Social Care,CARE XY LIMITED,01/10/2018,396.76,73372-DOMICILIARY CARE,OP PACKAGE/PLACEMENT COSTS,Third Party Payments,Revenue
Walsall Council,http://opendatacommunities.org/id/metropolitan-district-council/walsall,WC97-771,31/10/2018,Adult Social Care,CARE XY LIMITED,23/10/2018,396.76,73372-DOMICILIARY CARE,OP PACKAGE/PLACEMENT COSTS,Third Party Payments,Revenue
Walsall Council,http://opendatacommunities.org/id/metropolitan-district-council/walsall,WC97-772,31/10/2018,Adult Social Care,CARE XY LIMITED,23/10/2018,495.95,73372-DOMICILIARY CARE,OP PACKAGE/PLACEMENT COSTS,Third Party Payments,Revenue
Walsall Council,http://opendatacommunities.org/id/metropolitan-district-council/walsall,WC97-773,31/10/2018,Adult Social Care,CARE XY LIMITED,23/10/2018,495.95,73372-DOMICILIARY CARE,OP PACKAGE/PLACEMENT COSTS,Third Party Payments,Revenue
Walsall Council,http://opendatacommunities.org/id/metropolitan-district-council/walsall,WC97-774,31/10/2018,Adult Social Care,CARE XY LIMITED,01/10/2018,562.00,73372-DOMICILIARY CARE,LD PACKAGE/PLACEMENT COSTS,Third Party Payments,Revenue
Walsall Council,http://opendatacommunities.org/id/metropolitan-district-council/walsall,WC97-775,31/10/2018,Adult Social Care,CARE XY LIMITED,01/10/2018,566.80,73372-DOMICILIARY CARE,LD PACKAGE/PLACEMENT COSTS,Third Party Payments,Revenue
